Service Area Categorisation,Service Division Categorisation,Responsible Unit,Expenses Type,Expenses Sub Type,Expense  Code,Narrative,Invoice Date,Transaction number,Amount,Capital/Revenue,Supplier Name
Central Services,SupS Chief Execs,Local Involvement Network               ,Third Party Payments          ,Private Contractors           ,EH10,Contract Payments,04/01/2013,1,"8,342.91",R,MERTON VOLUNTARY SERV COUNCIL 
Cultural Env Reg&Plan Services,Comm Safety (Crime Reduction),Crime and Strategy Team                 ,Third Party Payments          ,Private Contractors           ,EH02,Miscellaneous Hired Services,19/12/2012,2,"8,200.00",R,MERTON AND SUTTON MEDIATION   
Cultural Env Reg&Plan Services,Comm Safety (Crime Reduction),CCTV                                    ,Supplies & Services           ,Equip Furniture/Materials     ,DA01,Equipment - R & M,08/01/2013,3,"1,200.00",R,DOWN THE FIELD LIMITED        
Cultural Env Reg&Plan Services,Comm Safety (Crime Reduction),CCTV                                    ,Supplies & Services           ,Comms and Computing           ,DG15,Network Maintenance,03/12/2012,4,"4,204.49",R,BT REDCARE                    
Cultural Env Reg&Plan Services,Comm Safety (Crime Reduction),CCTV                                    ,Supplies & Services           ,Comms and Computing           ,DG15,Network Maintenance,02/01/2013,5,"9,900.61",R,BT REDCARE                    
Adult Social Care,Substance Abuse (Addictions),Access and Engagement                   ,Third Party Payments          ,Private Contractors           ,EH02,Miscellaneous Hired Services,03/12/2012,6,"7,462.50",R,ADDACTION KINGSTON            
Adult Social Care,Substance Abuse (Addictions),Access and Engagement                   ,Third Party Payments          ,Private Contractors           ,EH02,Miscellaneous Hired Services,06/11/2012,7,"9,749.78",R,ETHNIC MINORITY CENTRE        
Adult Social Care,Substance Abuse (Addictions),Access and Engagement                   ,Third Party Payments          ,Private Contractors           ,EH02,Miscellaneous Hired Services,02/01/2013,8,"41,048.00",R,CRI                           
Adult Social Care,Substance Abuse (Addictions),Access and Engagement                   ,Third Party Payments          ,Private Contractors           ,EH02,Miscellaneous Hired Services,03/01/2013,9,"1,856.25",R,COMM.DRUG SERV.FOR SOUTHLONDON
Adult Social Care,Substance Abuse (Addictions),Retention in Drug Treatmt Srvs          ,Third Party Payments          ,Private Contractors           ,EH02,Miscellaneous Hired Services,17/12/2012,10,"47,194.00",R,SW LONDON ST GEORGES NHS TRUST
Adult Social Care,Substance Abuse (Addictions),Retention in Drug Treatmt Srvs          ,Third Party Payments          ,Private Contractors           ,EH02,Miscellaneous Hired Services,02/01/2013,11,"2,500.00",R,EQUINOX                       
Adult Social Care,Substance Abuse (Addictions),Retention in Drug Treatmt Srvs          ,Third Party Payments          ,Private Contractors           ,EH02,Miscellaneous Hired Services,02/01/2013,12,"1,250.00",R,EQUINOX                       
Adult Social Care,Substance Abuse (Addictions),Retention in Drug Treatmt Srvs          ,Third Party Payments          ,Private Contractors           ,EH02,Miscellaneous Hired Services,03/01/2013,13,"4,500.00",R,COMM.DRUG SERV.FOR SOUTHLONDON
Adult Social Care,Substance Abuse (Addictions),Retention in Drug Treatmt Srvs          ,Third Party Payments          ,Private Contractors           ,EH02,Miscellaneous Hired Services,03/01/2013,14,"58,112.25",R,COMM.DRUG SERV.FOR SOUTHLONDON
Adult Social Care,Substance Abuse (Addictions),Retention in Drug Treatmt Srvs          ,Third Party Payments          ,Private Contractors           ,EH02,Miscellaneous Hired Services,03/01/2013,15,"1,732.80",R,COMM.DRUG SERV.FOR SOUTHLONDON
Adult Social Care,Substance Abuse (Addictions),Retention in Drug Treatmt Srvs          ,Third Party Payments          ,Private Contractors           ,EH02,Miscellaneous Hired Services,03/01/2013,16,"3,666.44",R,COMM.DRUG SERV.FOR SOUTHLONDON
Adult Social Care,Substance Abuse (Addictions),Retention in Drug Treatmt Srvs          ,Third Party Payments          ,Private Contractors           ,EH02,Miscellaneous Hired Services,03/01/2013,17,"8,953.64",R,COMM.DRUG SERV.FOR SOUTHLONDON
Adult Social Care,Substance Abuse (Addictions),Retention in Drug Treatmt Srvs          ,Third Party Payments          ,Private Contractors           ,EH02,Miscellaneous Hired Services,03/01/2013,18,"2,870.89",R,COMM.DRUG SERV.FOR SOUTHLONDON
Adult Social Care,Substance Abuse (Addictions),Retention in Drug Treatmt Srvs          ,Third Party Payments          ,Private Contractors           ,EH02,Miscellaneous Hired Services,03/01/2013,19,"1,661.50",R,COMM.DRUG SERV.FOR SOUTHLONDON
Adult Social Care,Substance Abuse (Addictions),Retention in Drug Treatmt Srvs          ,Third Party Payments          ,Private Contractors           ,EH02,Miscellaneous Hired Services,03/01/2013,20,"2,934.69",R,COMM.DRUG SERV.FOR SOUTHLONDON
Adult Social Care,Substance Abuse (Addictions),Retention in Drug Treatmt Srvs          ,Third Party Payments          ,Private Contractors           ,EH02,Miscellaneous Hired Services,03/01/2013,21,"1,550.30",R,COMM.DRUG SERV.FOR SOUTHLONDON
Adult Social Care,Substance Abuse (Addictions),Retention in Drug Treatmt Srvs          ,Third Party Payments          ,Private Contractors           ,EH02,Miscellaneous Hired Services,15/01/2013,22,"6,600.00",R,CIDARIS CONSULTING LIMITED    
Central Services,SupS Chief Execs,NON-STATUTORY MARKETING & COMM ,Supplies & Services           ,Prntng Stnry Gen Off Exp      ,DE22,Marketing,11/12/2012,23,996,R,INTUITIVE EVENTS              
Central Services,SupS Chief Execs,NON-STATUTORY MARKETING & COMM ,Supplies & Services           ,Services                      ,DF02,Misc Advertising/Publicity,12/12/2012,24,640,R,FAMILIES SOUTH EAST           
Central Services,SupS Chief Execs,NON-STATUTORY MARKETING & COMM ,Supplies & Services           ,Services                      ,DF02,Misc Advertising/Publicity,20/12/2012,25,903,R,WE ARE FAMILY MAGAZINE        
Central Services,SupS Chief Execs,NON-STATUTORY MARKETING & COMM ,Supplies & Services           ,Services                      ,DF02,Misc Advertising/Publicity,07/01/2013,26,"2,450.00",R,CBS OUTDOOR LIMITED           
Central Services,SupS Chief Execs,NON-STATUTORY MARKETING & COMM ,Supplies & Services           ,Services                      ,DF02,Misc Advertising/Publicity,07/01/2013,27,790,R,ABC MAGAZINE SURREY           
Central Services,SupS Chief Execs,NON-STATUTORY MARKETING & COMM ,Supplies & Services           ,Services                      ,DF02,Misc Advertising/Publicity,19/12/2012,28,537.5,R,JCDECAUX UNITED KINGDOM       
Central Services,SupS Chief Execs,NON-STATUTORY MARKETING & COMM ,Supplies & Services           ,Expenses                      ,DH14,Prizes and Awards,04/01/2013,29,600,R,DEBENHAMS BUSINESS SERVICES   
Central Services,SupS Chief Execs,Democratic Services                     ,Supplies & Services           ,Expenses                      ,DH79,Incoming Mayor (May-March),14/01/2012,30,629.08,R,REDACTED
Central Services,SupS Chief Execs,Press and Public Relations.             ,Employees                     ,Direct Employee Expenses      ,AA17,Agency Staff & Casual Paymts,24/12/2012,31,565,R,HAYS RECRUITING EXPERTS       
Central Services,SupS Chief Execs,Press and Public Relations.             ,Employees                     ,Direct Employee Expenses      ,AA17,Agency Staff & Casual Paymts,21/12/2012,32,565,R,HAYS RECRUITING EXPERTS       
Central Services,SupS Chief Execs,Press and Public Relations.             ,Employees                     ,Direct Employee Expenses      ,AA17,Agency Staff & Casual Paymts,08/01/2013,33,678,R,HAYS RECRUITING EXPERTS       
Central Services,SupS Chief Execs,Press and Public Relations.             ,Employees                     ,Direct Employee Expenses      ,AA17,Agency Staff & Casual Paymts,17/01/2013,34,"1,130.00",R,HAYS RECRUITING EXPERTS       
Central Services,SupS Chief Execs,Press and Public Relations.             ,Supplies & Services           ,Prntng Stnry Gen Off Exp      ,DE20,Council Magazine,28/11/2012,35,"3,623.95",R,LONDON LETTERBOX MARKETING    
Central Services,SupS Chief Execs,Press and Public Relations.             ,Supplies & Services           ,Prntng Stnry Gen Off Exp      ,DE20,Council Magazine,28/11/2012,36,"1,113.64",R,LONDON LETTERBOX MARKETING    
CS -Oth Operating Inc & Expend,T/A Corporate Services,Prtng Jobs - Ext Agncy                  ,Supplies & Services           ,Prntng Stnry Gen Off Exp      ,DE01,External Printing,24/12/2012,37,"1,000.00",R,BELMONT PRESS LIMITED         
CS -Oth Operating Inc & Expend,T/A Corporate Services,Prtng Jobs - Ext Agncy                  ,Supplies & Services           ,Prntng Stnry Gen Off Exp      ,DE01,External Printing,31/12/2012,38,"2,553.00",R,LIMETREE OFFSET LTD           
CS -Oth Operating Inc & Expend,T/A Corporate Services,Prtng Jobs - Ext Agncy                  ,Supplies & Services           ,Prntng Stnry Gen Off Exp      ,DE01,External Printing,31/12/2012,39,589.95,R,COLLECTOR SET PRINTERS LTD    
CS -Oth Operating Inc & Expend,T/A Corporate Services,PrintUnit-HighVolPhtcopying             ,Third Party Payments          ,Private Contractors           ,EH02,Miscellaneous Hired Services,03/12/2012,40,"5,675.72",R,OCE (UK) LTD                  
Central Services,SupS Comm and Member Services,COMMUNITY ENGAGAMENT                    ,Supplies & Services           ,Services                      ,DF32,Customer Survey,05/12/2012,41,"19,475.00",R,TNS UK LTD                    
Central Services,SupS Best Value,Merton Link                             ,Supplies & Services           ,Prntng Stnry Gen Off Exp      ,DE30,General Office Expense        ,09/01/2013,42,"5,478.00",R,Q-MATIC UK LTD                
Central Services,SupS Best Value,Merton Link                             ,Supplies & Services           ,Comms and Computing           ,DG15,Network Maintenance,02/01/2013,43,562.6,R,NORTHGATE  INFORMATION SOLUT. 
Central Services,SupS Comm and Member Services,Local Strategic Partnership             ,Supplies & Services           ,Grants and Subscriptions      ,DJ01,Grants,04/01/2013,44,"9,304.00",R,MERTON VOLUNTARY SERV COUNCIL 
Central Services,Grants - Voluntary Groups,VOLUNTARY SECTOR COORDINATION   ,Supplies & Services           ,Grants and Subscriptions      ,DJ01,Grants,01/01/2013,45,"5,000.00",R,MERTON COMMUNITY TRANSPORT    
Central Services,Grants - Voluntary Groups,VOLUNTARY SECTOR COORDINATION   ,Supplies & Services           ,Grants and Subscriptions      ,DJ01,Grants,01/01/2013,46,"8,166.00",R,MERTON CIL                    
Central Services,Grants - Voluntary Groups,VOLUNTARY SECTOR COORDINATION   ,Supplies & Services           ,Grants and Subscriptions      ,DJ01,Grants,01/01/2013,47,"13,500.00",R,SW LONDON LAW CENTRES         
Central Services,Grants - Voluntary Groups,VOLUNTARY SECTOR COORDINATION   ,Supplies & Services           ,Grants and Subscriptions      ,DJ01,Grants,01/01/2013,48,"3,333.00",R,COMMONSIDE COMMUNITY DEV TRUST
Central Services,Grants - Voluntary Groups,VOLUNTARY SECTOR COORDINATION   ,Supplies & Services           ,Grants and Subscriptions      ,DJ01,Grants,01/01/2013,49,"12,457.00",R,VOLUNTEER CENTRE MERTON       
Central Services,Grants - Voluntary Groups,VOLUNTARY SECTOR COORDINATION   ,Supplies & Services           ,Grants and Subscriptions      ,DJ01,Grants,01/01/2013,50,"21,092.00",R,MERTON VOLUNTARY SERV COUNCIL 
Central Services,Grants - Voluntary Groups,VOLUNTARY SECTOR COORDINATION   ,Supplies & Services           ,Grants and Subscriptions      ,DJ01,Grants,01/01/2013,51,"5,563.00",R,MERTON VOLUNTARY SERV COUNCIL 
Central Services,Grants - Voluntary Groups,VOLUNTARY SECTOR COORDINATION   ,Supplies & Services           ,Grants and Subscriptions      ,DJ01,Grants,10/01/2013,52,"96,310.00",R,MERTON CITIZEN ADVICE BUREAU  
Central Services,Grants - Voluntary Groups,VOLUNTARY SECTOR COORDINATION   ,Supplies & Services           ,Grants and Subscriptions      ,DJ01,Grants,09/01/2013,53,"15,833.00",R,SPRINGFIELD LAW CENTRE LTD
Central Services,Grants - Voluntary Groups,VOLUNTARY SECTOR COORDINATION   ,Supplies & Services           ,Grants and Subscriptions      ,DJ04,Subscriptions,17/12/2012,54,"76,712.75",R,LONDON COUNCILS               
Central Services,SupS Comm and Member Services,COMMERICIAL SERVICES                    ,Employees                     ,Direct Employee Expenses      ,AA17,Agency Staff & Casual Paymts,13/12/2012,55,"3,390.00",R,HAYS RECRUITING EXPERTS       
Central Services,SupS Comm and Member Services,COMMERICIAL SERVICES                    ,Employees                     ,Direct Employee Expenses      ,AA17,Agency Staff & Casual Paymts,20/12/2012,56,"2,712.00",R,HAYS RECRUITING EXPERTS       
Central Services,SupS Comm and Member Services,COMMERICIAL SERVICES                    ,Employees                     ,Direct Employee Expenses      ,AA17,Agency Staff & Casual Paymts,24/12/2012,57,"1,356.00",R,HAYS RECRUITING EXPERTS       
Central Services,Registn Birth/Death/Marriage,Reg of B. Deaths & Ms                   ,Supplies & Services           ,Services                      ,DF04,Miscellaneous Expenses,29/11/2012,58,575,R,OFFICE OF THE IMMIGRATION     
Central Services,Registn Birth/Death/Marriage,Reg of B. Deaths & Ms                   ,Supplies & Services           ,Comms and Computing           ,DG08,Computer Hardware,02/01/2013,59,"4,200.00",R,BT REDCARE                    
Central Services,SupS Health & Safety,Learning and Development                ,Employees                     ,Indirect Employee Expenses    ,AB56,Internal Training Costs,19/10/2012,60,560,R,TOTAL COURSES                 
CS -Oth Operating Inc & Expend,T/A Corporate Services,CHAS Scheme                             ,Employees                     ,Indirect Employee Expenses    ,AB57,External Training Costs,14/01/2013,61,"1,570.00",R,JAD ASSOC (IMPROVEM'T SOLUTION
CS -Oth Operating Inc & Expend,T/A Corporate Services,CHAS Scheme                             ,Supplies & Services           ,Services                      ,DF88,Assessor Fees,30/12/2012,62,816,R,REDACTED
CS -Oth Operating Inc & Expend,T/A Corporate Services,CHAS Scheme                             ,Supplies & Services           ,Services                      ,DF88,Assessor Fees,31/12/2012,63,"1,371.00",R,REDACTED
CS -Oth Operating Inc & Expend,T/A Corporate Services,CHAS Scheme                             ,Supplies & Services           ,Services                      ,DF88,Assessor Fees,20/12/2012,64,929,R,REDACTED
CS -Oth Operating Inc & Expend,T/A Corporate Services,CHAS Scheme                             ,Supplies & Services           ,Services                      ,DF88,Assessor Fees,19/12/2012,65,737.25,R,REDACTED
CS -Oth Operating Inc & Expend,T/A Corporate Services,CHAS Scheme                             ,Supplies & Services           ,Services                      ,DF88,Assessor Fees,28/12/2012,66,802,R,REDACTED
CS -Oth Operating Inc & Expend,T/A Corporate Services,CHAS Scheme                             ,Supplies & Services           ,Services                      ,DF88,Assessor Fees,29/12/2012,67,588,R,REDACTED
CS -Oth Operating Inc & Expend,T/A Corporate Services,CHAS Scheme                             ,Supplies & Services           ,Services                      ,DF88,Assessor Fees,28/12/2012,68,903,R,REDACTED
CS -Oth Operating Inc & Expend,T/A Corporate Services,CHAS Scheme                             ,Supplies & Services           ,Services                      ,DF88,Assessor Fees,02/01/2013,69,"1,237.00",R,REDACTED
CS -Oth Operating Inc & Expend,T/A Corporate Services,CHAS Scheme                             ,Supplies & Services           ,Services                      ,DF88,Assessor Fees,28/12/2012,70,"1,317.00",R,REDACTED
CS -Oth Operating Inc & Expend,T/A Corporate Services,CHAS Scheme                             ,Supplies & Services           ,Services                      ,DF88,Assessor Fees,31/12/2012,71,"1,564.00",R,REDACTED
CS -Oth Operating Inc & Expend,T/A Corporate Services,CHAS Scheme                             ,Supplies & Services           ,Services                      ,DF88,Assessor Fees,31/12/2012,72,555,R,REDACTED
CS -Oth Operating Inc & Expend,T/A Corporate Services,CHAS Scheme                             ,Supplies & Services           ,Services                      ,DF88,Assessor Fees,28/12/2012,73,"1,223.00",R,WOODS CONSULTANCY SERVICES LTD
CS -Oth Operating Inc & Expend,T/A Corporate Services,CHAS Scheme                             ,Supplies & Services           ,Services                      ,DF88,Assessor Fees,31/12/2012,74,"1,444.00",R,WEST WALES SAFETY SERVICES    
CS -Oth Operating Inc & Expend,T/A Corporate Services,CHAS Scheme                             ,Supplies & Services           ,Services                      ,DF88,Assessor Fees,01/01/2013,75,"2,876.00",R,ARC ASSOCIATES (UK)           
CS -Oth Operating Inc & Expend,T/A Corporate Services,CHAS Scheme                             ,Supplies & Services           ,Services                      ,DF88,Assessor Fees,01/01/2013,76,696,R,REDACTED
CS -Oth Operating Inc & Expend,T/A Corporate Services,CHAS Scheme                             ,Supplies & Services           ,Services                      ,DF88,Assessor Fees,31/12/2012,77,"1,023.00",R,REDACTED
CS -Oth Operating Inc & Expend,T/A Corporate Services,CHAS Scheme                             ,Supplies & Services           ,Services                      ,DF88,Assessor Fees,28/12/2012,78,"3,257.00",R,ALIMOR SAFETY LTD             
CS -Oth Operating Inc & Expend,T/A Corporate Services,CHAS Scheme                             ,Supplies & Services           ,Services                      ,DF88,Assessor Fees,04/01/2013,79,903,R,REDACTED
CS -Oth Operating Inc & Expend,T/A Corporate Services,CHAS Scheme                             ,Supplies & Services           ,Services                      ,DF88,Assessor Fees,31/12/2012,80,"1,195.90",R,2ND NATURE SAFETY SOLUTIONS UK
CS -Oth Operating Inc & Expend,T/A Corporate Services,CHAS Scheme                             ,Supplies & Services           ,Services                      ,DF88,Assessor Fees,02/01/2013,81,"1,686.00",R,REDACTED
CS -Oth Operating Inc & Expend,T/A Corporate Services,CHAS Scheme                             ,Supplies & Services           ,Services                      ,DF88,Assessor Fees,31/12/2012,82,515,R,REDACTED
CS -Oth Operating Inc & Expend,T/A Corporate Services,CHAS Scheme                             ,Supplies & Services           ,Services                      ,DF88,Assessor Fees,31/12/2012,83,"1,992.00",R,SOUTH EAST HEALTH & SAFETY LTD
CS -Oth Operating Inc & Expend,T/A Corporate Services,CHAS Scheme                             ,Supplies & Services           ,Services                      ,DF88,Assessor Fees,31/12/2012,84,515,R,REDACTED
CS -Oth Operating Inc & Expend,T/A Corporate Services,CHAS Scheme                             ,Supplies & Services           ,Services                      ,DF88,Assessor Fees,31/12/2012,85,"1,872.00",R,REDACTED
CS -Oth Operating Inc & Expend,T/A Corporate Services,CHAS Scheme                             ,Supplies & Services           ,Services                      ,DF88,Assessor Fees,31/12/2012,86,"3,126.00",R,STALLARD KANE ASSOCIATES LTD  
CS -Oth Operating Inc & Expend,T/A Corporate Services,CHAS Scheme                             ,Supplies & Services           ,Services                      ,DF88,Assessor Fees,09/01/2013,87,903,R,REDACTED
CS -Oth Operating Inc & Expend,T/A Corporate Services,CHAS Scheme                             ,Supplies & Services           ,Services                      ,DF88,Assessor Fees,03/01/2013,88,809,R,REDACTED
CS -Oth Operating Inc & Expend,T/A Corporate Services,CHAS Scheme                             ,Supplies & Services           ,Services                      ,DF88,Assessor Fees,03/01/2013,89,"1,764.00",R,REDACTED
CS -Oth Operating Inc & Expend,T/A Corporate Services,CHAS Scheme                             ,Supplies & Services           ,Services                      ,DF88,Assessor Fees,05/01/2013,90,"1,578.00",R,REDACTED
CS -Oth Operating Inc & Expend,T/A Corporate Services,CHAS Scheme                             ,Supplies & Services           ,Services                      ,DF88,Assessor Fees,10/01/2013,91,602,R,SELECT SAFETY LIMITED         
CS -Oth Operating Inc & Expend,T/A Corporate Services,CHAS Scheme                             ,Supplies & Services           ,Services                      ,DF88,Assessor Fees,12/01/2013,92,"1,117.00",R,REDACTED
CS -Oth Operating Inc & Expend,T/A Corporate Services,CHAS Scheme                             ,Supplies & Services           ,Services                      ,DF88,Assessor Fees,08/01/2013,93,642,R,REDACTED
CS -Oth Operating Inc & Expend,T/A Corporate Services,CHAS Scheme                             ,Supplies & Services           ,Services                      ,DF88,Assessor Fees,31/12/2012,94,562,R,REDACTED
CS -Oth Operating Inc & Expend,T/A Corporate Services,CHAS Scheme                             ,Supplies & Services           ,Services                      ,DF88,Assessor Fees,28/12/2012,95,515,R,REDACTED
CS -Oth Operating Inc & Expend,T/A Corporate Services,CHAS Scheme                             ,Supplies & Services           ,Services                      ,DF88,Assessor Fees,07/01/2013,96,"1,886.00",R,REDACTED
CS -Oth Operating Inc & Expend,T/A Corporate Services,CHAS Scheme                             ,Supplies & Services           ,Services                      ,DF88,Assessor Fees,31/12/2012,97,903,R,REDACTED
CS -Oth Operating Inc & Expend,T/A Corporate Services,CHAS Scheme                             ,Supplies & Services           ,Services                      ,DF88,Assessor Fees,07/01/2013,98,"1,465.00",R,MGW SAFETY SERVICES           
CS -Oth Operating Inc & Expend,T/A Corporate Services,CHAS Scheme                             ,Supplies & Services           ,Services                      ,DF88,Assessor Fees,31/12/2012,99,"1,463.00",R,REDACTED
CS -Oth Operating Inc & Expend,T/A Corporate Services,CHAS Scheme                             ,Supplies & Services           ,Services                      ,DF88,Assessor Fees,21/12/2012,100,"1,491.00",R,REDACTED
CS -Oth Operating Inc & Expend,T/A Corporate Services,CHAS Scheme                             ,Supplies & Services           ,Services                      ,DF88,Assessor Fees,08/11/2012,101,-500.65,R,ARC ASSOCIATES (UK)           
CS -Oth Operating Inc & Expend,T/A Corporate Services,CHAS Scheme                             ,Supplies & Services           ,Services                      ,DF88,Assessor Fees,26/10/2012,102,500.65,R,ARC ASSOCIATES (UK)           
CS -Oth Operating Inc & Expend,T/A Corporate Services,CHAS Scheme                             ,Supplies & Services           ,Services                      ,DF88,Assessor Fees,15/01/2013,103,"1,925.00",R,REDACTED
CS -Oth Operating Inc & Expend,T/A Corporate Services,CHAS Scheme                             ,Supplies & Services           ,Services                      ,DF88,Assessor Fees,31/12/2012,104,"1,315.00",R,REDACTED
CS -Oth Operating Inc & Expend,T/A Corporate Services,CHAS Scheme                             ,Supplies & Services           ,Grants and Subscriptions      ,DJ04,Subscriptions,02/01/2013,105,735.42,R,BM TRADER                     
Central Services,SupS Health & Safety,Strategic Personnel Management          ,Supplies & Services           ,Comms and Computing           ,DG09,Computer Purchases - Misc,14/01/2013,106,750,R,SPEECH CENTRE                 
,,Birches Close                           ,Other Capital Expenditure,,E1,Grants,14/11/2012,107,"291,923.91",C,ABILITY HOUSING ASSOCIATION   
,,Disabled Facilities Grant DCLG          ,Other Capital Expenditure,,E1,Grants,07/01/2013,108,"10,364.00",C,PREMIER ADAPTATIONS LTD       
,,Disabled Facilities Grant DCLG          ,Other Capital Expenditure,,E1,Grants,07/01/2013,109,"1,243.68",C,R E SHELLEY                   
,,Disabled Facilities Grant DCLG          ,Other Capital Expenditure,,E1,Grants,07/01/2013,110,"5,920.00",C,ASCENDIT LIFTS LTD            
,,Disabled Facilities Grant DCLG          ,Other Capital Expenditure,,E1,Grants,07/01/2013,111,940,C,SUTTON STAYING PUT            
,,Disabled Facilities Grant DCLG          ,Other Capital Expenditure,,E1,Grants,08/01/2013,112,"10,634.00",C,REDACTED
,,Disabled Facilities Grant DCLG          ,Other Capital Expenditure,,E1,Grants,09/01/2013,113,"5,500.00",C,VISTA SCAPES                  
,,Disabled Facilities Grant DCLG          ,Other Capital Expenditure,,E1,Grants,09/01/2013,114,"1,694.00",C,CBS ADAPTATION                
,,Disabled Facilities Grant DCLG          ,Other Capital Expenditure,,E1,Grants,16/01/2013,115,"2,726.00",C,ASCENDIT LIFTS LTD            
,,Disabled Facilities Grant DCLG          ,Other Capital Expenditure,,E1,Grants,16/01/2013,116,"7,180.00",C,ASCENDIT LIFTS LTD            
,,Disabled Facilities Grant DCLG          ,Other Capital Expenditure,,E1,Grants,28/01/2013,117,"2,460.00",C,ABLE 2 OCCUP.THERAPY SERV.LTD 
,,Disabled Facilities Grant DCLG          ,Other Capital Expenditure,,E1,Grants,28/01/2013,118,"3,660.00",C,R.E.B.BUILDERS                
,,Disabled Facilities Grant DCLG          ,Other Capital Expenditure,,E1,Grants,28/01/2013,119,"1,067.68",C,STAYING FIRST                 
,,Disabled Facilities Grant DCLG          ,Other Capital Expenditure,,E1,Grants,28/01/2013,120,"2,010.00",C,ASCENDIT LIFTS LTD            
,,Disabled Facilities Grant DCLG          ,Other Capital Expenditure,,E1,Grants,28/01/2013,121,966,C,TBS ADAPTATIONS LTD           
,,Disabled Facilities Grant DCLG          ,Other Capital Expenditure,,E1,Grants,28/01/2013,122,"2,390.00",C,R.E.B.BUILDERS                
,,Disabled Facilities Grant DCLG          ,Other Capital Expenditure,,E1,Grants,28/01/2013,123,711.72,C,REDACTED
,,Disabled Facilities Grant DCLG          ,Other Capital Expenditure,,E1,Grants,29/01/2013,124,"1,963.00",C,DIAS CARPENTRY & FITTING      
,,Disabled Facilities Grant DCLG          ,Other Capital Expenditure,,E1,Grants,31/01/2013,125,"1,730.44",C,STAYING FIRST                 
,,Small Repairs Grant                     ,Other Capital Expenditure,,E1,Grants,28/01/2013,126,"1,750.00",C,"HENDERSON BUILDING & URE CONS,"
,,Small Repairs Grant                     ,Other Capital Expenditure,,E1,Grants,28/01/2013,127,"2,016.00",C,HUNTER ROOFING                
,,Small Repairs Grant                     ,Other Capital Expenditure,,E1,Grants,31/01/2013,128,"4,000.00",C,S&S CONSTRUCTION              
,,WCA investment                          ,New Construction Conversion and Renovation,,B1,Design and Supervision - Consultants Fee,20/12/2012,129,"2,737.00",C,MARCUS BEALE ARCHITECTS       
,,Enhancement of Investment Prop          ,New Construction Conversion and Renovation,,B4,Site Works - Contractor,22/01/2013,130,"2,890.00",C,JUST METAL UK LTD             
,,PLAY SPACE POLLARDS HILL,New Construction Conversion and Renovation,,B4,Site Works - Contractor,03/12/2012,131,"10,453.74",C,BLAKEDOWN SPORT & PLAY LTD    
,,S106 South Park Gardens B346            ,New Construction Conversion and Renovation,,B4,Site Works - Contractor,03/01/2013,132,"7,130.00",C,TAYLOR BUILDING COMPANY LTD   
,,S106 South Park Gardens B346            ,New Construction Conversion and Renovation,,B4,Site Works - Contractor,03/01/2013,133,"7,000.00",C,TAYLOR BUILDING COMPANY LTD   
,,Trees for Cities                        ,Acquisition of Land and Existing Buildings,,A4,Other Acquisition Costs,17/01/2013,134,"3,071.80",C,TRANSF'M L/SCAPE DESIGN & CONS
,,Surface Water Drainage                  ,New Construction Conversion and Renovation,,B2,Design and Supervision - Site Surveys,03/01/2013,135,950,C,THE SAFETY FORUM LTD          
,,Surface Water Drainage                  ,New Construction Conversion and Renovation,,B4,Site Works - Contractor,21/01/2013,136,"3,890.62",C,FM CONWAY LTD                 
,,Highways bridges & structures           ,New Construction Conversion and Renovation,,B1,Design and Supervision - Consultants Fee,16/01/2013,137,"1,007.00",C,AECOM LIMITED                 
,,Highways bridges & structures           ,New Construction Conversion and Renovation,,B4,Site Works - Contractor,30/11/2012,138,"18,452.00",C,FM CONWAY LTD                 
,,Highways bridges & structures           ,New Construction Conversion and Renovation,,B4,Site Works - Contractor,31/12/2012,139,"12,406.90",C,FM CONWAY LTD                 
,,Highways bridges & structures           ,New Construction Conversion and Renovation,,B4,Site Works - Contractor,31/12/2012,140,"9,218.00",C,FM CONWAY LTD                 
,,Public Right of Way Improvemen          ,New Construction Conversion and Renovation,,B4,Site Works - Contractor,18/12/2012,141,"1,782.00",C,FM CONWAY LTD                 
,,Repairs to Footways                     ,New Construction Conversion and Renovation,,B4,Site Works - Contractor,19/12/2012,142,"5,000.00",C,FM CONWAY LTD                 
,,Repairs to Footways                     ,New Construction Conversion and Renovation,,B4,Site Works - Contractor,11/01/2013,143,"25,000.00",C,FM CONWAY LTD                 
,,Repairs to Footways                     ,New Construction Conversion and Renovation,,B4,Site Works - Contractor,21/01/2013,144,668.27,C,FM CONWAY LTD                 
,,Repairs to Footways                     ,New Construction Conversion and Renovation,,B4,Site Works - Contractor,11/01/2013,145,"1,144.72",C,FM CONWAY LTD                 
,,Wimbledon Park Watersport Cent          ,Vehicles Plant Equipment and Machinery,,D3,Equipment,22/01/2013,146,"6,200.00",C,KINGSBRIDGE CONSTRUCTION (UK) 
,,Wimbledon Park Watersport Cent          ,Vehicles Plant Equipment and Machinery,,D3,Equipment,20/01/2013,147,"1,500.00",C,SRK ENGINES                   
,,Wimbledon Park Watersport Cent          ,Vehicles Plant Equipment and Machinery,,D3,Equipment,20/01/2013,148,"7,600.00",C,SRK ENGINES                   
,,Leisure Centre Plant & Machine          ,New Construction Conversion and Renovation,,B4,Site Works - Contractor,17/12/2012,149,"5,000.00",C,CLARK AND KENT CONTRACTORS    
,,Leisure Centre Plant & Machine          ,New Construction Conversion and Renovation,,B4,Site Works - Contractor,17/12/2012,150,"7,910.25",C,STAMFORD CONTRACTS LIMITED    
,,Leisure Centre Plant & Machine          ,New Construction Conversion and Renovation,,B6,Site Works - Other Costs,07/01/2013,151,"2,958.00",C,UK POWER NETWORKS (OPERATIONS)
,,Garth Rd Workshop                       ,New Construction Conversion and Renovation,,B1,Design and Supervision - Consultants Fee,15/11/2012,152,556.5,C,ANDREW GODDARD ASSOCIATES LTD 
,,Improve markings & road signs           ,New Construction Conversion and Renovation,,B4,Site Works - Contractor,21/01/2013,153,"2,266.03",C,FM CONWAY LTD                 
,,Improve markings & road signs           ,New Construction Conversion and Renovation,,B4,Site Works - Contractor,11/01/2013,154,"5,769.20",C,FM CONWAY LTD                 
,,Improve markings & road signs           ,New Construction Conversion and Renovation,,B4,Site Works - Contractor,21/01/2013,155,"3,692.46",C,FM CONWAY LTD                 
,,Improve markings & road signs           ,New Construction Conversion and Renovation,,B4,Site Works - Contractor,21/01/2013,156,"10,000.00",C,FM CONWAY LTD                 
,,Improve markings & road signs           ,New Construction Conversion and Renovation,,B4,Site Works - Contractor,21/01/2013,157,"3,052.42",C,FM CONWAY LTD                 
,,Improve markings & road signs           ,Vehicles Plant Equipment and Machinery,,D5,Software,31/05/2012,158,"2,900.00",C,TRAFFIC SAFETY SYSTEMS LTD    
,,Improve markings & road signs           ,Vehicles Plant Equipment and Machinery,,D5,Software,22/06/2012,159,"1,200.00",C,TRAFFIC SAFETY SYSTEMS LTD    
,,Street scene enhancements               ,New Construction Conversion and Renovation,,B2,Design and Supervision - Site Surveys,04/12/2012,160,"2,900.00",C,LEOFRIC BUILDING SYSTEMS      
,,Street scene enhancements               ,New Construction Conversion and Renovation,,B4,Site Works - Contractor,22/01/2013,161,"10,610.00",C,TAYLOR BUILDING COMPANY LTD   
,,Street Lighting Replacement Pr          ,New Construction Conversion and Renovation,,B4,Site Works - Contractor,21/12/2012,162,615.03,C,MAY GURNEY LTD T/A CARTLEDGE  
,,Street Lighting Replacement Pr          ,New Construction Conversion and Renovation,,B4,Site Works - Contractor,21/12/2012,163,"1,163.47",C,MAY GURNEY LTD T/A CARTLEDGE  
,,Street Lighting Replacement Pr          ,New Construction Conversion and Renovation,,B4,Site Works - Contractor,21/12/2012,164,"7,685.12",C,MAY GURNEY LTD T/A CARTLEDGE  
,,Street Lighting Replacement Pr          ,New Construction Conversion and Renovation,,B4,Site Works - Contractor,21/12/2012,165,"5,386.81",C,MAY GURNEY LTD T/A CARTLEDGE  
,,Street Lighting Replacement Pr          ,New Construction Conversion and Renovation,,B4,Site Works - Contractor,16/01/2013,166,"2,262.81",C,MAY GURNEY LTD T/A CARTLEDGE  
,,Street Lighting Replacement Pr          ,New Construction Conversion and Renovation,,B4,Site Works - Contractor,16/01/2013,167,"2,095.72",C,MAY GURNEY LTD T/A CARTLEDGE  
,,Street Lighting Replacement Pr          ,New Construction Conversion and Renovation,,B4,Site Works - Contractor,16/01/2013,168,"2,887.78",C,MAY GURNEY LTD T/A CARTLEDGE  
,,Street Lighting Replacement Pr          ,New Construction Conversion and Renovation,,B4,Site Works - Contractor,25/01/2013,169,"7,282.59",C,MAY GURNEY LTD T/A CARTLEDGE  
,,B544 Wimbledon Station Access           ,New Construction Conversion and Renovation,,B4,Site Works - Contractor,17/12/2012,170,"15,234.69",C,MAY GURNEY LTD T/A CARTLEDGE  
,,B544 Wimbledon Station Access           ,New Construction Conversion and Renovation,,B4,Site Works - Contractor,21/11/2012,171,"8,478.22",C,MAY GURNEY LTD T/A CARTLEDGE  
,,B544 Wimbledon Station Access           ,New Construction Conversion and Renovation,,B4,Site Works - Contractor,21/11/2012,172,"5,000.00",C,MAY GURNEY LTD T/A CARTLEDGE  
,,B544 Wimbledon Station Access           ,New Construction Conversion and Renovation,,B4,Site Works - Contractor,14/12/2012,173,"-5,000.00",C,MAY GURNEY LTD T/A CARTLEDGE  
,,Waste Phase B - Replace RCVs            ,New Construction Conversion and Renovation,,B4,Site Works - Contractor,19/12/2012,174,"2,041.87",C,FM CONWAY LTD                 
,,Waste Phase B - Replace RCVs            ,New Construction Conversion and Renovation,,B4,Site Works - Contractor,11/01/2013,175,"-2,720.47",C,FM CONWAY LTD                 
,,Strategic corridor Mitcham              ,Other Capital Expenditure,,E4,TFL Other,18/01/2013,176,"2,500.00",C,THE CENTRE FOR ACCESSIBLE ENV.
,,Accesibility Programme                  ,New Construction Conversion and Renovation,,B4,Site Works - Contractor,18/12/2012,177,"23,073.43",C,FM CONWAY LTD                 
,,Casualty Reduction & Schools            ,New Construction Conversion and Renovation,,B4,Site Works - Contractor,18/12/2012,178,"6,288.22",C,FM CONWAY LTD                 
,,Casualty Reduction & Schools            ,New Construction Conversion and Renovation,,B4,Site Works - Contractor,21/01/2013,179,"1,074.43",C,FM CONWAY LTD                 
,,Casualty Reduction & Schools            ,New Construction Conversion and Renovation,,B4,Site Works - Contractor,25/01/2013,180,656.15,C,MAY GURNEY LTD T/A CARTLEDGE  
,,School & Road Safety Campaigns          ,Other Capital Expenditure,,E4,TFL Other,31/12/2012,181,"12,172.13",C,POLKA THEATRE FOR CHILDREN    
,,School & Road Safety Campaigns          ,Other Capital Expenditure,,E4,TFL Other,31/12/2012,182,"14,285.46",C,POLKA THEATRE FOR CHILDREN    
,,School & Road Safety Campaigns          ,Other Capital Expenditure,,E4,TFL Other,15/01/2013,183,"8,420.00",C,LIVING STREETS SERVICES LTD   
,,School & Road Safety Campaigns          ,Other Capital Expenditure,,E4,TFL Other,20/12/2012,184,"1,875.00",C,BIKEWIZE MOTORCYCLE TRAINING  
,,Car Clubs                               ,New Construction Conversion and Renovation,,B4,Site Works - Contractor,18/12/2012,185,506.19,C,FM CONWAY LTD                 
,,Morden Rd-Ravensbury-London Rd          ,New Construction Conversion and Renovation,,B4,Site Works - Contractor,19/12/2012,186,"2,682.32",C,FM CONWAY LTD                 
,,Morden Rd-Ravensbury-London Rd          ,New Construction Conversion and Renovation,,B4,Site Works - Contractor,19/12/2012,187,"54,987.64",C,FM CONWAY LTD                 
,,New Traffic Schemes                     ,New Construction Conversion and Renovation,,B4,Site Works - Contractor,11/01/2013,188,"90,000.00",C,FM CONWAY LTD                 
,,Civic C-Fire Alarm Panel                ,New Construction Conversion and Renovation,,B4,Site Works - Contractor,31/10/2012,189,"2,890.00",C,FIRST CHOICE FACILITIES PLC   
,,Civic C-Fire Alarm Panel                ,New Construction Conversion and Renovation,,B4,Site Works - Contractor,31/10/2012,190,"1,370.00",C,FIRST CHOICE FACILITIES PLC   
,,Civic Centre Windows                    ,New Construction Conversion and Renovation,,B2,Design and Supervision - Site Surveys,07/12/2012,191,"3,240.00",C,AIR SURVEYS  LIMITED          
,,Civic Centre Windows                    ,New Construction Conversion and Renovation,,B2,Design and Supervision - Site Surveys,30/11/2012,192,"2,250.00",C,POLE STRUCTURAL ENGINEERS     
,,Energy Utility Invest to Save           ,New Construction Conversion and Renovation,,B5,Site Works - Suppliers,12/12/2012,193,"7,489.38",C,THORLUX LIGHTING              
,,Energy Utility Invest to Save           ,New Construction Conversion and Renovation,,B5,Site Works - Suppliers,12/12/2012,194,"1,364.01",C,THORLUX LIGHTING              
,,Energy Utility Invest to Save           ,New Construction Conversion and Renovation,,B5,Site Works - Suppliers,28/11/2012,195,"1,731.73",C,THORLUX LIGHTING              
,,Gifford House Legal Move                ,New Construction Conversion and Renovation,,B4,Site Works - Contractor,11/12/2012,196,"1,333.50",C,SSD LIMITED                   
,,Gifford House Legal Move                ,New Construction Conversion and Renovation,,B4,Site Works - Contractor,11/12/2012,197,"1,116.50",C,SSD LIMITED                   
,,All Saints/ South Wim YCC exp           ,New Construction Conversion and Renovation,,B4,Site Works - Contractor,05/11/2012,198,"6,248.81",C,EXTRASPACE (NI) LTD           
,,All Saints/ South Wim YCC exp           ,Vehicles Plant Equipment and Machinery,,D3,Equipment,12/11/2012,199,972,C,IC2 CCTV & SECUR.SPEC. (UK)LTD
,,Hollymount Permanent Expansion          ,New Construction Conversion and Renovation,,B2,Design and Supervision - Site Surveys,20/12/2012,200,865.6,C,LLOYD BORE LTD                
,,Garden PCP                              ,New Construction Conversion and Renovation,,B1,Design and Supervision - Consultants Fee,26/11/2012,201,"24,012.88",C,EC HARRIS LLP                 
,,Hillcross School Expansion              ,New Construction Conversion and Renovation,,B1,Design and Supervision - Consultants Fee,21/12/2012,202,"7,448.10",C,CURL LA TOURELLE ARCHITECTS   
,,Hillcross School Expansion              ,New Construction Conversion and Renovation,,B2,Design and Supervision - Site Surveys,20/12/2012,203,680,C,MIDDLEMARCH ENVIRONMENTAL LTD 
,,Hillcross School Expansion              ,New Construction Conversion and Renovation,,B2,Design and Supervision - Site Surveys,20/12/2012,204,510,C,MIDDLEMARCH ENVIRONMENTAL LTD 
,,Hillcross School Expansion              ,New Construction Conversion and Renovation,,B2,Design and Supervision - Site Surveys,13/12/2012,205,"1,325.00",C,MK SURVEYS                    
,,Hillcross School Expansion              ,New Construction Conversion and Renovation,,B2,Design and Supervision - Site Surveys,20/12/2012,206,765,C,MIDDLEMARCH ENVIRONMENTAL LTD 
,,Lonesome - Window Replacement           ,New Construction Conversion and Renovation,,B4,Site Works - Contractor,20/12/2012,207,"36,113.00",C,R DURTNELL & SONS LTD         
,,Merton Abbey Temp Accomodation          ,New Construction Conversion and Renovation,,B2,Design and Supervision - Site Surveys,31/12/2012,208,"1,916.80",C,KEEGANS LIMITED               
,,Pelham School Expansion                 ,New Construction Conversion and Renovation,,B2,Design and Supervision - Site Surveys,31/12/2012,209,659.6,C,SIMON JONES ASSOCIATES LTD    
,,Cricket Grn Exp-Chapel Orchard          ,New Construction Conversion and Renovation,,B4,Site Works - Contractor,17/01/2013,210,"60,049.38",C,GEE CONSTRUCTION LTD          
,,St Anns - Primary                       ,New Construction Conversion and Renovation,,B4,Site Works - Contractor,01/01/2013,211,680.34,C,PORTAKABIN LIMITED            
,,Poplar Permanent Expansion              ,New Construction Conversion and Renovation,,B2,Design and Supervision - Site Surveys,31/12/2012,212,"2,676.36",C,KEEGANS LIMITED               
,,Singlegate expansion                    ,New Construction Conversion and Renovation,,B4,Site Works - Contractor,20/12/2012,213,"100,771.45",C,THOMAS SINDEN CONSTRUCTION LTD
,,Wimbledon Park expansion                ,New Construction Conversion and Renovation,,B1,Design and Supervision - Consultants Fee,31/12/2012,214,"2,400.00",C,SYNERGY CPC LLP               
,,Wimbledon Park expansion                ,New Construction Conversion and Renovation,,B4,Site Works - Contractor,16/01/2013,215,"11,032.77",C,GEE CONSTRUCTION LTD          
,,Merton Pk- Entrance adaptation          ,New Construction Conversion and Renovation,,B1,Design and Supervision - Consultants Fee,21/12/2012,216,"2,264.61",C,EC HARRIS LLP                 
,,Merton Pk- Entrance adaptation          ,New Construction Conversion and Renovation,,B4,Site Works - Contractor,17/12/2012,217,"17,165.00",C,R DURTNELL & SONS LTD         
,,Document Managemnt-Contractual          ,Vehicles Plant Equipment and Machinery,,D3,Equipment,14/12/2012,218,950,C,OPEN TEXT UK LTD              
,,IT Equipment                            ,Vehicles Plant Equipment and Machinery,,D3,Equipment,18/12/2012,219,"8,280.00",C,VIGLEN LIMITED                
,,IT Equipment                            ,Vehicles Plant Equipment and Machinery,,D3,Equipment,27/12/2012,220,900,C,COMPUTERLAND                  
,,IT Equipment                            ,Vehicles Plant Equipment and Machinery,,D3,Equipment,28/12/2012,221,"6,380.00",C,COMPUTERLAND                  
,,IT Strategy - unallocated               ,Other Capital Expenditure,,E3,Miscellaneous Capital Expenditure,20/12/2012,222,660,C,NETWORK SOLUTIONS INC         
,,IT Strategy - unallocated               ,Other Capital Expenditure,,E3,Miscellaneous Capital Expenditure,20/12/2012,223,540,C,NETWORK SOLUTIONS INC         
,,Stability Networks                      ,Vehicles Plant Equipment and Machinery,,D3,Equipment,14/11/2012,224,"21,780.00",C,COMPUTERLAND                  
,,Stability Networks                      ,Other Capital Expenditure,,E3,Miscellaneous Capital Expenditure,19/12/2012,225,"11,000.00",C,COMPUTERLAND                  
,,Proactis to Carefirst link              ,Vehicles Plant Equipment and Machinery,,D5,Software,31/12/2012,226,"2,400.00",C,UNISERVE CONSULTING LIMITED   
,,Cloud Computing - Cap Ambition          ,Other Capital Expenditure,,E3,Miscellaneous Capital Expenditure,19/12/2012,227,"1,980.00",C,EXFO EUROPE                   
Central Services,Council tax collection,Local Taxation Services                 ,Supplies & Services           ,Services                      ,DF11,Counsel's fees,26/11/2012,228,580,R,INCASSO DEBT RECOVERY         
Central Services,Council tax collection,Local Taxation Services                 ,Supplies & Services           ,Services                      ,DF11,Counsel's fees,26/11/2012,229,870,R,INCASSO DEBT RECOVERY         
Central Services,Council tax collection,Local Taxation Services                 ,Supplies & Services           ,Services                      ,DF18,Bailiffs' fees,22/10/2012,230,"4,800.00",R,ONESTEP SOLUTIONS PLC         
Central Services,Council tax collection,Local Taxation Services                 ,Supplies & Services           ,Services                      ,DF95,Services from Provider,31/12/2012,231,"18,044.00",R,DATATANK                      
Central Services,Council tax collection,Local Taxation Services                 ,Supplies & Services           ,Comms and Computing           ,DG09,Computer Purchases - Misc,14/01/2013,232,"35,000.00",R,CIVICA UK LIMITED             
Central Services,Council tax collection,Local Taxation Services                 ,Third Party Payments          ,Private Contractors           ,EH01,Miscellaneous Contrct Services,02/12/2012,233,"2,207.51",R,COMMERCIAL COLLECTION SERVICES
Central Services,Council tax collection,Local Taxation Services                 ,Support Services,Corporate Services,GB16,Legal,21/11/2012,234,920,R,WELBECK LAW LLP               
Central Services,Council tax collection,Local Taxation Services                 ,Support Services,Corporate Services,GB16,Legal,28/11/2012,235,920,R,WELBECK LAW LLP               
Central Services,Council tax collection,Local Taxation Services                 ,Support Services,Corporate Services,GB16,Legal,28/11/2012,236,656,R,WELBECK LAW LLP               
Central Services,Council tax collection,Local Taxation Services                 ,Support Services,Corporate Services,GB16,Legal,09/01/2013,237,920,R,WELBECK LAW LLP               
Central Services,Council tax collection,Local Taxation Bailiffs                 ,Supplies & Services           ,Services                      ,DF18,Bailiffs' fees,06/12/2012,238,"1,050.47",R,MAGRATH SECURITY              
Central Services,Council tax collection,Local Taxation Bailiffs                 ,Supplies & Services           ,Services                      ,DF18,Bailiffs' fees,21/12/2012,239,"1,645.80",R,GREASBY'S AUCTION ROOMS       
Central Services,Council tax collection,Local Taxation Bailiffs                 ,Supplies & Services           ,Services                      ,DF18,Bailiffs' fees,15/01/2013,240,845,R,GREASBY'S AUCTION ROOMS       
Housing Services,HB Administration,Benefits Administration                 ,Supplies & Services           ,Comms and Computing           ,DG09,Computer Purchases - Misc,27/12/2012,241,820.8,R,CIVICA UK LIMITED             
Housing Services,HB Administration,Benefits Administration                 ,Supplies & Services           ,Comms and Computing           ,DG09,Computer Purchases - Misc,08/01/2013,242,725,R,MAG:NET SOLUTIONS             
Central Services,SupS Payroll,Payroll                                 ,Supplies & Services           ,Comms and Computing           ,DG02,Software Licences,17/01/2013,243,715,R,TMP WORLDWIDE LTD             
Central Services,SupS Payroll,Payroll                                 ,Third Party Payments          ,Private Contractors           ,EH10,Contract Payments,10/12/2012,244,"12,803.45",R,LONDON BOROUGH OF SUTTON      
Central Services,SupS Payroll,Payroll                                 ,Third Party Payments          ,Private Contractors           ,EH10,Contract Payments,28/11/2012,245,"12,735.86",R,LONDON BOROUGH OF SUTTON      
Central Services,SupS Payroll,Payroll                                 ,Third Party Payments          ,Private Contractors           ,EH10,Contract Payments,20/11/2012,246,"1,460.80",R,LONDON BOROUGH OF SUTTON      
Central Services,SupS Payroll,Payroll                                 ,Third Party Payments          ,Private Contractors           ,EH10,Contract Payments,10/12/2012,247,"5,484.65",R,LONDON BOROUGH OF SUTTON      
Central Services,SupS Payroll,Payroll                                 ,Third Party Payments          ,Private Contractors           ,EH10,Contract Payments,28/11/2012,248,"5,523.78",R,LONDON BOROUGH OF SUTTON      
Central Services,SupS Payroll,Payroll                                 ,Third Party Payments          ,Private Contractors           ,EH10,Contract Payments,17/01/2013,249,"14,931.47",R,LONDON BOROUGH OF SUTTON      
Central Services,SupS Facilities,Post Room                               ,Supplies & Services           ,Comms and Computing           ,DG04,Postage - General,28/11/2012,250,630,R,TRAVELCARE                    
Central Services,SupS Facilities,Civic Centre                            ,Premises Related Expenditure  ,RepairsAlterations&MtceOfBldgs,BA29,Build Maint Mgt Fees,06/01/2013,251,"3,135.00",R,KH FLOORING LTD               
Central Services,SupS Facilities,Civic Centre                            ,Premises Related Expenditure  ,RepairsAlterations&MtceOfBldgs,BA29,Build Maint Mgt Fees,23/01/2013,252,"1,990.00",R,KH FLOORING LTD               
Central Services,SupS Facilities,Civic Centre                            ,Premises Related Expenditure  ,RepairsAlterations&MtceOfBldgs,BA29,Build Maint Mgt Fees,28/01/2013,253,"7,203.60",R,UNIQUE OFFICE SOLUTIONS LTD   
Central Services,SupS Facilities,Civic Centre                            ,Premises Related Expenditure  ,RepairsAlterations&MtceOfBldgs,BA29,Build Maint Mgt Fees,28/01/2013,254,"5,488.00",R,UNIQUE OFFICE SOLUTIONS LTD   
Central Services,SupS Facilities,Civic Centre                            ,Premises Related Expenditure  ,RepairsAlterations&MtceOfBldgs,BA29,Build Maint Mgt Fees,28/01/2013,255,"5,000.00",R,UNIQUE OFFICE SOLUTIONS LTD   
Central Services,SupS Facilities,Civic Centre                            ,Premises Related Expenditure  ,Cleaning and Domestic Supplies,BH01,Cleaning Materials,21/01/2013,256,510.6,R,GREENHAM                      
Central Services,SupS Facilities,Civic Centre                            ,Premises Related Expenditure  ,Cleaning and Domestic Supplies,BH03,Cleaning Services,01/12/2012,257,"3,035.93",R,BIRKIN CLEANING SERVICES LTD  
Central Services,SupS Facilities,Civic Centre                            ,Premises Related Expenditure  ,Cleaning and Domestic Supplies,BH03,Cleaning Services,01/12/2012,258,819.47,R,BIRKIN CLEANING SERVICES LTD  
Central Services,SupS Facilities,Civic Centre                            ,Premises Related Expenditure  ,Cleaning and Domestic Supplies,BH03,Cleaning Services,01/12/2012,259,"1,464.69",R,BIRKIN CLEANING SERVICES LTD  
Central Services,SupS Facilities,Civic Centre                            ,Premises Related Expenditure  ,Cleaning and Domestic Supplies,BH03,Cleaning Services,01/12/2012,260,"1,511.31",R,BIRKIN CLEANING SERVICES LTD  
Central Services,SupS Facilities,Civic Centre                            ,Premises Related Expenditure  ,Cleaning and Domestic Supplies,BH03,Cleaning Services,01/12/2012,261,"6,473.18",R,BIRKIN CLEANING SERVICES LTD  
Central Services,SupS Facilities,Civic Centre                            ,Premises Related Expenditure  ,Cleaning and Domestic Supplies,BH03,Cleaning Services,01/12/2012,262,"1,395.29",R,BIRKIN CLEANING SERVICES LTD  
Central Services,SupS Facilities,Civic Centre                            ,Premises Related Expenditure  ,Cleaning and Domestic Supplies,BH03,Cleaning Services,01/12/2012,263,"1,642.40",R,BIRKIN CLEANING SERVICES LTD  
Central Services,SupS Facilities,Civic Centre                            ,Premises Related Expenditure  ,Cleaning and Domestic Supplies,BH03,Cleaning Services,01/12/2012,264,"1,199.41",R,BIRKIN CLEANING SERVICES LTD  
Central Services,SupS Facilities,Civic Centre                            ,Premises Related Expenditure  ,Cleaning and Domestic Supplies,BH03,Cleaning Services,01/12/2012,265,"1,215.98",R,BIRKIN CLEANING SERVICES LTD  
Central Services,SupS Facilities,Civic Centre                            ,Supplies & Services           ,Equip Furniture/Materials     ,DA04,Materials,17/01/2013,266,995,R,CARDS & SPECIALIST SVS LTD.   
Central Services,SupS Facilities,Civic Centre                            ,Third Party Payments          ,Private Contractors           ,EH10,Contract Payments,21/12/2012,267,"3,752.79",R,ISS COLLECTIONS LTD           
Central Services,SupS Facilities,Morden Park House                       ,Third Party Payments          ,Private Contractors           ,EH02,Miscellaneous Hired Services,28/12/2012,268,520,R,GREENWORKS                    
Central Services,SupS Facilities,Facilities                              ,Employees                     ,Indirect Employee Expenses    ,AB02,Recruitment Adverts,16/11/2012,269,"1,245.00",R,HAYS RECRUITING EXPERTS       
Central Services,SupS Facilities,Facilities                              ,Employees                     ,Indirect Employee Expenses    ,AB02,Recruitment Adverts,17/12/2012,270,"4,000.00",R,HAYS EXECUTIVE                
Central Services,SupS Facilities,Facilities                              ,Premises Related Expenditure  ,RepairsAlterations&MtceOfBldgs,BA06,Repairs & Maintenance General,21/11/2012,271,"1,920.00",R,FORBO FLOORING UK LTD         
Central Services,SupS Facilities,Facilities                              ,Premises Related Expenditure  ,RepairsAlterations&MtceOfBldgs,BA06,Repairs & Maintenance General,15/01/2013,272,930,R,FORBO FLOORING UK LTD         
Central Services,SupS Facilities,Facilities                              ,Premises Related Expenditure  ,RepairsAlterations&MtceOfBldgs,BA06,Repairs & Maintenance General,15/01/2013,273,"5,760.00",R,FORBO FLOORING UK LTD         
Central Services,SupS Facilities,Corporate Services Buildings            ,Premises Related Expenditure  ,RepairsAlterations&MtceOfBldgs,BA01,DDM - General Building,07/11/2011,274,"1,995.00",R,EUROWINDOWS LIMITED           
Central Services,SupS Facilities,Corporate Services Buildings            ,Premises Related Expenditure  ,RepairsAlterations&MtceOfBldgs,BA01,DDM - General Building,21/01/2013,275,635,R,ACCORDIAL                     
Central Services,SupS Facilities,Corporate Services Buildings            ,Premises Related Expenditure  ,RepairsAlterations&MtceOfBldgs,BA03,DDM - Mechanical,18/12/2012,276,"4,098.21",R,COFELY LIMITED                
Central Services,SupS Facilities,Corporate Services Buildings            ,Premises Related Expenditure  ,RepairsAlterations&MtceOfBldgs,BA03,DDM - Mechanical,14/12/2012,277,938.43,R,COFELY LIMITED                
Central Services,SupS Facilities,Corporate Services Buildings            ,Premises Related Expenditure  ,RepairsAlterations&MtceOfBldgs,BA03,DDM - Mechanical,10/01/2013,278,"1,038.09",R,CHUBB FIRE & SECURITY LTD     
Central Services,SupS Facilities,Corporate Services Buildings            ,Premises Related Expenditure  ,RepairsAlterations&MtceOfBldgs,BA05,DDM - Electrical,30/06/2012,279,"1,097.00",R,FIRST CHOICE FACILITIES PLC   
Central Services,SupS Facilities,Corporate Services Buildings            ,Premises Related Expenditure  ,RepairsAlterations&MtceOfBldgs,BA05,DDM - Electrical,19/10/2012,280,"1,361.37",R,COFELY LIMITED                
Central Services,SupS Facilities,Corporate Services Buildings            ,Premises Related Expenditure  ,RepairsAlterations&MtceOfBldgs,BA05,DDM - Electrical,03/01/2013,281,812.5,R,AXIS ELEVATORS LTD            
Central Services,SupS Facilities,Corporate Services Buildings            ,Premises Related Expenditure  ,RepairsAlterations&MtceOfBldgs,BA05,DDM - Electrical,04/01/2013,282,572.22,R,EDMUNDSON ELECTRICAL LTD      
Central Services,SupS Facilities,Corporate Services Buildings            ,Premises Related Expenditure  ,RepairsAlterations&MtceOfBldgs,BA05,DDM - Electrical,07/01/2013,283,722.13,R,EDMUNDSON ELECTRICAL LTD      
Central Services,SupS Facilities,Corporate Services Buildings            ,Premises Related Expenditure  ,Water Services                ,BE01,Use of Water (Metered),28/12/2012,284,"1,035.75",R,SUTTON AND EAST SURREY WATER  
Central Services,SupS Facilities,Corporate Services Buildings            ,Premises Related Expenditure  ,Water Services                ,BE01,Use of Water (Metered),28/12/2012,285,"1,938.76",R,SUTTON AND EAST SURREY WATER  
Childrens & Education Services,Strategic Management,CSF Buildings                           ,Premises Related Expenditure  ,RepairsAlterations&MtceOfBldgs,BA06,Repairs & Maintenance General,10/01/2013,286,649,R,MILLBRIDGE PROPERTIES LIMITED 
Cultural Env Reg&Plan Services,Parks & Open Spaces,E & R Buildings                         ,Premises Related Expenditure  ,RepairsAlterations&MtceOfBldgs,BA03,DDM - Mechanical,18/12/2012,287,569.45,R,COFELY LIMITED                
Adult Social Care,PS u65 Day Care,C & H Buildings                         ,Premises Related Expenditure  ,RepairsAlterations&MtceOfBldgs,BA01,DDM - General Building,30/11/2012,288,544.77,R,SALTASH ENTERPRISES LTD       
Adult Social Care,PS u65 Day Care,C & H Buildings                         ,Premises Related Expenditure  ,RepairsAlterations&MtceOfBldgs,BA01,DDM - General Building,30/11/2012,289,637.2,R,SALTASH ENTERPRISES LTD       
Adult Social Care,PS u65 Day Care,C & H Buildings                         ,Premises Related Expenditure  ,RepairsAlterations&MtceOfBldgs,BA03,DDM - Mechanical,18/12/2012,290,694.4,R,COFELY LIMITED                
Adult Social Care,PS u65 Day Care,C & H Buildings                         ,Premises Related Expenditure  ,RepairsAlterations&MtceOfBldgs,BA03,DDM - Mechanical,11/01/2013,291,615,R,FIRST CHOICE FACILITIES PLC   
Adult Social Care,PS u65 Day Care,C & H Buildings                         ,Premises Related Expenditure  ,RepairsAlterations&MtceOfBldgs,BA03,DDM - Mechanical,11/01/2013,292,"1,213.00",R,FIRST CHOICE FACILITIES PLC   
Cultural Env Reg&Plan Services,Parks & Open Spaces,Leisure Buildings                       ,Premises Related Expenditure  ,RepairsAlterations&MtceOfBldgs,BA01,DDM - General Building,30/11/2012,293,530.67,R,SALTASH ENTERPRISES LTD       
Cultural Env Reg&Plan Services,Parks & Open Spaces,Leisure Buildings                       ,Premises Related Expenditure  ,RepairsAlterations&MtceOfBldgs,BA03,DDM - Mechanical,18/12/2012,294,668.48,R,COFELY LIMITED                
Cultural Env Reg&Plan Services,Parks & Open Spaces,Leisure Buildings                       ,Premises Related Expenditure  ,RepairsAlterations&MtceOfBldgs,BA05,DDM - Electrical,28/12/2012,295,580,R,BLOUNT SHUTTERS LIMITED       
Central Services,SupS DOF,BUSINESS PARTNERS                       ,Employees                     ,Direct Employee Expenses      ,AA17,Agency Staff & Casual Paymts,27/12/2012,296,"6,500.00",R,REDACTED
Central Services,SupS DOF,Director of Corporate Services          ,Supplies & Services           ,Services                      ,DF11,Counsel's fees,30/11/2012,297,"6,045.00",R,REDACTED
Central Services,SupS DOF,Director of Corporate Services          ,Supplies & Services           ,Services                      ,DF11,Counsel's fees,16/01/2013,298,"1,500.00",R,REDACTED
Central Services,SupS DOF,Director of Corporate Services          ,Supplies & Services           ,Services                      ,DF11,Counsel's fees,16/01/2013,299,500,R,REDACTED
Central Services,SupS DOF,AD RESOURCES                            ,Supplies & Services           ,Services                      ,DF03,Consultants,31/12/2012,300,"2,000.00",R,UNISERVE CONSULTING LIMITED   
Central Services,SupS DOF,AD RESOURCES                            ,Supplies & Services           ,Services                      ,DF03,Consultants,31/12/2012,301,"1,487.10",R,UNISERVE CONSULTING LIMITED   
Central Services,SupS DOF,AD RESOURCES                            ,Supplies & Services           ,Grants and Subscriptions      ,DJ04,Subscriptions,28/09/2012,302,700,R,CIPFA                         
Central Services,SupS  Risk and Insurance,Insurance Premiums & Funding            ,Supplies & Services           ,Services                      ,DF74,Insurance Premiums,20/12/2012,303,"3,600.00",R,ZURICH INSURANCE COMPANY      
Central Services,SupS  Risk and Insurance,Insurance Premiums & Funding            ,Supplies & Services           ,Services                      ,DF74,Insurance Premiums,20/12/2012,304,"3,600.00",R,ZURICH INSURANCE COMPANY      
Central Services,SupS  Risk and Insurance,Insurance Premiums & Funding            ,Supplies & Services           ,Services                      ,DF74,Insurance Premiums,27/12/2012,305,"39,000.00",R,ZURICH INSURANCE COMPANY      
Central Services,SupS Corporate Finance,Corporate Accountancy                   ,Employees                     ,Indirect Employee Expenses    ,AB57,External Training Costs,15/01/2013,306,"1,500.00",R,CIPFA                         
Central Services,SupS Corporate Finance,Corporate Accountancy                   ,Supplies & Services           ,Services                      ,DF58,Audit Fee,21/12/2012,307,"57,795.00",R,ERNST & YOUNG LLP             
Central Services,SupS Corporate Finance,Corporate Accountancy                   ,Supplies & Services           ,Services                      ,DF58,Audit Fee,21/12/2012,308,"5,250.00",R,ERNST & YOUNG LLP             
Central Services,SupS Corporate Finance,Corporate Accountancy                   ,Supplies & Services           ,Services                      ,DF58,Audit Fee,19/12/2012,309,"5,250.00",R,ERNST & YOUNG LLP             
Central Services,SupS Strategic Finance,Treasury & Insurance                    ,Employees                     ,Direct Employee Expenses      ,AA17,Agency Staff & Casual Paymts,09/01/2013,310,"1,550.00",R,REDACTED
Central Services,SupS Strategic Finance,Treasury & Insurance                    ,Employees                     ,Direct Employee Expenses      ,AA17,Agency Staff & Casual Paymts,04/01/2013,311,"3,430.00",R,REDACTED
Central Services,GENERATED ACCOUNT,Parking Cash Collect'n Contrct          ,Third Party Payments          ,Private Contractors           ,EH02,Miscellaneous Hired Services,30/11/2012,312,"11,204.00",R,BANKING AUTOMATION LTD        
Central Services,GENERATED ACCOUNT,Establishments' Cash Collect'n          ,Third Party Payments          ,Private Contractors           ,EH02,Miscellaneous Hired Services,03/03/2012,313,"2,400.00",R,FOCUS ON BANKING              
Central Services,GENERATED ACCOUNT,Establishments' Cash Collect'n          ,Third Party Payments          ,Private Contractors           ,EH02,Miscellaneous Hired Services,31/12/2012,314,556.4,R,LOOMIS UK LTD                 
Central Services,SupS DOF,Service Accountancy                     ,Employees                     ,Direct Employee Expenses      ,AA17,Agency Staff & Casual Paymts,07/01/2013,315,"3,680.00",R,REDACTED
Central Services,SupS DOF,Service Accountancy                     ,Employees                     ,Direct Employee Expenses      ,AA17,Agency Staff & Casual Paymts,11/12/2012,316,"2,300.00",R,REDACTED
Central Services,SupS Legal,AD CORPORATE GOVERNANCE               ,Employees                     ,Indirect Employee Expenses    ,AB57,External Training Costs,07/01/2013,317,"5,490.00",R,AMBERHAWK TRAINING LTD        
Central Services,SupS Legal,Legal Services                          ,Supplies & Services           ,Services                      ,DF11,Counsel's fees,22/01/2013,318,810,R,REDACTED
Central Services,SupS Legal,Legal Services                          ,Supplies & Services           ,Services                      ,DF28,Court Fees,10/01/2013,319,700,R,REDACTED
Central Services,SupS Legal,Legal Services                          ,Supplies & Services           ,Services                      ,DF28,Court Fees,10/01/2013,320,"1,900.00",R,REDACTED
Central Services,SupS Legal,Legal Services                          ,Supplies & Services           ,Services                      ,DF28,Court Fees,10/01/2013,321,"2,225.00",R,REDACTED
Central Services,SupS Legal,Legal Services                          ,Supplies & Services           ,Services                      ,DF28,Court Fees,10/01/2013,322,"2,225.00",R,REDACTED
Central Services,SupS Legal,Legal Services                          ,Supplies & Services           ,Services                      ,DF28,Court Fees,18/01/2013,323,860,R,REDACTED
Central Services,SupS Legal,Legal Services                          ,Supplies & Services           ,Services                      ,DF28,Court Fees,28/01/2013,324,"2,225.00",R,REDACTED
Central Services,SupS Legal,Legal Services                          ,Supplies & Services           ,Services                      ,DF28,Court Fees,28/01/2013,325,545,R,REDACTED
Central Services,SupS Legal,Shared Legal Service                    ,Supplies & Services           ,Equip Furniture/Materials     ,DA80,Books,09/11/2012,326,640.77,R,THOMSON REUTERS               
Central Services,SupS Legal,Shared Legal Service                    ,Supplies & Services           ,Services                      ,DF95,Services from Provider,19/11/2012,327,"1,299.40",R,KENT COUNTY COUNCIL           
Central Services,SupS Legal,Shared Legal Service                    ,Supplies & Services           ,Comms and Computing           ,DG02,Software Licences,20/12/2012,328,"13,086.47",R,LEXIS NEXIS                   
Central Services,SupS Legal,Shared Legal Service                    ,Supplies & Services           ,Comms and Computing           ,DG04,Postage - General,29/11/2012,329,757.5,R,NEOPOST FINANCE LIMITED       
Central Services,SupS Legal,Richmond Legal                          ,Supplies & Services           ,Services                      ,DF11,Counsel's fees,21/11/2012,330,"1,650.00",R,REDACTED
Central Services,SupS Legal,Richmond Legal                          ,Supplies & Services           ,Services                      ,DF11,Counsel's fees,14/11/2012,331,"1,790.00",R,REDACTED
Central Services,SupS Legal,Richmond Legal                          ,Supplies & Services           ,Services                      ,DF11,Counsel's fees,21/11/2012,332,"3,225.00",R,REDACTED
Central Services,SupS Legal,Richmond Legal                          ,Supplies & Services           ,Services                      ,DF11,Counsel's fees,04/12/2012,333,575,R,REDACTED
Central Services,SupS Legal,Richmond Legal                          ,Supplies & Services           ,Services                      ,DF11,Counsel's fees,03/12/2012,334,"1,850.00",R,REDACTED
Central Services,SupS Legal,Richmond Legal                          ,Supplies & Services           ,Services                      ,DF11,Counsel's fees,10/10/2012,335,"5,479.40",R,REDACTED
Central Services,SupS Legal,Richmond Legal                          ,Supplies & Services           ,Services                      ,DF11,Counsel's fees,02/01/2013,336,"2,400.00",R,REDACTED
Central Services,SupS Legal,Richmond Legal                          ,Supplies & Services           ,Services                      ,DF11,Counsel's fees,03/01/2013,337,"1,065.00",R,REDACTED
Central Services,SupS Legal,Richmond Legal                          ,Supplies & Services           ,Services                      ,DF11,Counsel's fees,16/11/2012,338,640,R,REDACTED
Central Services,SupS Legal,Richmond Legal                          ,Supplies & Services           ,Services                      ,DF11,Counsel's fees,24/12/2012,339,"1,535.00",R,REDACTED
Central Services,SupS Legal,Richmond Legal                          ,Supplies & Services           ,Services                      ,DF11,Counsel's fees,18/12/2012,340,"1,500.00",R,REDACTED
Central Services,SupS Legal,Richmond Legal                          ,Supplies & Services           ,Services                      ,DF11,Counsel's fees,11/12/2012,341,525,R,REDACTED
Central Services,SupS Legal,Richmond Legal                          ,Supplies & Services           ,Services                      ,DF11,Counsel's fees,21/12/2012,342,750,R,REDACTED
Central Services,SupS Legal,Richmond Legal                          ,Supplies & Services           ,Services                      ,DF11,Counsel's fees,12/11/2012,343,"1,500.00",R,REDACTED
Central Services,SupS Legal,Richmond Legal                          ,Supplies & Services           ,Services                      ,DF11,Counsel's fees,14/01/2013,344,"2,000.00",R,REDACTED
Central Services,SupS Legal,Richmond Legal                          ,Supplies & Services           ,Services                      ,DF11,Counsel's fees,24/12/2012,345,500,R,REDACTED
Central Services,SupS Legal,Richmond Legal                          ,Supplies & Services           ,Services                      ,DF11,Counsel's fees,11/12/2012,346,"1,040.00",R,REDACTED
Central Services,SupS Legal,Richmond Legal                          ,Supplies & Services           ,Services                      ,DF11,Counsel's fees,14/12/2012,347,"1,790.00",R,REDACTED
Central Services,SupS Legal,Richmond Legal                          ,Supplies & Services           ,Services                      ,DF11,Counsel's fees,17/09/2012,348,"1,791.00",R,REDACTED
Central Services,SupS Legal,Richmond Legal                          ,Supplies & Services           ,Services                      ,DF11,Counsel's fees,25/01/2013,349,"1,715.00",R,REDACTED
Central Services,SupS Legal,Richmond Legal                          ,Supplies & Services           ,Services                      ,DF11,Counsel's fees,15/01/2013,350,"1,500.00",R,REDACTED
Central Services,SupS Legal,Richmond Legal                          ,Supplies & Services           ,Services                      ,DF11,Counsel's fees,15/01/2013,351,500,R,REDACTED
Central Services,SupS Legal,Richmond Legal                          ,Supplies & Services           ,Services                      ,DF14,Doctors and other fees,14/11/2012,352,"2,550.00",R,REDACTED
Central Services,SupS Legal,Richmond Legal                          ,Supplies & Services           ,Services                      ,DF28,Court Fees,02/01/2013,353,"6,966.00",R,INDIGO PLANNING LIMITED       
Central Services,SupS Legal,Richmond Legal                          ,Supplies & Services           ,Services                      ,DF28,Court Fees,02/01/2013,354,"2,000.00",R,INDIGO PLANNING LIMITED       
Central Services,SupS Legal,Richmond Legal                          ,Supplies & Services           ,Services                      ,DF95,Services from Provider,31/10/2012,355,"1,412.40",R,SHOOSMITHS SOLICITORS         
Central Services,SupS Legal,Richmond Legal                          ,Supplies & Services           ,Services                      ,DF95,Services from Provider,18/01/2013,356,"14,037.34",R,DALTON WARNER DAVIS LLP       
Central Services,SupS IT,AD Business Improvement                 ,Employees                     ,Direct Employee Expenses      ,AA17,Agency Staff & Casual Paymts,20/12/2012,357,"2,260.00",R,HAYS RECRUITING EXPERTS       
Central Services,SupS IT,AD Business Improvement                 ,Employees                     ,Direct Employee Expenses      ,AA17,Agency Staff & Casual Paymts,14/12/2012,358,506,R,HAYS RECRUITING EXPERTS       
Central Services,SupS IT,AD Business Improvement                 ,Employees                     ,Direct Employee Expenses      ,AA17,Agency Staff & Casual Paymts,14/12/2012,359,"1,754.00",R,HAYS RECRUITING EXPERTS       
Central Services,SupS IT,AD Business Improvement                 ,Employees                     ,Direct Employee Expenses      ,AA17,Agency Staff & Casual Paymts,04/01/2013,360,904,R,HAYS RECRUITING EXPERTS       
Central Services,SupS IT,AD Business Improvement                 ,Employees                     ,Direct Employee Expenses      ,AA17,Agency Staff & Casual Paymts,24/12/2012,361,"2,260.00",R,HAYS RECRUITING EXPERTS       
Central Services,SupS IT,AD Business Improvement                 ,Employees                     ,Indirect Employee Expenses    ,AB02,Recruitment Adverts,24/05/2012,362,"2,330.00",R,PENNA COMMUNICATIONS (NO 2 A/C
Central Services,SupS IT,AD Business Improvement                 ,Employees                     ,Indirect Employee Expenses    ,AB02,Recruitment Adverts,17/12/2012,363,"7,900.00",R,HAYS EXECUTIVE                
Central Services,SupS IT,AD Business Improvement                 ,Employees                     ,Indirect Employee Expenses    ,AB02,Recruitment Adverts,06/11/2012,364,"1,500.00",R,HAYS RECRUITING EXPERTS       
Central Services,SupS IT,Corp Saving-Print Strategy              ,Supplies & Services           ,Equip Furniture/Materials     ,DA77,Photocopier Rental,28/11/2012,365,"29,750.00",R,ALTODIGITAL NETWORKS LTD      
Central Services,SupS IT,Corp Saving-Print Strategy              ,Supplies & Services           ,Equip Furniture/Materials     ,DA77,Photocopier Rental,28/11/2012,366,"5,115.66",R,ALTODIGITAL NETWORKS LTD      
Central Services,SupS IT,Corp Saving-Print Strategy              ,Supplies & Services           ,Prntng Stnry Gen Off Exp      ,DE06,Multi-Functional Printers     ,28/11/2012,367,"43,180.10",R,ALTODIGITAL NETWORKS LTD      
Central Services,SupS IT,AD I&T                                  ,Supplies & Services           ,Comms and Computing           ,DG63,Software Licences - Data,21/11/2012,368,"16,315.00",R,OPEN TEXT UK LTD              
Central Services,SupS IT,AD I&T                                  ,Supplies & Services           ,Comms and Computing           ,DG63,Software Licences - Data,21/11/2012,369,"3,263.00",R,OPEN TEXT UK LTD              
Central Services,SupS IT,Systems & Projects                      ,Supplies & Services           ,Comms and Computing           ,DG07,Computer Software,01/12/2012,370,"10,500.00",R,ALIGNED ASSETS                
Central Services,SupS IT,Operations & Telecomms                  ,Supplies & Services           ,Comms and Computing           ,DG15,Network Maintenance,24/12/2012,371,"3,517.50",R,NET-CTRL                      
Central Services,SupS IT,Operations & Telecomms                  ,Supplies & Services           ,Comms and Computing           ,DG15,Network Maintenance,24/12/2012,372,"1,495.00",R,NET-CTRL                      
Central Services,SupS IT,Operations & Telecomms                  ,Supplies & Services           ,Comms and Computing           ,DG54,Corporate Telephones,02/01/2013,373,"5,917.64",R,COLT TELECOMMUNICATIONS       
Central Services,SupS IT,Operations & Telecomms                  ,Supplies & Services           ,Comms and Computing           ,DG54,Corporate Telephones,01/04/2013,374,"7,591.64",R,T MOBILE (UK)                 
Central Services,SupS IT,Operations & Telecomms                  ,Supplies & Services           ,Comms and Computing           ,DG54,Corporate Telephones,29/12/2012,375,"1,035.00",R,O2 (UK) LIMITED               
Central Services,SupS IT,Distributed Services                    ,Supplies & Services           ,Comms and Computing           ,DG63,Software Licences - Data,26/11/2012,376,"44,493.29",R,PROACTIS GROUP LTD            
Central Services,SupS IT,Facilities Magt Cptal Works             ,Premises Related Expenditure  ,RepairsAlterations&MtceOfBldgs,BA01,DDM - General Building,17/08/2012,377,"1,169.38",R,COMPLEMENT CONSULTING LIMITED 
Central Services,SupS IT,Facilities Magt Cptal Works             ,Premises Related Expenditure  ,RepairsAlterations&MtceOfBldgs,BA01,DDM - General Building,01/07/2012,378,666,R,FRONTLINE DATA LIMITED        
Central Services,SupS IT,Facilities Magt Cptal Works             ,Premises Related Expenditure  ,RepairsAlterations&MtceOfBldgs,BA01,DDM - General Building,23/08/2012,379,"3,211.96",R,COMPLEMENT CONSULTING LIMITED 
Central Services,SupS IT,Facilities Magt Cptal Works             ,Premises Related Expenditure  ,RepairsAlterations&MtceOfBldgs,BA01,DDM - General Building,18/01/2013,380,"42,496.19",R,SALTASH ENTERPRISES LTD       
Central Services,SupS IT,Facilities Magt Cptal Works             ,Premises Related Expenditure  ,RepairsAlterations&MtceOfBldgs,BA29,Build Maint Mgt Fees,14/12/2012,381,"1,615.26",R,NETWORK BLINDS LIMITED        
Central Services,SupS IT,Facilities Magt Cptal Works             ,Premises Related Expenditure  ,RepairsAlterations&MtceOfBldgs,BA29,Build Maint Mgt Fees,02/01/2013,382,"2,520.00",R,UNIQUE OFFICE SOLUTIONS LTD   
Central Services,SupS IT,Customer Contact Programme              ,Employees                     ,Direct Employee Expenses      ,AA17,Agency Staff & Casual Paymts,30/11/2012,383,"3,350.00",R,REDACTED
Central Services,SupS IT,Customer Contact Programme              ,Employees                     ,Direct Employee Expenses      ,AA17,Agency Staff & Casual Paymts,31/12/2012,384,"3,350.00",R,REDACTED
Central Services,SupS IT,Customer Contact Programme              ,Employees                     ,Direct Employee Expenses      ,AA17,Agency Staff & Casual Paymts,17/12/2012,385,"6,700.00",R,REDACTED
Central Services,SupS IT,Customer Contact Programme              ,Employees                     ,Direct Employee Expenses      ,AA17,Agency Staff & Casual Paymts,16/01/2013,386,"4,020.00",R,REDACTED
Highways & Transport Services,Hwys/Rds (struct) not split,Surf Water Drainage                     ,Third Party Payments          ,Private Contractors           ,EH56,Carriageway/Fway Maint,30/11/2012,387,625,R,STILLWATER ASSOCIATES         
Highways & Transport Services,Hwys/Rds (struct) not split,Surf Water Drainage                     ,Third Party Payments          ,Private Contractors           ,EH56,Carriageway/Fway Maint,11/01/2013,388,"8,212.94",R,FM CONWAY LTD                 
Highways & Transport Services,Hwys/Rds (struct) not split,Surf Water Drainage                     ,Third Party Payments          ,Private Contractors           ,EH56,Carriageway/Fway Maint,11/01/2013,389,"1,547.91",R,FM CONWAY LTD                 
Highways & Transport Services,Repair prin/oth rds not split,Walk Sheets                             ,Third Party Payments          ,Private Contractors           ,EH56,Carriageway/Fway Maint,18/12/2012,390,"7,289.89",R,FM CONWAY LTD                 
Highways & Transport Services,Repair prin/oth rds not split,Walk Sheets                             ,Third Party Payments          ,Private Contractors           ,EH56,Carriageway/Fway Maint,18/12/2012,391,"2,171.16",R,FM CONWAY LTD                 
Highways & Transport Services,Repair prin/oth rds not split,Walk Sheets                             ,Third Party Payments          ,Private Contractors           ,EH56,Carriageway/Fway Maint,31/12/2012,392,"10,000.00",R,FM CONWAY LTD                 
Highways & Transport Services,Repair prin/oth rds not split,Walk Sheets                             ,Third Party Payments          ,Private Contractors           ,EH56,Carriageway/Fway Maint,31/12/2012,393,"10,000.00",R,FM CONWAY LTD                 
Highways & Transport Services,Repair prin/oth rds not split,Walk Sheets                             ,Third Party Payments          ,Private Contractors           ,EH56,Carriageway/Fway Maint,31/12/2012,394,"10,000.00",R,FM CONWAY LTD                 
Highways & Transport Services,Repair prin/oth rds not split,Walk Sheets                             ,Third Party Payments          ,Private Contractors           ,EH56,Carriageway/Fway Maint,31/12/2012,395,"3,832.31",R,FM CONWAY LTD                 
Highways & Transport Services,Repair prin/oth rds not split,Walk Sheets                             ,Third Party Payments          ,Private Contractors           ,EH56,Carriageway/Fway Maint,31/12/2012,396,"10,000.00",R,FM CONWAY LTD                 
Highways & Transport Services,Repair prin/oth rds not split,Walk Sheets                             ,Third Party Payments          ,Private Contractors           ,EH56,Carriageway/Fway Maint,31/12/2012,397,"6,167.69",R,FM CONWAY LTD                 
Highways & Transport Services,Repair prin/oth rds not split,Walk Sheets                             ,Third Party Payments          ,Private Contractors           ,EH56,Carriageway/Fway Maint,21/01/2013,398,"3,250.00",R,FM CONWAY LTD                 
Highways & Transport Services,Hwys/Rds (struct) not split,"Br., H'ways & Struct                    ",Premises Related Expenditure  ,RepairsAlterations&MtceOfBldgs,BA59,Periodic Inspections,14/01/2013,399,"5,749.30",R,AECOM LIMITED                 
Highways & Transport Services,Hwys/Rds (struct) not split,"Br., H'ways & Struct                    ",Third Party Payments          ,Private Contractors           ,EH56,Carriageway/Fway Maint,11/01/2013,400,"4,105.42",R,FM CONWAY LTD                 
Highways & Transport Services,Winter Maintenance.,Winter Maintenance                      ,Third Party Payments          ,Other Local Authorities       ,EB50,OLA-Payments - Day Schools,08/01/2013,401,"1,794.67",R,SALT UNION LIMITED            
Highways & Transport Services,Winter Maintenance.,Winter Maintenance                      ,Third Party Payments          ,Other Local Authorities       ,EB50,OLA-Payments - Day Schools,09/01/2013,402,"4,532.52",R,SALT UNION LIMITED            
Highways & Transport Services,Winter Maintenance.,Winter Maintenance                      ,Third Party Payments          ,Other Local Authorities       ,EB50,OLA-Payments - Day Schools,04/01/2013,403,"1,812.07",R,SALT UNION LIMITED            
Highways & Transport Services,Winter Maintenance.,Winter Maintenance                      ,Third Party Payments          ,Other Local Authorities       ,EB50,OLA-Payments - Day Schools,11/01/2013,404,"1,870.30",R,SALT UNION LIMITED            
Highways & Transport Services,Winter Maintenance.,Winter Maintenance                      ,Third Party Payments          ,Other Local Authorities       ,EB50,OLA-Payments - Day Schools,14/01/2013,405,"8,421.72",R,SALT UNION LIMITED            
Highways & Transport Services,Winter Maintenance.,Winter Maintenance                      ,Third Party Payments          ,Other Local Authorities       ,EB50,OLA-Payments - Day Schools,07/01/2013,406,"3,568.57",R,SALT UNION LIMITED            
Highways & Transport Services,Winter Maintenance.,Winter Maintenance                      ,Third Party Payments          ,Other Local Authorities       ,EB50,OLA-Payments - Day Schools,10/01/2013,407,"5,458.29",R,SALT UNION LIMITED            
Highways & Transport Services,Winter Maintenance.,Winter Maintenance                      ,Third Party Payments          ,Other Local Authorities       ,EB50,OLA-Payments - Day Schools,15/01/2013,408,"2,684.30",R,SALT UNION LIMITED            
Highways & Transport Services,Winter Maintenance.,Winter Maintenance                      ,Third Party Payments          ,Other Local Authorities       ,EB50,OLA-Payments - Day Schools,16/01/2013,409,"1,895.74",R,SALT UNION LIMITED            
Highways & Transport Services,Winter Maintenance.,Winter Maintenance                      ,Third Party Payments          ,Private Contractors           ,EH56,Carriageway/Fway Maint,08/01/2013,410,"4,860.00",R,MET OFFICE                    
Highways & Transport Services,Saf mtc prin/oth rds not split,Traffic Signs.                          ,Third Party Payments          ,Private Contractors           ,EH01,Miscellaneous Contrct Services,21/12/2012,411,661.54,R,MAY GURNEY LTD T/A CARTLEDGE  
Highways & Transport Services,Saf mtc prin/oth rds not split,Traffic Signs.                          ,Third Party Payments          ,Private Contractors           ,EH02,Miscellaneous Hired Services,19/12/2012,412,"4,580.73",R,FM CONWAY LTD                 
Highways & Transport Services,Saf mtc prin/oth rds not split,Traffic Signals .                       ,Third Party Payments          ,Other Agencies                ,EJ57,Traffic Signals Control Unit,17/01/2013,413,"76,361.60",R,TRANSPORT FOR LONDON          
Highways & Transport Services,Saf mtc prin/oth rds not split,Traffic Signals .                       ,Third Party Payments          ,Other Agencies                ,EJ57,Traffic Signals Control Unit,17/01/2013,414,"76,361.60",R,TRANSPORT FOR LONDON          
Highways & Transport Services,Transport Plg/Policy/Strategy,CPZ implementation & Consultat          ,Supplies & Services           ,Services                      ,DF02,Misc Advertising/Publicity,19/12/2012,415,812.82,R,TMP WORLDWIDE LTD             
Highways & Transport Services,Transport Plg/Policy/Strategy,CPZ implementation & Consultat          ,Supplies & Services           ,Services                      ,DF02,Misc Advertising/Publicity,15/12/2012,416,702.72,R,NEWSQUEST (LONDON)LTD         
Highways & Transport Services,Transport Plg/Policy/Strategy,CPZ implementation & Consultat          ,Third Party Payments          ,Private Contractors           ,EH56,Carriageway/Fway Maint,18/12/2012,417,"2,773.68",R,FM CONWAY LTD                 
Highways & Transport Services,Transport Plg/Policy/Strategy,CPZ implementation & Consultat          ,Third Party Payments          ,Private Contractors           ,EH56,Carriageway/Fway Maint,18/12/2012,418,"2,702.64",R,FM CONWAY LTD                 
Highways & Transport Services,Transport Plg/Policy/Strategy,CPZ implementation & Consultat          ,Third Party Payments          ,Private Contractors           ,EH56,Carriageway/Fway Maint,18/12/2012,419,"15,000.00",R,FM CONWAY LTD                 
Highways & Transport Services,Transport Plg/Policy/Strategy,CPZ implementation & Consultat          ,Third Party Payments          ,Private Contractors           ,EH56,Carriageway/Fway Maint,18/12/2012,420,"20,230.00",R,FM CONWAY LTD                 
Highways & Transport Services,Transport Plg/Policy/Strategy,CPZ implementation & Consultat          ,Third Party Payments          ,Private Contractors           ,EH56,Carriageway/Fway Maint,11/01/2013,421,"8,012.59",R,FM CONWAY LTD                 
Highways & Transport Services,Street Lighting.,Street Lighting .                       ,Third Party Payments          ,Private Contractors           ,EH01,Miscellaneous Contrct Services,20/12/2012,422,877,R,UK POWER NETWORKS (OPERATIONS)
Highways & Transport Services,Street Lighting.,Street Lighting .                       ,Third Party Payments          ,Private Contractors           ,EH01,Miscellaneous Contrct Services,21/12/2012,423,"13,947.98",R,MAY GURNEY LTD T/A CARTLEDGE  
Highways & Transport Services,Street Lighting.,Street Lighting .                       ,Third Party Payments          ,Private Contractors           ,EH01,Miscellaneous Contrct Services,20/12/2012,424,877,R,UK POWER NETWORKS (OPERATIONS)
Highways & Transport Services,Street Lighting.,Street Lighting .                       ,Third Party Payments          ,Private Contractors           ,EH01,Miscellaneous Contrct Services,21/12/2012,425,"2,127.52",R,MAY GURNEY LTD T/A CARTLEDGE  
Highways & Transport Services,Street Lighting.,Street Lighting .                       ,Third Party Payments          ,Private Contractors           ,EH01,Miscellaneous Contrct Services,16/01/2013,426,660.92,R,MAY GURNEY LTD T/A CARTLEDGE  
Highways & Transport Services,Street Lighting.,Street Lighting .                       ,Third Party Payments          ,Private Contractors           ,EH01,Miscellaneous Contrct Services,16/01/2013,427,"1,070.19",R,MAY GURNEY LTD T/A CARTLEDGE  
Highways & Transport Services,Street Lighting.,Street Lighting .                       ,Third Party Payments          ,Private Contractors           ,EH01,Miscellaneous Contrct Services,16/01/2013,428,"1,296.28",R,MAY GURNEY LTD T/A CARTLEDGE  
Highways & Transport Services,Street Lighting.,Street Lighting .                       ,Third Party Payments          ,Private Contractors           ,EH01,Miscellaneous Contrct Services,16/01/2013,429,969.81,R,MAY GURNEY LTD T/A CARTLEDGE  
Highways & Transport Services,Street Lighting.,Street Lighting .                       ,Third Party Payments          ,Private Contractors           ,EH01,Miscellaneous Contrct Services,16/01/2013,430,"2,751.60",R,MAY GURNEY LTD T/A CARTLEDGE  
Highways & Transport Services,Street Lighting.,Street Lighting .                       ,Third Party Payments          ,Private Contractors           ,EH01,Miscellaneous Contrct Services,23/01/2013,431,644,R,UK POWER NETWORKS (OPERATIONS)
Highways & Transport Services,Street Lighting.,Street Lighting .                       ,Third Party Payments          ,Private Contractors           ,EH01,Miscellaneous Contrct Services,23/01/2013,432,644,R,UK POWER NETWORKS (OPERATIONS)
Highways & Transport Services,Street Lighting.,Street Lighting .                       ,Third Party Payments          ,Private Contractors           ,EH01,Miscellaneous Contrct Services,23/01/2013,433,644,R,UK POWER NETWORKS (OPERATIONS)
Highways & Transport Services,Street Lighting.,Street Lighting .                       ,Third Party Payments          ,Private Contractors           ,EH01,Miscellaneous Contrct Services,25/01/2013,434,"13,947.98",R,MAY GURNEY LTD T/A CARTLEDGE  
Highways & Transport Services,Street Lighting.,Street Lighting .                       ,Third Party Payments          ,Private Contractors           ,EH01,Miscellaneous Contrct Services,23/01/2013,435,644,R,UK POWER NETWORKS (OPERATIONS)
Highways & Transport Services,Street Lighting.,Street Lighting .                       ,Third Party Payments          ,Private Contractors           ,EH01,Miscellaneous Contrct Services,25/01/2013,436,767.55,R,MAY GURNEY LTD T/A CARTLEDGE  
Highways & Transport Services,Street Lighting.,Street Lighting .                       ,Third Party Payments          ,Private Contractors           ,EH01,Miscellaneous Contrct Services,25/01/2013,437,722.16,R,MAY GURNEY LTD T/A CARTLEDGE  
Highways & Transport Services,Street Lighting.,Street Lighting .                       ,Third Party Payments          ,Private Contractors           ,EH01,Miscellaneous Contrct Services,25/01/2013,438,"1,873.44",R,MAY GURNEY LTD T/A CARTLEDGE  
Highways & Transport Services,Off-street parking,Elm Nursery                             ,Premises Related Expenditure  ,RepairsAlterations&MtceOfBldgs,BA06,Repairs & Maintenance General,09/01/2013,439,525,R,TEASDALE GROUP LTD            
Highways & Transport Services,Off-street parking,St. Georges Car Park WEST M/S           ,Premises Related Expenditure  ,RepairsAlterations&MtceOfBldgs,BA06,Repairs & Maintenance General,21/12/2012,440,515.02,R,CARTLEDGE                     
Highways & Transport Services,Off-street parking,St. Georges Car Park WEST M/S           ,Premises Related Expenditure  ,Energy Costs                  ,BB02,Electricity,03/01/2013,441,"1,269.66",R,KENT COUNTY COUNCIL           
Highways & Transport Services,Off-street parking,W'don Broadway C P                      ,Premises Related Expenditure  ,RepairsAlterations&MtceOfBldgs,BA06,Repairs & Maintenance General,02/01/2013,442,"1,426.66",R,FM CONWAY LTD                 
Highways & Transport Services,Off-street parking,Raleigh Gardens C P                     ,Premises Related Expenditure  ,RepairsAlterations&MtceOfBldgs,BA06,Repairs & Maintenance General,02/01/2013,443,"1,935.09",R,FM CONWAY LTD                 
Highways & Transport Services,Off-street parking,"St. Mks Rd, Multi Sty                   ",Premises Related Expenditure  ,Energy Costs                  ,BB02,Electricity,16/01/2013,444,982.19,R,EDF ENERGY 1 LIMITED          
Highways & Transport Services,Off-street parking,"St. Mks Rd, Multi Sty                   ",Premises Related Expenditure  ,Rents                         ,BC01,Miscellaneous Rents,19/10/2012,445,"4,015.21",R,FISHER PROPERTY CONSULTANTS   
Highways & Transport Services,On-street parking,On Street Parking.                      ,Premises Related Expenditure  ,RepairsAlterations&MtceOfBldgs,BA06,Repairs & Maintenance General,09/01/2013,446,"1,188.87",R,TEASDALE GROUP LTD            
Highways & Transport Services,Parking Enforcement not split,Operational Running Costs               ,Supplies & Services           ,Prntng Stnry Gen Off Exp      ,DE01,External Printing,14/01/2013,447,"1,724.97",R,LIBERTY SERVICES              
Highways & Transport Services,Parking Enforcement not split,Operational Running Costs               ,Supplies & Services           ,Comms and Computing           ,DG61,Computer Servs Special,31/12/2012,448,529.2,R,IMPERIAL CIVIL ENFORC.SOLUT.  
Highways & Transport Services,Parking Enforcement not split,Operational Running Costs               ,Third Party Payments          ,Other Agencies                ,EJ58,Parking Cttee for London,04/01/2013,449,"10,000.00",R,HMCTS                         
Highways & Transport Services,Parking Enforcement not split,Operational Running Costs               ,Third Party Payments          ,Other Agencies                ,EJ58,Parking Cttee for London,16/01/2013,450,"10,000.00",R,HMCTS                         
Highways & Transport Services,Parking Enforcement not split,Operational Running Costs               ,Third Party Payments          ,Other Agencies                ,EJ58,Parking Cttee for London,19/01/2013,451,"11,000.00",R,HMCTS                         
Highways & Transport Services,Parking Enforcement not split,Operational Running Costs               ,Third Party Payments          ,Other Agencies                ,EJ58,Parking Cttee for London,09/01/2013,452,"18,522.37",R,LONDON COUNCILS               
Highways & Transport Services,Repair prin/oth rds not split,Sewers - LBM                            ,Third Party Payments          ,Private Contractors           ,EH02,Miscellaneous Hired Services,14/01/2013,453,"20,000.00",R,FM CONWAY LTD                 
Highways & Transport Services,Repair prin/oth rds not split,Flood Risk Management                   ,Supplies & Services           ,Services                      ,DF03,Consultants,12/12/2012,454,"9,606.10",R,URS INFRASTRUCTURE & ENV UK LT
Highways & Transport Services,Repair prin/oth rds not split,Flood Risk Management                   ,Supplies & Services           ,Grants and Subscriptions      ,DJ04,Subscriptions,01/11/2012,455,"1,000.00",R,LONDON BOROUGH OF BARNET      
Highways & Transport Services,Hwys/Rds (struct) not split,NRSWA Permitting (LoPS)                 ,Employees                     ,Indirect Employee Expenses    ,AB57,External Training Costs,19/12/2012,456,"1,790.00",R,STREETWORK SOLUTIONS LTD      
Highways & Transport Services,Hwys/Rds (struct) not split,NRSWA Permitting (LoPS)                 ,Employees                     ,Indirect Employee Expenses    ,AB57,External Training Costs,15/01/2013,457,950,R,STREETWORK SOLUTIONS LTD      
Highways & Transport Services,Hwys/Rds (struct) not split,Footpath Crossings.                     ,Third Party Payments          ,Private Contractors           ,EH56,Carriageway/Fway Maint,20/12/2012,458,877,R,UK POWER NETWORKS (OPERATIONS)
Highways & Transport Services,Hwys/Rds (struct) not split,Footpath Crossings.                     ,Third Party Payments          ,Private Contractors           ,EH56,Carriageway/Fway Maint,11/01/2013,459,"2,086.58",R,FM CONWAY LTD                 
Cultural Env Reg&Plan Services,Street Clean - Not highways,Street Cleansing (Inc. Gully)           ,Supplies & Services           ,Equip Furniture/Materials     ,DA08,Tools-Purchase,21/12/2012,460,"1,703.30",R,BELL BRUSH                    
Cultural Env Reg&Plan Services,Street Clean - Not highways,Street Cleansing (Inc. Gully)           ,Supplies & Services           ,Equip Furniture/Materials     ,DA08,Tools-Purchase,21/01/2013,461,533.5,R,BELL BRUSH                    
Cultural Env Reg&Plan Services,Street Clean - Not highways,Street Cleansing (Inc. Gully)           ,Supplies & Services           ,Equip Furniture/Materials     ,DA08,Tools-Purchase,21/01/2013,462,"1,000.00",R,BELL BRUSH                    
Cultural Env Reg&Plan Services,Street Clean - Not highways,Street Cleansing (Inc. Gully)           ,Supplies & Services           ,Equip Furniture/Materials     ,DA31,Waste Sacks & Bags,19/12/2012,463,926.1,R,POLARIS PLASTICS LTD          
Cultural Env Reg&Plan Services,Street Clean - Not highways,Street Cleansing (Inc. Gully)           ,Supplies & Services           ,Equip Furniture/Materials     ,DA32,Wheeled Bins,16/12/2012,464,"3,274.00",R,ESE                           
Cultural Env Reg&Plan Services,Street Clean - Not highways,Street Cleansing (Inc. Gully)           ,Supplies & Services           ,Clothing Unfrms Laundry       ,DC02,Clothing & Uniforms,03/01/2013,465,860,R,SAFETY MANAGEMENT             
Cultural Env Reg&Plan Services,Street Clean - Not highways,Graffiti                                ,Supplies & Services           ,Clothing Unfrms Laundry       ,DC02,Clothing & Uniforms,20/11/2012,466,"1,543.58",R,SAFETY MANAGEMENT             
Cultural Env Reg&Plan Services,Waste Disposal (not separated),Waste Disposal .                        ,Third Party Payments          ,Private Contractors           ,EH01,Miscellaneous Contrct Services,31/12/2012,467,"2,400.09",R,S.GRUNDON (WASTE) LTD.        
Cultural Env Reg&Plan Services,Waste Disposal (not separated),Waste Disposal .                        ,Third Party Payments          ,Private Contractors           ,EH11,Agency Staff Clerk of Works,19/12/2012,468,"166,300.00",R,KINGSTON CORPORATION          
Cultural Env Reg&Plan Services,Waste Disposal (not separated),Waste Disposal .                        ,Third Party Payments          ,Private Contractors           ,EH66,Clinical Waste Disposal,31/12/2012,469,735.41,R,S.GRUNDON (WASTE) LTD.        
Cultural Env Reg&Plan Services,Waste Disposal (not separated),Waste Disposal .                        ,Third Party Payments          ,Private Contractors           ,EH96,Gen Waste - Alt.  Contractor  ,31/12/2012,470,"2,076.87",R,CORY ENVIRONMENTAL LIMITED    
Cultural Env Reg&Plan Services,Civic Amenity Sites,Garth Road Site                         ,Supplies & Services           ,Equip Furniture/Materials     ,DA70,Milk and Meals,27/12/2012,471,"13,181.00",R,MATTIUSSI UK                  
Cultural Env Reg&Plan Services,Civic Amenity Sites,Garth Road Site                         ,Third Party Payments          ,Private Contractors           ,EH01,Miscellaneous Contrct Services,01/11/2012,472,"12,433.74",R,KINGSTON CORPORATION          
Highways & Transport Services,Hwys/Rds (struct) not split,Grass Cut/Tr Mtce                       ,Employees                     ,Direct Employee Expenses      ,AA17,Agency Staff & Casual Paymts,15/01/2013,473,"5,148.00",R,REDACTED
Highways & Transport Services,Hwys/Rds (struct) not split,Grass Cut/Tr Mtce                       ,Employees                     ,Direct Employee Expenses      ,AA17,Agency Staff & Casual Paymts,15/01/2013,474,"1,612.00",R,REDACTED
Highways & Transport Services,Hwys/Rds (struct) not split,Grass Cut/Tr Mtce                       ,Premises Related Expenditure  ,Ground Maintenance Costs      ,BL03,Maintenance of Grounds,18/12/2012,475,645.52,R,VEOLIA ES (UK) LIMITED        
Highways & Transport Services,Hwys/Rds (struct) not split,Grass Cut/Tr Mtce                       ,Premises Related Expenditure  ,Ground Maintenance Costs      ,BL03,Maintenance of Grounds,18/12/2012,476,712.15,R,VEOLIA ES (UK) LIMITED        
Highways & Transport Services,Hwys/Rds (struct) not split,Grass Cut/Tr Mtce                       ,Premises Related Expenditure  ,Ground Maintenance Costs      ,BL03,Maintenance of Grounds,18/12/2012,477,"1,679.20",R,VEOLIA ES (UK) LIMITED        
Highways & Transport Services,Hwys/Rds (struct) not split,Grass Cut/Tr Mtce                       ,Premises Related Expenditure  ,Ground Maintenance Costs      ,BL03,Maintenance of Grounds,18/12/2012,478,"1,268.13",R,VEOLIA ES (UK) LIMITED        
Highways & Transport Services,Hwys/Rds (struct) not split,Grass Cut/Tr Mtce                       ,Premises Related Expenditure  ,Ground Maintenance Costs      ,BL03,Maintenance of Grounds,24/12/2012,479,678.62,R,VEOLIA ES (UK) LIMITED        
Highways & Transport Services,Hwys/Rds (struct) not split,Grass Cut/Tr Mtce                       ,Premises Related Expenditure  ,Ground Maintenance Costs      ,BL03,Maintenance of Grounds,24/12/2012,480,903.52,R,VEOLIA ES (UK) LIMITED        
Highways & Transport Services,Hwys/Rds (struct) not split,Grass Cut/Tr Mtce                       ,Premises Related Expenditure  ,Ground Maintenance Costs      ,BL03,Maintenance of Grounds,02/01/2013,481,"4,689.34",R,VEOLIA ES (UK) LIMITED        
Highways & Transport Services,Hwys/Rds (struct) not split,Grass Cut/Tr Mtce                       ,Premises Related Expenditure  ,Ground Maintenance Costs      ,BL03,Maintenance of Grounds,02/01/2013,482,"13,490.38",R,VEOLIA ES (UK) LIMITED        
Cultural Env Reg&Plan Services,Public Health,Dog Control.                            ,Third Party Payments          ,Private Contractors           ,EH02,Miscellaneous Hired Services,04/01/2013,483,"3,254.00",R,NOAH'S ARK ENVIRONMENTAL SERV.
Cultural Env Reg&Plan Services,Recycling (Collection),Recycling Activities                    ,Supplies & Services           ,Equip Furniture/Materials     ,DA04,Materials,08/01/2013,484,"2,418.00",R,LONDON LETTERBOX MARKETING    
Cultural Env Reg&Plan Services,Recycling (Collection),Recycling Activities                    ,Supplies & Services           ,Equip Furniture/Materials     ,DA32,Wheeled Bins,14/12/2012,485,"3,566.50",R,SPIDER UK LTD                 
Cultural Env Reg&Plan Services,Recycling (Collection),Recycling Activities                    ,Third Party Payments          ,Private Contractors           ,EH61,Green Waste Disposal,31/12/2012,486,"6,221.55",R,VIRIDOR WASTE KENT LTD        
Cultural Env Reg&Plan Services,Recycling (Collection),BARROW AND BINS REPLACEMENT        ,Supplies & Services           ,Equip Furniture/Materials     ,DA54,Recycling Containers,10/01/2013,487,"6,048.00",R,STRAIGHT PLC                  
Cultural Env Reg&Plan Services,Recycling (Collection),Recycling Collection                    ,Supplies & Services           ,Clothing Unfrms Laundry       ,DC02,Clothing & Uniforms,14/12/2012,488,-758.1,R,SAFETY MANAGEMENT             
Cultural Env Reg&Plan Services,Recycling (Collection),Recycling Collection                    ,Supplies & Services           ,Clothing Unfrms Laundry       ,DC02,Clothing & Uniforms,20/11/2012,489,"1,476.41",R,SAFETY MANAGEMENT             
Cultural Env Reg&Plan Services,Recycling (Collection),Recycling Collection                    ,Supplies & Services           ,Clothing Unfrms Laundry       ,DC02,Clothing & Uniforms,03/01/2013,490,860,R,SAFETY MANAGEMENT             
Cultural Env Reg&Plan Services,Household Waste Collection,Refuse Collection (Operations)          ,Employees                     ,Direct Employee Expenses      ,AA96,SALARY SACRIFICE (TEACHERS),08/03/2012,491,833.33,R,F.W.EVANS CYCLES (UK) LTD.    
Cultural Env Reg&Plan Services,Household Waste Collection,Refuse Collection (Operations)          ,Transport Related Expenditure ,Direct Transport Costs        ,CA52,Reps Vehicles Ins Claims,19/12/2012,492,625,R,S.E.T.S SERVICES              
Cultural Env Reg&Plan Services,Household Waste Collection,Refuse Collection (Operations)          ,Supplies & Services           ,Clothing Unfrms Laundry       ,DC02,Clothing & Uniforms,20/11/2012,493,"1,813.02",R,SAFETY MANAGEMENT             
Cultural Env Reg&Plan Services,Household Waste Collection,Refuse Collection (Operations)          ,Supplies & Services           ,Clothing Unfrms Laundry       ,DC02,Clothing & Uniforms,18/12/2012,494,595,R,SAFETY MANAGEMENT             
Cultural Env Reg&Plan Services,Household Waste Collection,Refuse Collection (Operations)          ,Supplies & Services           ,Clothing Unfrms Laundry       ,DC02,Clothing & Uniforms,03/01/2013,495,860.83,R,SAFETY MANAGEMENT             
Cultural Env Reg&Plan Services,Street Clean - Not highways,Waste Enforcement                       ,Supplies & Services           ,Services                      ,DF30,Activities Programme,05/12/2012,496,"1,440.00",R,DANGEROUS THEATRE COMPANY     
Cultural Env Reg&Plan Services,Inspect/Enforce (Consumer P),Trading Standards                       ,Supplies & Services           ,Grants and Subscriptions      ,DJ04,Subscriptions,17/12/2012,497,"1,300.28",R,UBM INFORMATION LTD           
Cultural Env Reg&Plan Services,Public Health,Merton Winter Warmer Programme          ,Supplies & Services           ,Equip Furniture/Materials     ,DA02,Op. Leasing Equipment,10/01/2013,498,"15,000.00",R,GROUNDWORK LONDON             
Cultural Env Reg&Plan Services,Public Health,Merton Winter Warmer Programme          ,Supplies & Services           ,Equip Furniture/Materials     ,DA02,Op. Leasing Equipment,22/01/2013,499,"3,610.79",R,OSBORNE ENERGY LTD            
Cultural Env Reg&Plan Services,Public Health,Merton Winter Warmer Programme          ,Supplies & Services           ,Equip Furniture/Materials     ,DA02,Op. Leasing Equipment,22/01/2013,500,"30,088.88",R,OSBORNE ENERGY LTD            
Cultural Env Reg&Plan Services,Public Health,Merton Winter Warmer Programme          ,Supplies & Services           ,Equip Furniture/Materials     ,DA09,Equip-Purchases,20/12/2012,501,"18,800.00",R,TUNSTALL TELECOM LIMITED      
Cultural Env Reg&Plan Services,Food Safety,Health & Safety                         ,Supplies & Services           ,Grants and Subscriptions      ,DJ04,Subscriptions,17/12/2012,502,"2,661.79",R,UBM INFORMATION LTD           
Cultural Env Reg&Plan Services,Food Safety,Health & Safety                         ,Supplies & Services           ,Grants and Subscriptions      ,DJ04,Subscriptions,17/12/2012,503,650.14,R,UBM INFORMATION LTD           
Cultural Env Reg&Plan Services,Food Safety,Health & Safety                         ,Third Party Payments          ,Private Contractors           ,EH10,Contract Payments,30/11/2012,504,"1,500.00",R,PUBLIC ANALYST SCIENTIFIC SER.
Cultural Env Reg&Plan Services,Food Safety,Health & Safety                         ,Third Party Payments          ,Private Contractors           ,EH10,Contract Payments,31/12/2012,505,"1,060.00",R,PUBLIC ANALYST SCIENTIFIC SER.
Cultural Env Reg&Plan Services,Housing Standards,Housing/Env                             ,Employees                     ,Direct Employee Expenses      ,AA17,Agency Staff & Casual Paymts,26/12/2012,506,821.1,R,REDACTED
Cultural Env Reg&Plan Services,Housing Standards,Housing/Env                             ,Employees                     ,Direct Employee Expenses      ,AA17,Agency Staff & Casual Paymts,19/12/2012,507,571.55,R,REDACTED
Cultural Env Reg&Plan Services,Housing Standards,Housing/Env                             ,Employees                     ,Direct Employee Expenses      ,AA17,Agency Staff & Casual Paymts,09/01/2013,508,587.65,R,REDACTED
Cultural Env Reg&Plan Services,Housing Standards,Housing/Env                             ,Employees                     ,Direct Employee Expenses      ,AA17,Agency Staff & Casual Paymts,16/01/2013,509,901.6,R,REDACTED
Central Services,Grants - Voluntary Groups,Vestry Hall                             ,Employees                     ,Direct Employee Expenses      ,AA17,Agency Staff & Casual Paymts,10/01/2013,510,"4,486.95",R,REDACTED
Central Services,Grants - Voluntary Groups,Vestry Hall                             ,Premises Related Expenditure  ,RepairsAlterations&MtceOfBldgs,BA01,DDM - General Building,03/01/2013,511,"2,370.00",R,SUNA SUPPLIES LTD.            
Central Services,Grants - Voluntary Groups,Vestry Hall                             ,Premises Related Expenditure  ,RepairsAlterations&MtceOfBldgs,BA01,DDM - General Building,08/01/2013,512,"1,070.00",R,DAPPA MRP FLOORING            
Central Services,Grants - Voluntary Groups,Vestry Hall                             ,Premises Related Expenditure  ,RepairsAlterations&MtceOfBldgs,BA01,DDM - General Building,05/01/2013,513,"2,235.00",R,REDACTED
Central Services,Grants - Voluntary Groups,Vestry Hall                             ,Premises Related Expenditure  ,Energy Costs                  ,BB03,Gas (incl. Butane),12/12/2012,514,652.09,R,KENT COUNTY COUNCIL           
Central Services,Grants - Voluntary Groups,Vestry Hall                             ,Premises Related Expenditure  ,Water Services                ,BE01,Use of Water (Metered),31/12/2012,515,550.84,R,THAMES WATER UTILITIES LTD    
Central Services,Grants - Voluntary Groups,Vestry Hall                             ,Premises Related Expenditure  ,Cleaning and Domestic Supplies,BH03,Cleaning Services,01/12/2012,516,"1,338.15",R,BIRKIN CLEANING SERVICES LTD  
Cultural Env Reg&Plan Services,DC Advice Apps & Reg not split,Development Control                     ,Supplies & Services           ,Services                      ,DF02,Misc Advertising/Publicity,22/12/2012,517,549,R,NEWSQUEST (LONDON)LTD         
Cultural Env Reg&Plan Services,DC Advice Apps & Reg not split,Development Control                     ,Supplies & Services           ,Services                      ,DF11,Counsel's fees,03/01/2013,518,875,R,CEDR                          
Cultural Env Reg&Plan Services,DC Advice Apps & Reg not split,Development Control                     ,Supplies & Services           ,Grants and Subscriptions      ,DJ04,Subscriptions,03/12/2012,519,"1,190.00",R,THOMSON REUTERS               
Cultural Env Reg&Plan Services,Planning Policy not split,REGENERATION & INVESTMENT              ,Supplies & Services           ,Grants and Subscriptions      ,DJ04,Subscriptions,01/01/2013,520,625,R,ASSOC OF TOWN CTR MANAGEMENT  
Cultural Env Reg&Plan Services,Economic Dev (Not separated),BUSINESS SUPPORT                        ,Supplies & Services           ,Services                      ,DF03,Consultants,27/12/2012,521,"7,100.00",R,STUDIO WEAVE LTD              
Cultural Env Reg&Plan Services,Economic Dev (Not separated),MITCHAM OLF                             ,Supplies & Services           ,Services                      ,DF03,Consultants,11/01/2013,522,"9,534.00",R,LONDON SUSTAINABILITY EXCHANGE
Cultural Env Reg&Plan Services,Economic Dev (Not separated),GREENING BUSINESS                       ,Supplies & Services           ,Grants and Subscriptions      ,DJ54,Contributions,31/12/2012,523,"3,152.48",R,MERTON CHAMBER OF COMMERCE    
CS -Oth Operating Inc & Expend,T/A Vehicle Maintenance etc,Transport-Contract Hire                 ,Premises Related Expenditure  ,RepairsAlterations&MtceOfBldgs,BA01,DDM - General Building,09/01/2013,524,"2,820.00",R,AIR SURVEYS  LIMITED          
CS -Oth Operating Inc & Expend,T/A Vehicle Maintenance etc,Transport-Contract Hire                 ,Transport Related Expenditure ,Direct Transport Costs        ,CA01,Petrol Derv & Oil,28/12/2012,525,"38,615.50",R,EMO OILS LTD                  
CS -Oth Operating Inc & Expend,T/A Vehicle Maintenance etc,Transport-Contract Hire                 ,Transport Related Expenditure ,Direct Transport Costs        ,CA01,Petrol Derv & Oil,16/01/2013,526,"39,064.62",R,EMO OILS LTD                  
CS -Oth Operating Inc & Expend,T/A Vehicle Maintenance etc,Transport-Contract Hire                 ,Transport Related Expenditure ,Direct Transport Costs        ,CA52,Reps Vehicles Ins Claims,21/12/2012,527,500,R,FLEETSPEED COACHWORKS LTD.    
CS -Oth Operating Inc & Expend,T/A Vehicle Maintenance etc,Transport-Contract Hire                 ,Transport Related Expenditure ,Direct Transport Costs        ,CA52,Reps Vehicles Ins Claims,15/01/2013,528,500,R,FLEETSPEED COACHWORKS LTD.    
CS -Oth Operating Inc & Expend,T/A Vehicle Maintenance etc,Transport-Contract Hire                 ,Transport Related Expenditure ,Contract Hire and Op Leasing  ,CC53,Plant Hire for MRCS,23/12/2012,529,700,R,PHOENIX VEHICLE HIRE LTD      
CS -Oth Operating Inc & Expend,T/A Vehicle Maintenance etc,Transport-Contract Hire                 ,Transport Related Expenditure ,Contract Hire and Op Leasing  ,CC53,Plant Hire for MRCS,30/12/2012,530,700,R,PHOENIX VEHICLE HIRE LTD      
CS -Oth Operating Inc & Expend,T/A Vehicle Maintenance etc,Transport-Contract Hire                 ,Transport Related Expenditure ,Contract Hire and Op Leasing  ,CC53,Plant Hire for MRCS,28/12/2012,531,"2,000.00",R,NOBLET MUNICIPAL SERVICES LTD 
CS -Oth Operating Inc & Expend,T/A Vehicle Maintenance etc,Transport-Contract Hire                 ,Transport Related Expenditure ,Contract Hire and Op Leasing  ,CC53,Plant Hire for MRCS,31/12/2012,532,777,R,SHB HIRE LTD                  
CS -Oth Operating Inc & Expend,T/A Vehicle Maintenance etc,Transport-Contract Hire                 ,Transport Related Expenditure ,Contract Hire and Op Leasing  ,CC53,Plant Hire for MRCS,31/12/2012,533,777,R,SHB HIRE LTD                  
CS -Oth Operating Inc & Expend,T/A Vehicle Maintenance etc,Transport-Contract Hire                 ,Transport Related Expenditure ,Contract Hire and Op Leasing  ,CC53,Plant Hire for MRCS,31/12/2012,534,777,R,SHB HIRE LTD                  
CS -Oth Operating Inc & Expend,T/A Vehicle Maintenance etc,Transport-Contract Hire                 ,Transport Related Expenditure ,Contract Hire and Op Leasing  ,CC53,Plant Hire for MRCS,06/01/2013,535,700,R,PHOENIX VEHICLE HIRE LTD      
CS -Oth Operating Inc & Expend,T/A Vehicle Maintenance etc,Transport-Contract Hire                 ,Transport Related Expenditure ,Contract Hire and Op Leasing  ,CC53,Plant Hire for MRCS,31/12/2012,536,555,R,B&T PLANT HIRE LTD            
CS -Oth Operating Inc & Expend,T/A Vehicle Maintenance etc,Transport-Contract Hire                 ,Transport Related Expenditure ,Contract Hire and Op Leasing  ,CC53,Plant Hire for MRCS,13/01/2013,537,700,R,PHOENIX VEHICLE HIRE LTD      
CS -Oth Operating Inc & Expend,T/A Vehicle Maintenance etc,Transport-Contract Hire                 ,Transport Related Expenditure ,Contract Hire and Op Leasing  ,CC53,Plant Hire for MRCS,20/01/2013,538,700,R,PHOENIX VEHICLE HIRE LTD      
CS -Oth Operating Inc & Expend,T/A Vehicle Maintenance etc,Transport-Contract Hire                 ,Transport Related Expenditure ,Contract Hire and Op Leasing  ,CC57,Plant Hire for Housing,31/12/2012,539,940,R,REDACTED
CS -Oth Operating Inc & Expend,T/A Vehicle Maintenance etc,Transport-Contract Hire                 ,Transport Related Expenditure ,Contract Hire and Op Leasing  ,CC57,Plant Hire for Housing,31/12/2012,540,667,R,KENT COUNTY COUNCIL           
CS -Oth Operating Inc & Expend,T/A Vehicle Maintenance etc,Transport-Contract Hire                 ,Transport Related Expenditure ,Contract Hire and Op Leasing  ,CC59,Plant Hire - Non-Rechargeable ,31/12/2012,541,"2,238.32",R,REDACTED
CS -Oth Operating Inc & Expend,T/A Vehicle Maintenance etc,Transport-Contract Hire                 ,Transport Related Expenditure ,Contract Hire and Op Leasing  ,CC59,Plant Hire - Non-Rechargeable ,03/01/2013,542,"7,787.20",R,KENT COUNTY COUNCIL           
CS -Oth Operating Inc & Expend,T/A Vehicle Maintenance etc,Transport-Contract Hire                 ,Transport Related Expenditure ,Contract Hire and Op Leasing  ,CC59,Plant Hire - Non-Rechargeable ,17/01/2013,543,"3,114.88",R,KENT COUNTY COUNCIL           
CS -Oth Operating Inc & Expend,T/A Vehicle Maintenance etc,Transport-Contract Hire                 ,Transport Related Expenditure ,Contract Hire and Op Leasing  ,CC64,Mini Cab Hire for Education,23/12/2012,544,"10,437.43",R,KINGSTON ACCESSIBILITY TRAN LT
CS -Oth Operating Inc & Expend,T/A Vehicle Maintenance etc,Transport-Contract Hire                 ,Transport Related Expenditure ,Contract Hire and Op Leasing  ,CC64,Mini Cab Hire for Education,24/12/2012,545,660,R,AERIAL CAR SERVICES LTD       
CS -Oth Operating Inc & Expend,T/A Vehicle Maintenance etc,Transport-Contract Hire                 ,Transport Related Expenditure ,Contract Hire and Op Leasing  ,CC64,Mini Cab Hire for Education,24/12/2012,546,525,R,AERIAL CAR SERVICES LTD       
CS -Oth Operating Inc & Expend,T/A Vehicle Maintenance etc,Transport-Contract Hire                 ,Transport Related Expenditure ,Contract Hire and Op Leasing  ,CC64,Mini Cab Hire for Education,24/12/2012,547,525,R,AERIAL CAR SERVICES LTD       
CS -Oth Operating Inc & Expend,T/A Vehicle Maintenance etc,Transport-Contract Hire                 ,Transport Related Expenditure ,Contract Hire and Op Leasing  ,CC64,Mini Cab Hire for Education,30/11/2012,548,925.2,R,CAPITAL CARS                  
CS -Oth Operating Inc & Expend,T/A Vehicle Maintenance etc,Transport-Contract Hire                 ,Transport Related Expenditure ,Contract Hire and Op Leasing  ,CC64,Mini Cab Hire for Education,27/12/2012,549,925,R,KENDALL CARS                  
CS -Oth Operating Inc & Expend,T/A Vehicle Maintenance etc,Transport-Contract Hire                 ,Transport Related Expenditure ,Contract Hire and Op Leasing  ,CC64,Mini Cab Hire for Education,27/12/2012,550,560,R,KENDALL CARS                  
CS -Oth Operating Inc & Expend,T/A Vehicle Maintenance etc,Transport-Contract Hire                 ,Transport Related Expenditure ,Contract Hire and Op Leasing  ,CC64,Mini Cab Hire for Education,21/12/2012,551,"2,465.00",R,SILVERBURN FINANCE (UK) LTD   
CS -Oth Operating Inc & Expend,T/A Vehicle Maintenance etc,Transport-Contract Hire                 ,Transport Related Expenditure ,Contract Hire and Op Leasing  ,CC64,Mini Cab Hire for Education,21/12/2012,552,"1,344.00",R,SILVERBURN FINANCE (UK) LTD   
CS -Oth Operating Inc & Expend,T/A Vehicle Maintenance etc,Transport-Contract Hire                 ,Transport Related Expenditure ,Contract Hire and Op Leasing  ,CC64,Mini Cab Hire for Education,30/09/2012,553,"2,185.92",R,SILVERBURN FINANCE (UK) LTD   
CS -Oth Operating Inc & Expend,T/A Vehicle Maintenance etc,Transport-Contract Hire                 ,Transport Related Expenditure ,Contract Hire and Op Leasing  ,CC64,Mini Cab Hire for Education,30/09/2012,554,799.68,R,SILVERBURN FINANCE (UK) LTD   
CS -Oth Operating Inc & Expend,T/A Vehicle Maintenance etc,Transport-Contract Hire                 ,Transport Related Expenditure ,Contract Hire and Op Leasing  ,CC64,Mini Cab Hire for Education,30/09/2012,555,"1,632.00",R,SILVERBURN FINANCE (UK) LTD   
CS -Oth Operating Inc & Expend,T/A Vehicle Maintenance etc,Transport-Contract Hire                 ,Transport Related Expenditure ,Contract Hire and Op Leasing  ,CC64,Mini Cab Hire for Education,31/12/2012,556,"-2,465.00",R,SILVERBURN FINANCE (UK) LTD   
CS -Oth Operating Inc & Expend,T/A Vehicle Maintenance etc,Transport-Contract Hire                 ,Transport Related Expenditure ,Contract Hire and Op Leasing  ,CC64,Mini Cab Hire for Education,31/12/2012,557,"-1,344.00",R,SILVERBURN FINANCE (UK) LTD   
CS -Oth Operating Inc & Expend,T/A Vehicle Maintenance etc,Transport-Contract Hire                 ,Transport Related Expenditure ,Contract Hire and Op Leasing  ,CC64,Mini Cab Hire for Education,21/12/2012,558,"1,260.00",R,SILVERBURN FINANCE (UK) LTD   
CS -Oth Operating Inc & Expend,T/A Vehicle Maintenance etc,Transport-Contract Hire                 ,Transport Related Expenditure ,Contract Hire and Op Leasing  ,CC64,Mini Cab Hire for Education,21/12/2012,559,"1,615.00",R,SILVERBURN FINANCE (UK) LTD   
CS -Oth Operating Inc & Expend,T/A Vehicle Maintenance etc,Transport-Contract Hire                 ,Transport Related Expenditure ,Contract Hire and Op Leasing  ,CC64,Mini Cab Hire for Education,31/12/2012,560,"2,550.00",R,BARCLAYS ASSET & SALES FINANCE
CS -Oth Operating Inc & Expend,T/A Vehicle Maintenance etc,Transport-Contract Hire                 ,Transport Related Expenditure ,Contract Hire and Op Leasing  ,CC64,Mini Cab Hire for Education,31/12/2012,561,975,R,BARCLAYS ASSET & SALES FINANCE
CS -Oth Operating Inc & Expend,T/A Vehicle Maintenance etc,Transport-Contract Hire                 ,Transport Related Expenditure ,Contract Hire and Op Leasing  ,CC64,Mini Cab Hire for Education,31/12/2012,562,"1,056.00",R,BARCLAYS ASSET & SALES FINANCE
CS -Oth Operating Inc & Expend,T/A Vehicle Maintenance etc,Transport-Contract Hire                 ,Transport Related Expenditure ,Contract Hire and Op Leasing  ,CC64,Mini Cab Hire for Education,31/12/2012,563,"1,248.00",R,BARCLAYS ASSET & SALES FINANCE
CS -Oth Operating Inc & Expend,T/A Vehicle Maintenance etc,Transport-Contract Hire                 ,Transport Related Expenditure ,Contract Hire and Op Leasing  ,CC64,Mini Cab Hire for Education,31/12/2012,564,"2,548.00",R,BARCLAYS ASSET & SALES FINANCE
CS -Oth Operating Inc & Expend,T/A Vehicle Maintenance etc,Transport-Contract Hire                 ,Transport Related Expenditure ,Contract Hire and Op Leasing  ,CC64,Mini Cab Hire for Education,31/12/2012,565,"1,016.00",R,BARCLAYS ASSET & SALES FINANCE
CS -Oth Operating Inc & Expend,T/A Vehicle Maintenance etc,Transport-Contract Hire                 ,Transport Related Expenditure ,Contract Hire and Op Leasing  ,CC64,Mini Cab Hire for Education,31/12/2012,566,630,R,BARCLAYS ASSET & SALES FINANCE
CS -Oth Operating Inc & Expend,T/A Vehicle Maintenance etc,Transport-Contract Hire                 ,Transport Related Expenditure ,Contract Hire and Op Leasing  ,CC64,Mini Cab Hire for Education,16/12/2012,567,640,R,REDACTED
CS -Oth Operating Inc & Expend,T/A Vehicle Maintenance etc,Transport-Contract Hire                 ,Transport Related Expenditure ,Contract Hire and Op Leasing  ,CC64,Mini Cab Hire for Education,24/12/2012,568,808.5,R,SHERWOOD TRANSPORT GROUP      
CS -Oth Operating Inc & Expend,T/A Vehicle Maintenance etc,Transport-Contract Hire                 ,Transport Related Expenditure ,Contract Hire and Op Leasing  ,CC64,Mini Cab Hire for Education,24/12/2012,569,"2,385.00",R,SHERWOOD TRANSPORT GROUP      
CS -Oth Operating Inc & Expend,T/A Vehicle Maintenance etc,Transport-Contract Hire                 ,Transport Related Expenditure ,Contract Hire and Op Leasing  ,CC64,Mini Cab Hire for Education,24/12/2012,570,973.5,R,SHERWOOD TRANSPORT GROUP      
CS -Oth Operating Inc & Expend,T/A Vehicle Maintenance etc,Transport-Contract Hire                 ,Transport Related Expenditure ,Contract Hire and Op Leasing  ,CC64,Mini Cab Hire for Education,24/12/2012,571,"1,050.00",R,SHERWOOD TRANSPORT GROUP      
CS -Oth Operating Inc & Expend,T/A Vehicle Maintenance etc,Transport-Contract Hire                 ,Transport Related Expenditure ,Contract Hire and Op Leasing  ,CC64,Mini Cab Hire for Education,24/12/2012,572,"1,547.00",R,SHERWOOD TRANSPORT GROUP      
CS -Oth Operating Inc & Expend,T/A Vehicle Maintenance etc,Transport-Contract Hire                 ,Transport Related Expenditure ,Contract Hire and Op Leasing  ,CC64,Mini Cab Hire for Education,24/12/2012,573,"1,258.40",R,SHERWOOD TRANSPORT GROUP      
CS -Oth Operating Inc & Expend,T/A Vehicle Maintenance etc,Transport-Contract Hire                 ,Transport Related Expenditure ,Contract Hire and Op Leasing  ,CC64,Mini Cab Hire for Education,24/12/2012,574,"1,260.00",R,SHERWOOD TRANSPORT GROUP      
CS -Oth Operating Inc & Expend,T/A Vehicle Maintenance etc,Transport-Contract Hire                 ,Transport Related Expenditure ,Contract Hire and Op Leasing  ,CC64,Mini Cab Hire for Education,24/12/2012,575,550,R,SHERWOOD TRANSPORT GROUP      
CS -Oth Operating Inc & Expend,T/A Vehicle Maintenance etc,Transport-Contract Hire                 ,Transport Related Expenditure ,Contract Hire and Op Leasing  ,CC64,Mini Cab Hire for Education,24/12/2012,576,"1,287.00",R,SHERWOOD TRANSPORT GROUP      
CS -Oth Operating Inc & Expend,T/A Vehicle Maintenance etc,Transport-Contract Hire                 ,Transport Related Expenditure ,Contract Hire and Op Leasing  ,CC64,Mini Cab Hire for Education,24/12/2012,577,980,R,SHERWOOD TRANSPORT GROUP      
CS -Oth Operating Inc & Expend,T/A Vehicle Maintenance etc,Transport-Contract Hire                 ,Transport Related Expenditure ,Contract Hire and Op Leasing  ,CC64,Mini Cab Hire for Education,24/12/2012,578,"1,770.00",R,SHERWOOD TRANSPORT GROUP      
CS -Oth Operating Inc & Expend,T/A Vehicle Maintenance etc,Transport-Contract Hire                 ,Transport Related Expenditure ,Contract Hire and Op Leasing  ,CC64,Mini Cab Hire for Education,21/12/2012,579,"1,072.50",R,SILVERBURN FINANCE (UK) LTD   
CS -Oth Operating Inc & Expend,T/A Vehicle Maintenance etc,Transport-Contract Hire                 ,Transport Related Expenditure ,Contract Hire and Op Leasing  ,CC64,Mini Cab Hire for Education,21/12/2012,580,613.5,R,SILVERBURN FINANCE (UK) LTD   
CS -Oth Operating Inc & Expend,T/A Vehicle Maintenance etc,Transport-Contract Hire                 ,Transport Related Expenditure ,Contract Hire and Op Leasing  ,CC64,Mini Cab Hire for Education,21/12/2012,581,"2,550.00",R,SILVERBURN FINANCE (UK) LTD   
CS -Oth Operating Inc & Expend,T/A Vehicle Maintenance etc,Transport-Contract Hire                 ,Transport Related Expenditure ,Contract Hire and Op Leasing  ,CC64,Mini Cab Hire for Education,21/12/2012,582,"1,440.00",R,SILVERBURN FINANCE (UK) LTD   
CS -Oth Operating Inc & Expend,T/A Vehicle Maintenance etc,Transport-Contract Hire                 ,Transport Related Expenditure ,Contract Hire and Op Leasing  ,CC64,Mini Cab Hire for Education,21/12/2012,583,540,R,SILVERBURN FINANCE (UK) LTD   
CS -Oth Operating Inc & Expend,T/A Vehicle Maintenance etc,Transport-Contract Hire                 ,Transport Related Expenditure ,Contract Hire and Op Leasing  ,CC64,Mini Cab Hire for Education,21/12/2012,584,720,R,SILVERBURN FINANCE (UK) LTD   
CS -Oth Operating Inc & Expend,T/A Vehicle Maintenance etc,Transport-Contract Hire                 ,Transport Related Expenditure ,Contract Hire and Op Leasing  ,CC64,Mini Cab Hire for Education,21/12/2012,585,990,R,SILVERBURN FINANCE (UK) LTD   
CS -Oth Operating Inc & Expend,T/A Vehicle Maintenance etc,Transport-Contract Hire                 ,Transport Related Expenditure ,Contract Hire and Op Leasing  ,CC64,Mini Cab Hire for Education,21/12/2012,586,"1,110.00",R,SILVERBURN FINANCE (UK) LTD   
CS -Oth Operating Inc & Expend,T/A Vehicle Maintenance etc,Transport-Contract Hire                 ,Transport Related Expenditure ,Contract Hire and Op Leasing  ,CC64,Mini Cab Hire for Education,21/12/2012,587,"1,440.00",R,SILVERBURN FINANCE (UK) LTD   
CS -Oth Operating Inc & Expend,T/A Vehicle Maintenance etc,Transport-Contract Hire                 ,Transport Related Expenditure ,Contract Hire and Op Leasing  ,CC64,Mini Cab Hire for Education,21/12/2012,588,840,R,SILVERBURN FINANCE (UK) LTD   
CS -Oth Operating Inc & Expend,T/A Vehicle Maintenance etc,Transport-Contract Hire                 ,Transport Related Expenditure ,Contract Hire and Op Leasing  ,CC64,Mini Cab Hire for Education,21/12/2012,589,510,R,SILVERBURN FINANCE (UK) LTD   
CS -Oth Operating Inc & Expend,T/A Vehicle Maintenance etc,Transport-Contract Hire                 ,Transport Related Expenditure ,Contract Hire and Op Leasing  ,CC64,Mini Cab Hire for Education,21/12/2012,590,"1,440.00",R,SILVERBURN FINANCE (UK) LTD   
CS -Oth Operating Inc & Expend,T/A Vehicle Maintenance etc,Transport-Contract Hire                 ,Transport Related Expenditure ,Contract Hire and Op Leasing  ,CC64,Mini Cab Hire for Education,21/12/2012,591,600,R,SILVERBURN FINANCE (UK) LTD   
CS -Oth Operating Inc & Expend,T/A Vehicle Maintenance etc,Transport-Contract Hire                 ,Transport Related Expenditure ,Contract Hire and Op Leasing  ,CC64,Mini Cab Hire for Education,21/12/2012,592,"2,361.60",R,SILVERBURN FINANCE (UK) LTD   
CS -Oth Operating Inc & Expend,T/A Vehicle Maintenance etc,Transport-Contract Hire                 ,Transport Related Expenditure ,Contract Hire and Op Leasing  ,CC64,Mini Cab Hire for Education,21/12/2012,593,900,R,SILVERBURN FINANCE (UK) LTD   
CS -Oth Operating Inc & Expend,T/A Vehicle Maintenance etc,Transport-Contract Hire                 ,Transport Related Expenditure ,Contract Hire and Op Leasing  ,CC64,Mini Cab Hire for Education,21/12/2012,594,"1,080.00",R,SILVERBURN FINANCE (UK) LTD   
CS -Oth Operating Inc & Expend,T/A Vehicle Maintenance etc,Transport-Contract Hire                 ,Transport Related Expenditure ,Contract Hire and Op Leasing  ,CC64,Mini Cab Hire for Education,31/12/2012,595,"1,092.00",R,BARCLAYS ASSET & SALES FINANCE
CS -Oth Operating Inc & Expend,T/A Vehicle Maintenance etc,Transport-Contract Hire                 ,Transport Related Expenditure ,Contract Hire and Op Leasing  ,CC64,Mini Cab Hire for Education,31/12/2012,596,"1,120.00",R,BARCLAYS ASSET & SALES FINANCE
CS -Oth Operating Inc & Expend,T/A Vehicle Maintenance etc,Transport-Contract Hire                 ,Transport Related Expenditure ,Contract Hire and Op Leasing  ,CC64,Mini Cab Hire for Education,31/12/2012,597,"2,940.00",R,BARCLAYS ASSET & SALES FINANCE
CS -Oth Operating Inc & Expend,T/A Vehicle Maintenance etc,Transport-Contract Hire                 ,Transport Related Expenditure ,Contract Hire and Op Leasing  ,CC64,Mini Cab Hire for Education,31/12/2012,598,"2,850.00",R,BARCLAYS ASSET & SALES FINANCE
CS -Oth Operating Inc & Expend,T/A Vehicle Maintenance etc,Transport-Contract Hire                 ,Transport Related Expenditure ,Contract Hire and Op Leasing  ,CC64,Mini Cab Hire for Education,31/12/2012,599,"1,875.00",R,BARCLAYS ASSET & SALES FINANCE
CS -Oth Operating Inc & Expend,T/A Vehicle Maintenance etc,Transport-Contract Hire                 ,Transport Related Expenditure ,Contract Hire and Op Leasing  ,CC64,Mini Cab Hire for Education,31/12/2012,600,"1,050.00",R,NVCAR HIRE LTD                
CS -Oth Operating Inc & Expend,T/A Vehicle Maintenance etc,Transport-Contract Hire                 ,Transport Related Expenditure ,Contract Hire and Op Leasing  ,CC64,Mini Cab Hire for Education,31/12/2012,601,840,R,NVCAR HIRE LTD                
CS -Oth Operating Inc & Expend,T/A Vehicle Maintenance etc,Transport-Contract Hire                 ,Transport Related Expenditure ,Contract Hire and Op Leasing  ,CC64,Mini Cab Hire for Education,31/12/2012,602,"2,055.00",R,NVCAR HIRE LTD                
CS -Oth Operating Inc & Expend,T/A Vehicle Maintenance etc,Transport-Contract Hire                 ,Transport Related Expenditure ,Contract Hire and Op Leasing  ,CC64,Mini Cab Hire for Education,31/12/2012,603,"1,080.00",R,NVCAR HIRE LTD                
CS -Oth Operating Inc & Expend,T/A Vehicle Maintenance etc,Transport-Contract Hire                 ,Transport Related Expenditure ,Contract Hire and Op Leasing  ,CC64,Mini Cab Hire for Education,31/12/2012,604,600,R,NVCAR HIRE LTD                
CS -Oth Operating Inc & Expend,T/A Vehicle Maintenance etc,Transport-Contract Hire                 ,Transport Related Expenditure ,Contract Hire and Op Leasing  ,CC64,Mini Cab Hire for Education,31/12/2012,605,816,R,NVCAR HIRE LTD                
CS -Oth Operating Inc & Expend,T/A Vehicle Maintenance etc,Transport-Contract Hire                 ,Transport Related Expenditure ,Contract Hire and Op Leasing  ,CC64,Mini Cab Hire for Education,31/12/2012,606,"1,932.00",R,NVCAR HIRE LTD                
CS -Oth Operating Inc & Expend,T/A Vehicle Maintenance etc,Transport-Contract Hire                 ,Transport Related Expenditure ,Contract Hire and Op Leasing  ,CC64,Mini Cab Hire for Education,31/12/2012,607,504,R,A STAR TRANSPORT LIMITED      
CS -Oth Operating Inc & Expend,T/A Vehicle Maintenance etc,Transport-Contract Hire                 ,Transport Related Expenditure ,Contract Hire and Op Leasing  ,CC64,Mini Cab Hire for Education,31/12/2012,608,"1,020.00",R,BRUNSWICK CARS LTD            
CS -Oth Operating Inc & Expend,T/A Vehicle Maintenance etc,Transport-Contract Hire                 ,Transport Related Expenditure ,Contract Hire and Op Leasing  ,CC64,Mini Cab Hire for Education,31/12/2012,609,"1,110.00",R,CAPITAL CARS                  
CS -Oth Operating Inc & Expend,T/A Vehicle Maintenance etc,Transport-Contract Hire                 ,Transport Related Expenditure ,Contract Hire and Op Leasing  ,CC64,Mini Cab Hire for Education,31/12/2012,610,990,R,CAPITAL CARS                  
CS -Oth Operating Inc & Expend,T/A Vehicle Maintenance etc,Transport-Contract Hire                 ,Transport Related Expenditure ,Contract Hire and Op Leasing  ,CC64,Mini Cab Hire for Education,31/12/2012,611,990,R,CAPITAL CARS                  
CS -Oth Operating Inc & Expend,T/A Vehicle Maintenance etc,Transport-Contract Hire                 ,Transport Related Expenditure ,Contract Hire and Op Leasing  ,CC64,Mini Cab Hire for Education,31/12/2012,612,"2,160.00",R,CAPITAL CARS                  
CS -Oth Operating Inc & Expend,T/A Vehicle Maintenance etc,Transport-Contract Hire                 ,Transport Related Expenditure ,Contract Hire and Op Leasing  ,CC64,Mini Cab Hire for Education,31/12/2012,613,750,R,CAPITAL CARS                  
CS -Oth Operating Inc & Expend,T/A Vehicle Maintenance etc,Transport-Contract Hire                 ,Transport Related Expenditure ,Contract Hire and Op Leasing  ,CC64,Mini Cab Hire for Education,31/12/2012,614,"1,260.00",R,CAPITAL CARS                  
CS -Oth Operating Inc & Expend,T/A Vehicle Maintenance etc,Transport-Contract Hire                 ,Transport Related Expenditure ,Contract Hire and Op Leasing  ,CC64,Mini Cab Hire for Education,31/12/2012,615,750,R,CAPITAL CARS                  
CS -Oth Operating Inc & Expend,T/A Vehicle Maintenance etc,Transport-Contract Hire                 ,Transport Related Expenditure ,Contract Hire and Op Leasing  ,CC64,Mini Cab Hire for Education,31/12/2012,616,"2,100.00",R,CAPITAL CARS                  
CS -Oth Operating Inc & Expend,T/A Vehicle Maintenance etc,Transport-Contract Hire                 ,Transport Related Expenditure ,Contract Hire and Op Leasing  ,CC64,Mini Cab Hire for Education,31/12/2012,617,570,R,CAPITAL CARS                  
CS -Oth Operating Inc & Expend,T/A Vehicle Maintenance etc,Transport-Contract Hire                 ,Transport Related Expenditure ,Contract Hire and Op Leasing  ,CC64,Mini Cab Hire for Education,31/12/2012,618,892.5,R,CAPITAL CARS                  
CS -Oth Operating Inc & Expend,T/A Vehicle Maintenance etc,Transport-Contract Hire                 ,Transport Related Expenditure ,Contract Hire and Op Leasing  ,CC64,Mini Cab Hire for Education,31/12/2012,619,"1,590.00",R,CAPITAL CARS                  
CS -Oth Operating Inc & Expend,T/A Vehicle Maintenance etc,Transport-Contract Hire                 ,Transport Related Expenditure ,Contract Hire and Op Leasing  ,CC64,Mini Cab Hire for Education,31/12/2012,620,750,R,CAPITAL CARS                  
CS -Oth Operating Inc & Expend,T/A Vehicle Maintenance etc,Transport-Contract Hire                 ,Transport Related Expenditure ,Contract Hire and Op Leasing  ,CC64,Mini Cab Hire for Education,31/12/2012,621,900,R,CHEAM STATION CARS            
CS -Oth Operating Inc & Expend,T/A Vehicle Maintenance etc,Transport-Contract Hire                 ,Transport Related Expenditure ,Contract Hire and Op Leasing  ,CC64,Mini Cab Hire for Education,28/12/2012,622,"2,850.00",R,WALLINGTON CARS & COURIERS LTD
CS -Oth Operating Inc & Expend,T/A Vehicle Maintenance etc,Transport-Contract Hire                 ,Transport Related Expenditure ,Contract Hire and Op Leasing  ,CC64,Mini Cab Hire for Education,31/12/2012,623,940,R,CAPITAL CARS                  
CS -Oth Operating Inc & Expend,T/A Vehicle Maintenance etc,Transport-Contract Hire                 ,Transport Related Expenditure ,Contract Hire and Op Leasing  ,CC64,Mini Cab Hire for Education,31/12/2012,624,570,R,CAPITAL CARS                  
CS -Oth Operating Inc & Expend,T/A Vehicle Maintenance etc,Transport-Contract Hire                 ,Transport Related Expenditure ,Contract Hire and Op Leasing  ,CC64,Mini Cab Hire for Education,31/12/2012,625,"1,064.00",R,BARCLAYS ASSET & SALES FINANCE
CS -Oth Operating Inc & Expend,T/A Vehicle Maintenance etc,Transport-Contract Hire                 ,Transport Related Expenditure ,Contract Hire and Op Leasing  ,CC64,Mini Cab Hire for Education,31/12/2012,626,619.33,R,GALPINS SERVICE               
CS -Oth Operating Inc & Expend,T/A Vehicle Maintenance etc,Transport-Contract Hire                 ,Transport Related Expenditure ,Contract Hire and Op Leasing  ,CC64,Mini Cab Hire for Education,31/12/2012,627,540,R,GALPINS SERVICE               
CS -Oth Operating Inc & Expend,T/A Vehicle Maintenance etc,Transport-Contract Hire                 ,Transport Related Expenditure ,Contract Hire and Op Leasing  ,CC64,Mini Cab Hire for Education,31/12/2012,628,607.5,R,GALPINS SERVICE               
CS -Oth Operating Inc & Expend,T/A Vehicle Maintenance etc,Transport-Contract Hire                 ,Transport Related Expenditure ,Contract Hire and Op Leasing  ,CC64,Mini Cab Hire for Education,31/12/2012,629,644,R,GALPINS SERVICE               
CS -Oth Operating Inc & Expend,T/A Vehicle Maintenance etc,Transport-Contract Hire                 ,Transport Related Expenditure ,Contract Hire and Op Leasing  ,CC66,Mini Cab Hire -Soc Serv -Child,23/12/2012,630,"1,334.34",R,KINGSTON ACCESSIBILITY TRAN LT
CS -Oth Operating Inc & Expend,T/A Vehicle Maintenance etc,Transport-Contract Hire                 ,Transport Related Expenditure ,Contract Hire and Op Leasing  ,CC66,Mini Cab Hire -Soc Serv -Child,31/12/2012,631,750,R,CHEAM STATION CARS            
CS -Oth Operating Inc & Expend,T/A Vehicle Maintenance etc,Transport-Contract Hire                 ,Transport Related Expenditure ,Contract Hire and Op Leasing  ,CC66,Mini Cab Hire -Soc Serv -Child,07/12/2012,632,642,R,AIRPORT TO DOOR               
CS -Oth Operating Inc & Expend,T/A Vehicle Maintenance etc,Transport-Contract Hire                 ,Transport Related Expenditure ,Contract Hire and Op Leasing  ,CC66,Mini Cab Hire -Soc Serv -Child,31/12/2012,633,600,R,GALPINS SERVICE               
CS -Oth Operating Inc & Expend,T/A Vehicle Maintenance etc,Transport-Contract Hire                 ,Transport Related Expenditure ,Contract Hire and Op Leasing  ,CC66,Mini Cab Hire -Soc Serv -Child,31/12/2012,634,615,R,GALPINS SERVICE               
CS -Oth Operating Inc & Expend,T/A Vehicle Maintenance etc,Transport-Contract Hire                 ,Transport Related Expenditure ,Contract Hire and Op Leasing  ,CC67,Mini Cab Hire -Soc Serv -Adult,23/12/2012,635,"1,522.42",R,KINGSTON ACCESSIBILITY TRAN LT
CS -Oth Operating Inc & Expend,T/A Vehicle Maintenance etc,Transport-Contract Hire                 ,Transport Related Expenditure ,Contract Hire and Op Leasing  ,CC67,Mini Cab Hire -Soc Serv -Adult,24/12/2012,636,703,R,AERIAL CAR SERVICES LTD       
CS -Oth Operating Inc & Expend,T/A Vehicle Maintenance etc,Transport-Contract Hire                 ,Transport Related Expenditure ,Contract Hire and Op Leasing  ,CC67,Mini Cab Hire -Soc Serv -Adult,24/12/2012,637,600,R,AERIAL CAR SERVICES LTD       
CS -Oth Operating Inc & Expend,T/A Vehicle Maintenance etc,Transport-Contract Hire                 ,Transport Related Expenditure ,Contract Hire and Op Leasing  ,CC67,Mini Cab Hire -Soc Serv -Adult,31/08/2012,638,711.4,R,SILVERBURN FINANCE (UK) LTD   
CS -Oth Operating Inc & Expend,T/A Vehicle Maintenance etc,Transport-Contract Hire                 ,Transport Related Expenditure ,Contract Hire and Op Leasing  ,CC67,Mini Cab Hire -Soc Serv -Adult,06/01/2013,639,885.48,R,KINGSTON ACCESSIBILITY TRAN LT
CS -Oth Operating Inc & Expend,T/A Vehicle Maintenance etc,Transport-Contract Hire                 ,Transport Related Expenditure ,Contract Hire and Op Leasing  ,CC67,Mini Cab Hire -Soc Serv -Adult,31/12/2012,640,672,R,BARCLAYS ASSET & SALES FINANCE
CS -Oth Operating Inc & Expend,T/A Vehicle Maintenance etc,Transport-Contract Hire                 ,Transport Related Expenditure ,Contract Hire and Op Leasing  ,CC67,Mini Cab Hire -Soc Serv -Adult,31/12/2012,641,520,R,BARCLAYS ASSET & SALES FINANCE
CS -Oth Operating Inc & Expend,T/A Vehicle Maintenance etc,Transport-Contract Hire                 ,Transport Related Expenditure ,Contract Hire and Op Leasing  ,CC67,Mini Cab Hire -Soc Serv -Adult,31/12/2012,642,960,R,BARCLAYS ASSET & SALES FINANCE
CS -Oth Operating Inc & Expend,T/A Vehicle Maintenance etc,Transport-Contract Hire                 ,Transport Related Expenditure ,Contract Hire and Op Leasing  ,CC67,Mini Cab Hire -Soc Serv -Adult,31/12/2012,643,580,R,BARCLAYS ASSET & SALES FINANCE
CS -Oth Operating Inc & Expend,T/A Vehicle Maintenance etc,Transport-Contract Hire                 ,Transport Related Expenditure ,Contract Hire and Op Leasing  ,CC67,Mini Cab Hire -Soc Serv -Adult,31/12/2012,644,"1,456.00",R,NVCAR HIRE LTD                
CS -Oth Operating Inc & Expend,T/A Vehicle Maintenance etc,Transport-Contract Hire                 ,Transport Related Expenditure ,Contract Hire and Op Leasing  ,CC67,Mini Cab Hire -Soc Serv -Adult,31/12/2012,645,800,R,NVCAR HIRE LTD                
CS -Oth Operating Inc & Expend,T/A Vehicle Maintenance etc,Transport-Contract Hire                 ,Transport Related Expenditure ,Contract Hire and Op Leasing  ,CC67,Mini Cab Hire -Soc Serv -Adult,31/12/2012,646,"1,200.00",R,CAPITAL CARS                  
CS -Oth Operating Inc & Expend,T/A Vehicle Maintenance etc,Transport-Contract Hire                 ,Transport Related Expenditure ,Contract Hire and Op Leasing  ,CC67,Mini Cab Hire -Soc Serv -Adult,31/12/2012,647,"1,158.00",R,CAPITAL CARS                  
CS -Oth Operating Inc & Expend,T/A Vehicle Maintenance etc,Transport-Contract Hire                 ,Transport Related Expenditure ,Contract Hire and Op Leasing  ,CC67,Mini Cab Hire -Soc Serv -Adult,31/12/2012,648,588,R,CAPITAL CARS                  
CS -Oth Operating Inc & Expend,T/A Vehicle Maintenance etc,Transport-Contract Hire                 ,Transport Related Expenditure ,Contract Hire and Op Leasing  ,CC67,Mini Cab Hire -Soc Serv -Adult,31/12/2012,649,846,R,CAPITAL CARS                  
CS -Oth Operating Inc & Expend,T/A Vehicle Maintenance etc,Transport-Contract Hire                 ,Transport Related Expenditure ,Contract Hire and Op Leasing  ,CC67,Mini Cab Hire -Soc Serv -Adult,31/12/2012,650,768,R,A STAR TRANSPORT LIMITED      
CS -Oth Operating Inc & Expend,T/A Vehicle Maintenance etc,Transport-Contract Hire                 ,Transport Related Expenditure ,Contract Hire and Op Leasing  ,CC68,Vehicle Hire Special Projects,23/12/2012,651,690,R,KINGSTON ACCESSIBILITY TRAN LT
CS -Oth Operating Inc & Expend,T/A Vehicle Maintenance etc,Transport-Contract Hire                 ,Transport Related Expenditure ,Contract Hire and Op Leasing  ,CC68,Vehicle Hire Special Projects,21/12/2012,652,"1,020.00",R,SILVERBURN FINANCE (UK) LTD   
CS -Oth Operating Inc & Expend,T/A Vehicle Maintenance etc,Transport-Contract Hire                 ,Transport Related Expenditure ,Contract Hire and Op Leasing  ,CC68,Vehicle Hire Special Projects,31/12/2012,653,"1,422.00",R,BARCLAYS ASSET & SALES FINANCE
CS -Oth Operating Inc & Expend,T/A Vehicle Maintenance etc,Transport-Contract Hire                 ,Transport Related Expenditure ,Contract Hire and Op Leasing  ,CC68,Vehicle Hire Special Projects,31/12/2012,654,693,R,BARCLAYS ASSET & SALES FINANCE
CS -Oth Operating Inc & Expend,T/A Vehicle Maintenance etc,Transport-Contract Hire                 ,Transport Related Expenditure ,Contract Hire and Op Leasing  ,CC68,Vehicle Hire Special Projects,31/12/2012,655,561.5,R,BARCLAYS ASSET & SALES FINANCE
CS -Oth Operating Inc & Expend,T/A Vehicle Maintenance etc,Transport-Contract Hire                 ,Transport Related Expenditure ,Contract Hire and Op Leasing  ,CC68,Vehicle Hire Special Projects,24/12/2012,656,"1,500.00",R,SHERWOOD TRANSPORT GROUP      
CS -Oth Operating Inc & Expend,T/A Vehicle Maintenance etc,Transport-Contract Hire                 ,Transport Related Expenditure ,Contract Hire and Op Leasing  ,CC68,Vehicle Hire Special Projects,31/12/2012,657,792,R,CAPITAL CARS                  
CS -Oth Operating Inc & Expend,T/A Vehicle Maintenance etc,Transport-Contract Hire                 ,Transport Related Expenditure ,Contract Hire and Op Leasing  ,CC68,Vehicle Hire Special Projects,31/12/2012,658,662,R,GALPINS SERVICE               
CS -Oth Operating Inc & Expend,T/A Vehicle Maintenance etc,Transport-Workshop                      ,Premises Related Expenditure  ,RepairsAlterations&MtceOfBldgs,BA03,DDM - Mechanical,18/12/2012,659,501.37,R,COFELY LIMITED                
CS -Oth Operating Inc & Expend,T/A Vehicle Maintenance etc,Transport-Workshop                      ,Transport Related Expenditure ,Direct Transport Costs        ,CA02,Tyres,18/12/2012,660,"1,490.00",R,MORDEN TYRE SERVICES LTD      
CS -Oth Operating Inc & Expend,T/A Vehicle Maintenance etc,Transport-Workshop                      ,Transport Related Expenditure ,Direct Transport Costs        ,CA02,Tyres,04/01/2013,661,"1,670.00",R,MORDEN TYRE SERVICES LTD      
CS -Oth Operating Inc & Expend,T/A Vehicle Maintenance etc,Transport-Workshop                      ,Transport Related Expenditure ,Direct Transport Costs        ,CA02,Tyres,18/01/2013,662,"1,270.00",R,MORDEN TYRE SERVICES LTD      
CS -Oth Operating Inc & Expend,T/A Vehicle Maintenance etc,Transport-Workshop                      ,Transport Related Expenditure ,Direct Transport Costs        ,CA02,Tyres,17/01/2013,663,"1,575.00",R,MORDEN TYRE SERVICES LTD      
CS -Oth Operating Inc & Expend,T/A Vehicle Maintenance etc,Transport-Workshop                      ,Transport Related Expenditure ,Direct Transport Costs        ,CA02,Tyres,23/01/2013,664,"1,490.00",R,MORDEN TYRE SERVICES LTD      
CS -Oth Operating Inc & Expend,T/A Vehicle Maintenance etc,Transport-Workshop                      ,Transport Related Expenditure ,Direct Transport Costs        ,CA55,Specialist Maint. (Off Site),04/01/2013,665,503.83,R,BYRON GARAGES                 
CS -Oth Operating Inc & Expend,T/A Vehicle Maintenance etc,Transport-Workshop                      ,Transport Related Expenditure ,Direct Transport Costs        ,CA55,Specialist Maint. (Off Site),21/12/2012,666,567.3,R,DAWSON RENTALS BUS AND COACH  
CS -Oth Operating Inc & Expend,T/A Vehicle Maintenance etc,Transport-Workshop                      ,Transport Related Expenditure ,Direct Transport Costs        ,CA55,Specialist Maint. (Off Site),21/12/2012,667,"1,193.35",R,FLEETSPEED COACHWORKS LTD.    
CS -Oth Operating Inc & Expend,T/A Vehicle Maintenance etc,Transport-Workshop                      ,Transport Related Expenditure ,Direct Transport Costs        ,CA55,Specialist Maint. (Off Site),12/12/2012,668,"2,392.27",R,FLEETSPEED COACHWORKS LTD.    
CS -Oth Operating Inc & Expend,T/A Vehicle Maintenance etc,Transport-Workshop                      ,Transport Related Expenditure ,Direct Transport Costs        ,CA55,Specialist Maint. (Off Site),12/12/2012,669,"2,392.16",R,FLEETSPEED COACHWORKS LTD.    
CS -Oth Operating Inc & Expend,T/A Vehicle Maintenance etc,Transport-Workshop                      ,Transport Related Expenditure ,Direct Transport Costs        ,CA55,Specialist Maint. (Off Site),06/12/2012,670,806.8,R,GRAYS TRUCK CENTRE LIMITED    
CS -Oth Operating Inc & Expend,T/A Vehicle Maintenance etc,Transport-Workshop                      ,Transport Related Expenditure ,Direct Transport Costs        ,CA55,Specialist Maint. (Off Site),15/01/2013,671,"1,709.82",R,DAWSON RENTALS BUS AND COACH  
CS -Oth Operating Inc & Expend,T/A Vehicle Maintenance etc,Transport-Workshop                      ,Transport Related Expenditure ,Direct Transport Costs        ,CA55,Specialist Maint. (Off Site),15/01/2013,672,"1,814.65",R,DAWSON RENTALS BUS AND COACH  
CS -Oth Operating Inc & Expend,T/A Vehicle Maintenance etc,Transport-Workshop                      ,Transport Related Expenditure ,Direct Transport Costs        ,CA55,Specialist Maint. (Off Site),15/01/2013,673,"1,793.68",R,DAWSON RENTALS BUS AND COACH  
CS -Oth Operating Inc & Expend,T/A Vehicle Maintenance etc,Transport-Workshop                      ,Transport Related Expenditure ,Direct Transport Costs        ,CA55,Specialist Maint. (Off Site),09/01/2013,674,"1,357.05",R,FLEETSPEED COACHWORKS LTD.    
CS -Oth Operating Inc & Expend,T/A Vehicle Maintenance etc,Transport-Workshop                      ,Transport Related Expenditure ,Direct Transport Costs        ,CA55,Specialist Maint. (Off Site),10/01/2013,675,"1,203.84",R,FLEETSPEED COACHWORKS LTD.    
CS -Oth Operating Inc & Expend,T/A Vehicle Maintenance etc,Transport-Workshop                      ,Transport Related Expenditure ,Direct Transport Costs        ,CA55,Specialist Maint. (Off Site),09/01/2013,676,"1,072.64",R,GLENSIDE COMMERCIALS LTD      
CS -Oth Operating Inc & Expend,T/A Vehicle Maintenance etc,Transport-Workshop                      ,Transport Related Expenditure ,Direct Transport Costs        ,CA55,Specialist Maint. (Off Site),11/01/2013,677,"4,486.19",R,REDACTED
CS -Oth Operating Inc & Expend,T/A Vehicle Maintenance etc,Transport-Workshop                      ,Transport Related Expenditure ,Direct Transport Costs        ,CA55,Specialist Maint. (Off Site),15/01/2013,678,"-2,392.16",R,FLEETSPEED COACHWORKS LTD.    
CS -Oth Operating Inc & Expend,T/A Vehicle Maintenance etc,Transport-Workshop                      ,Transport Related Expenditure ,Direct Transport Costs        ,CA55,Specialist Maint. (Off Site),18/01/2013,679,709.01,R,FLEETSPEED COACHWORKS LTD.    
CS -Oth Operating Inc & Expend,T/A Vehicle Maintenance etc,Transport-Workshop                      ,Transport Related Expenditure ,Direct Transport Costs        ,CA56,Specialist Maint. (On Site),05/12/2012,680,835.5,R,GREEN MACHINES                
CS -Oth Operating Inc & Expend,T/A Vehicle Maintenance etc,Transport-Workshop                      ,Transport Related Expenditure ,Direct Transport Costs        ,CA56,Specialist Maint. (On Site),19/12/2012,681,"1,074.32",R,JOHNSTON SWEEPERS LIMITED     
CS -Oth Operating Inc & Expend,T/A Vehicle Maintenance etc,Transport-Workshop                      ,Transport Related Expenditure ,Direct Transport Costs        ,CA56,Specialist Maint. (On Site),04/01/2013,682,562.5,R,R.J.H.WELDING                 
CS -Oth Operating Inc & Expend,T/A Vehicle Maintenance etc,Transport-Workshop                      ,Transport Related Expenditure ,Direct Transport Costs        ,CA56,Specialist Maint. (On Site),04/01/2013,683,"1,053.11",R,R.J.H.WELDING                 
CS -Oth Operating Inc & Expend,T/A Vehicle Maintenance etc,Transport-Workshop                      ,Transport Related Expenditure ,Direct Transport Costs        ,CA56,Specialist Maint. (On Site),08/01/2013,684,835.5,R,GREEN MACHINES                
CS -Oth Operating Inc & Expend,T/A Vehicle Maintenance etc,Transport-Workshop                      ,Transport Related Expenditure ,Direct Transport Costs        ,CA56,Specialist Maint. (On Site),08/01/2013,685,835.5,R,GREEN MACHINES                
CS -Oth Operating Inc & Expend,T/A Vehicle Maintenance etc,Transport-Workshop                      ,Transport Related Expenditure ,Direct Transport Costs        ,CA56,Specialist Maint. (On Site),03/01/2013,686,617,R,JUST TAILIFTS                 
CS -Oth Operating Inc & Expend,T/A Vehicle Maintenance etc,Transport-Workshop                      ,Transport Related Expenditure ,Direct Transport Costs        ,CA56,Specialist Maint. (On Site),05/12/2012,687,835.5,R,GREEN MACHINES                
CS -Oth Operating Inc & Expend,T/A Vehicle Maintenance etc,Transport-Workshop                      ,Transport Related Expenditure ,Direct Transport Costs        ,CA72,Vehicle Parts,24/12/2012,688,"-1,740.82",R,GEESINK NORBA                 
CS -Oth Operating Inc & Expend,T/A Vehicle Maintenance etc,Transport-Workshop                      ,Transport Related Expenditure ,Direct Transport Costs        ,CA72,Vehicle Parts,19/12/2012,689,706.68,R,GEESINK NORBA                 
CS -Oth Operating Inc & Expend,T/A Vehicle Maintenance etc,Transport-Workshop                      ,Transport Related Expenditure ,Direct Transport Costs        ,CA72,Vehicle Parts,22/12/2012,690,532.3,R,MC TRUCK & BUS                
CS -Oth Operating Inc & Expend,T/A Vehicle Maintenance etc,Transport-Workshop                      ,Transport Related Expenditure ,Direct Transport Costs        ,CA72,Vehicle Parts,21/12/2012,691,974.75,R,COMMERCIAL & PLANT LTD        
CS -Oth Operating Inc & Expend,T/A Vehicle Maintenance etc,Transport-Workshop                      ,Transport Related Expenditure ,Direct Transport Costs        ,CA72,Vehicle Parts,07/12/2012,692,681.04,R,DENNIS EAGLE LIMITED          
CS -Oth Operating Inc & Expend,T/A Vehicle Maintenance etc,Transport-Workshop                      ,Transport Related Expenditure ,Direct Transport Costs        ,CA72,Vehicle Parts,19/12/2012,693,561.7,R,GEESINK NORBA                 
CS -Oth Operating Inc & Expend,T/A Vehicle Maintenance etc,Transport-Workshop                      ,Transport Related Expenditure ,Direct Transport Costs        ,CA72,Vehicle Parts,12/12/2012,694,769,R,MC TRUCK & BUS                
CS -Oth Operating Inc & Expend,T/A Vehicle Maintenance etc,Transport-Workshop                      ,Transport Related Expenditure ,Direct Transport Costs        ,CA72,Vehicle Parts,01/01/2013,695,568.64,R,SUNLIGHT SERVICE GROUP LTD    
CS -Oth Operating Inc & Expend,T/A Vehicle Maintenance etc,Transport-Workshop                      ,Transport Related Expenditure ,Direct Transport Costs        ,CA72,Vehicle Parts,15/01/2013,696,798.14,R,DENNIS EAGLE LIMITED          
CS -Oth Operating Inc & Expend,T/A Vehicle Maintenance etc,Transport-Workshop                      ,Transport Related Expenditure ,Direct Transport Costs        ,CA72,Vehicle Parts,14/01/2013,697,735.09,R,COMMERCIAL & PLANT LTD        
CS -Oth Operating Inc & Expend,T/A Vehicle Maintenance etc,Transport-Workshop                      ,Transport Related Expenditure ,Direct Transport Costs        ,CA72,Vehicle Parts,21/01/2013,698,616.63,R,COMMERCIAL & PLANT LTD        
CS -Oth Operating Inc & Expend,T/A Vehicle Maintenance etc,Transport-Workshop                      ,Transport Related Expenditure ,Direct Transport Costs        ,CA72,Vehicle Parts,08/01/2013,699,"1,697.27",R,DENNIS EAGLE LIMITED          
CS -Oth Operating Inc & Expend,T/A Vehicle Maintenance etc,Transport-Workshop                      ,Transport Related Expenditure ,Direct Transport Costs        ,CA72,Vehicle Parts,28/01/2013,700,638.5,R,COMMERCIAL & PLANT LTD        
CS -Oth Operating Inc & Expend,T/A Vehicle Maintenance etc,Transport-Workshop                      ,Transport Related Expenditure ,Contract Hire and Op Leasing  ,CC60,Vehicle Hire for LB Sutton,31/12/2012,701,"1,290.00",R,BARCLAYS ASSET & SALES FINANCE
CS -Oth Operating Inc & Expend,T/A Vehicle Maintenance etc,Transport-Workshop                      ,Transport Related Expenditure ,Contract Hire and Op Leasing  ,CC60,Vehicle Hire for LB Sutton,31/12/2012,702,"2,970.00",R,BARCLAYS ASSET & SALES FINANCE
CS -Oth Operating Inc & Expend,T/A Vehicle Maintenance etc,Transport-Workshop                      ,Transport Related Expenditure ,Contract Hire and Op Leasing  ,CC60,Vehicle Hire for LB Sutton,31/12/2012,703,720,R,BARCLAYS ASSET & SALES FINANCE
CS -Oth Operating Inc & Expend,T/A Vehicle Maintenance etc,Transport-Workshop                      ,Transport Related Expenditure ,Contract Hire and Op Leasing  ,CC60,Vehicle Hire for LB Sutton,31/12/2012,704,"1,545.00",R,BRUNSWICK CARS LTD            
CS -Oth Operating Inc & Expend,T/A Vehicle Maintenance etc,Transport-Workshop                      ,Transport Related Expenditure ,Contract Hire and Op Leasing  ,CC60,Vehicle Hire for LB Sutton,31/12/2012,705,"1,785.00",R,BRUNSWICK CARS LTD            
CS -Oth Operating Inc & Expend,T/A Vehicle Maintenance etc,Transport-Workshop                      ,Transport Related Expenditure ,Contract Hire and Op Leasing  ,CC60,Vehicle Hire for LB Sutton,31/12/2012,706,"2,100.00",R,BRUNSWICK CARS LTD            
CS -Oth Operating Inc & Expend,T/A Vehicle Maintenance etc,Transport-Workshop                      ,Transport Related Expenditure ,Contract Hire and Op Leasing  ,CC60,Vehicle Hire for LB Sutton,31/12/2012,707,555,R,CAPITAL CARS                  
CS -Oth Operating Inc & Expend,T/A Vehicle Maintenance etc,Transport-Workshop                      ,Transport Related Expenditure ,Contract Hire and Op Leasing  ,CC60,Vehicle Hire for LB Sutton,19/12/2012,708,"1,064.00",R,CALVERTON FACTORS LTD         
CS -Oth Operating Inc & Expend,T/A Vehicle Maintenance etc,Transport-Workshop                      ,Transport Related Expenditure ,Contract Hire and Op Leasing  ,CC60,Vehicle Hire for LB Sutton,19/12/2012,709,"1,350.00",R,CALVERTON FACTORS LTD         
CS -Oth Operating Inc & Expend,T/A Vehicle Maintenance etc,Transport-Workshop                      ,Transport Related Expenditure ,Contract Hire and Op Leasing  ,CC60,Vehicle Hire for LB Sutton,19/12/2012,710,"1,605.00",R,CALVERTON FACTORS LTD         
CS -Oth Operating Inc & Expend,T/A Vehicle Maintenance etc,Transport-Workshop                      ,Transport Related Expenditure ,Contract Hire and Op Leasing  ,CC60,Vehicle Hire for LB Sutton,19/12/2012,711,720,R,CALVERTON FACTORS LTD         
CS -Oth Operating Inc & Expend,T/A Vehicle Maintenance etc,Transport-Workshop                      ,Transport Related Expenditure ,Contract Hire and Op Leasing  ,CC65,Vehicle Hire for Education,30/11/2012,712,862,R,CROYDON COACHES               
CS -Oth Operating Inc & Expend,T/A Vehicle Maintenance etc,Transport-Workshop                      ,Supplies & Services           ,Equip Furniture/Materials     ,DA01,Equipment - R & M,02/01/2013,713,"1,260.00",R,V L TEST SYSTEMS LTD          
CS -Oth Operating Inc & Expend,T/A Vehicle Maintenance etc,Transport-Workshop                      ,Supplies & Services           ,Equip Furniture/Materials     ,DA01,Equipment - R & M,26/01/2013,714,718.3,R,SUNLIGHT SERVICE GROUP LTD    
CS -Oth Operating Inc & Expend,T/A Vehicle Maintenance etc,Transport-Workshop                      ,Supplies & Services           ,Clothing Unfrms Laundry       ,DC02,Clothing & Uniforms,12/12/2012,715,671.27,R,SAFETY MANAGEMENT             
Cultural Env Reg&Plan Services,Mgt & Support (Env),Estates Mgt                             ,Supplies & Services           ,Services                      ,DF03,Consultants,08/01/2013,716,"4,000.00",R,VALUATION OFFICE AGENCY       
CS -Oth Operating Inc & Expend,Extraordinary Items & PY Adj.,Other Misc Props Budget                 ,Premises Related Expenditure  ,Energy Costs                  ,BB03,Gas (incl. Butane),09/01/2013,717,"1,746.44",R,SOUTHERN ELECTRIC             
CS -Oth Operating Inc & Expend,Extraordinary Items & PY Adj.,Housing Shops                           ,Premises Related Expenditure  ,RepairsAlterations&MtceOfBldgs,BA01,DDM - General Building,20/12/2012,718,"2,650.00",R,COFELY LIMITED                
CS -Oth Operating Inc & Expend,Extraordinary Items & PY Adj.,Housing Shops                           ,Premises Related Expenditure  ,RepairsAlterations&MtceOfBldgs,BA79,Security of Premises,02/01/2013,719,"8,236.80",R,SIGHT & SOUND                 
CS -Oth Operating Inc & Expend,Extraordinary Items & PY Adj.,Housing Shops                           ,Premises Related Expenditure  ,RepairsAlterations&MtceOfBldgs,BA79,Security of Premises,31/12/2012,720,"1,066.00",R,OM METROPOLITAN TOTAL SEC.LTD 
CS -Oth Operating Inc & Expend,Extraordinary Items & PY Adj.,Housing Shops                           ,Supplies & Services           ,Services                      ,DF03,Consultants,17/10/2012,721,"1,143.00",R,QUINTON SCOTT                 
Central Services,NDC Unused Office Accomodation,Montgomery Close                        ,Premises Related Expenditure  ,RepairsAlterations&MtceOfBldgs,BA03,DDM - Mechanical,18/12/2012,722,617.24,R,COFELY LIMITED                
CS -Oth Operating Inc & Expend,Extraordinary Items & PY Adj.,Pollards Hill Comm Cntre                ,Premises Related Expenditure  ,RepairsAlterations&MtceOfBldgs,BA03,DDM - Mechanical,18/12/2012,723,692.01,R,COFELY LIMITED                
Childrens & Education Services,Statutory & Regulatory Duties,Senior Mngt & Support Services          ,Employees                     ,Indirect Employee Expenses    ,AB02,Recruitment Adverts,11/12/2012,724,"4,550.00",R,PENNA COMMUNICATIONS (NO 2 A/C
Childrens & Education Services,Statutory & Regulatory Duties,Senior Mngt & Support Services          ,Employees                     ,Indirect Employee Expenses    ,AB02,Recruitment Adverts,15/01/2013,725,"4,666.00",R,PENNA COMMUNICATIONS (NO 2 A/C
Childrens & Education Services,Statutory & Regulatory Duties,Senior Mngt & Support Services          ,Supplies & Services           ,Services                      ,DF11,Counsel's fees,18/12/2012,726,"3,875.00",R,REDACTED
Childrens & Education Services,Statutory & Regulatory Duties,Central Administration                  ,Supplies & Services           ,Comms and Computing           ,DG04,Postage - General,29/01/2013,727,600,R,TRAVELCARE                    
Childrens & Education Services,Statutory & Regulatory Duties,Schools IT Support                      ,Supplies & Services           ,Comms and Computing           ,DG50,Other IT Expenditure,31/07/2012,728,950,R,LONDON GRID FOR LEARNING TRUST
Childrens & Education Services,Statutory & Regulatory Duties,Schools IT Support                      ,Supplies & Services           ,Comms and Computing           ,DG50,Other IT Expenditure,31/07/2012,729,"2,137.50",R,LONDON GRID FOR LEARNING TRUST
Childrens & Education Services,Statutory & Regulatory Duties,Schools IT Support                      ,Supplies & Services           ,Comms and Computing           ,DG50,Other IT Expenditure,31/07/2012,730,"2,375.00",R,LONDON GRID FOR LEARNING TRUST
Childrens & Education Services,Statutory & Regulatory Duties,Schools IT Support                      ,Supplies & Services           ,Comms and Computing           ,DG50,Other IT Expenditure,31/07/2012,731,"2,375.00",R,LONDON GRID FOR LEARNING TRUST
Childrens & Education Services,Statutory & Regulatory Duties,Schools IT Support                      ,Supplies & Services           ,Comms and Computing           ,DG50,Other IT Expenditure,31/07/2012,732,"1,662.50",R,LONDON GRID FOR LEARNING TRUST
Childrens & Education Services,Statutory & Regulatory Duties,Schools IT Support                      ,Supplies & Services           ,Comms and Computing           ,DG50,Other IT Expenditure,31/07/2012,733,"2,137.50",R,LONDON GRID FOR LEARNING TRUST
Childrens & Education Services,Statutory & Regulatory Duties,Schools IT Support                      ,Supplies & Services           ,Comms and Computing           ,DG50,Other IT Expenditure,31/07/2012,734,"2,137.50",R,LONDON GRID FOR LEARNING TRUST
Childrens & Education Services,Statutory & Regulatory Duties,Schools IT Support                      ,Supplies & Services           ,Comms and Computing           ,DG50,Other IT Expenditure,31/07/2012,735,"2,137.50",R,LONDON GRID FOR LEARNING TRUST
Childrens & Education Services,Statutory & Regulatory Duties,Schools IT Support                      ,Supplies & Services           ,Comms and Computing           ,DG50,Other IT Expenditure,31/07/2012,736,"1,662.50",R,LONDON GRID FOR LEARNING TRUST
Childrens & Education Services,Statutory & Regulatory Duties,Schools IT Support                      ,Supplies & Services           ,Comms and Computing           ,DG50,Other IT Expenditure,31/07/2012,737,"2,375.00",R,LONDON GRID FOR LEARNING TRUST
Childrens & Education Services,Statutory & Regulatory Duties,Schools IT Support                      ,Supplies & Services           ,Comms and Computing           ,DG50,Other IT Expenditure,31/07/2012,738,"2,375.00",R,LONDON GRID FOR LEARNING TRUST
Childrens & Education Services,Statutory & Regulatory Duties,Schools IT Support                      ,Supplies & Services           ,Comms and Computing           ,DG50,Other IT Expenditure,31/07/2012,739,"2,137.50",R,LONDON GRID FOR LEARNING TRUST
Childrens & Education Services,Statutory & Regulatory Duties,Schools IT Support                      ,Supplies & Services           ,Comms and Computing           ,DG50,Other IT Expenditure,31/07/2012,740,"1,662.50",R,LONDON GRID FOR LEARNING TRUST
Childrens & Education Services,Statutory & Regulatory Duties,Schools IT Support                      ,Supplies & Services           ,Comms and Computing           ,DG50,Other IT Expenditure,31/07/2012,741,"2,137.50",R,LONDON GRID FOR LEARNING TRUST
Childrens & Education Services,Statutory & Regulatory Duties,Schools IT Support                      ,Supplies & Services           ,Comms and Computing           ,DG50,Other IT Expenditure,31/07/2012,742,"2,375.00",R,LONDON GRID FOR LEARNING TRUST
Childrens & Education Services,Statutory & Regulatory Duties,Schools IT Support                      ,Supplies & Services           ,Comms and Computing           ,DG50,Other IT Expenditure,31/07/2012,743,"2,375.00",R,LONDON GRID FOR LEARNING TRUST
Childrens & Education Services,Statutory & Regulatory Duties,Schools IT Support                      ,Supplies & Services           ,Comms and Computing           ,DG50,Other IT Expenditure,31/07/2012,744,"2,375.00",R,LONDON GRID FOR LEARNING TRUST
Childrens & Education Services,Statutory & Regulatory Duties,Schools IT Support                      ,Supplies & Services           ,Comms and Computing           ,DG50,Other IT Expenditure,31/07/2012,745,"1,662.50",R,LONDON GRID FOR LEARNING TRUST
Childrens & Education Services,Statutory & Regulatory Duties,Schools IT Support                      ,Supplies & Services           ,Comms and Computing           ,DG50,Other IT Expenditure,31/07/2012,746,"2,137.50",R,LONDON GRID FOR LEARNING TRUST
Childrens & Education Services,Statutory & Regulatory Duties,Schools IT Support                      ,Supplies & Services           ,Comms and Computing           ,DG50,Other IT Expenditure,31/07/2012,747,"1,662.50",R,LONDON GRID FOR LEARNING TRUST
Childrens & Education Services,Statutory & Regulatory Duties,Schools IT Support                      ,Supplies & Services           ,Comms and Computing           ,DG50,Other IT Expenditure,31/07/2012,748,"2,137.50",R,LONDON GRID FOR LEARNING TRUST
Childrens & Education Services,Statutory & Regulatory Duties,Schools IT Support                      ,Supplies & Services           ,Comms and Computing           ,DG50,Other IT Expenditure,31/07/2012,749,"5,700.00",R,LONDON GRID FOR LEARNING TRUST
Childrens & Education Services,Statutory & Regulatory Duties,Schools IT Support                      ,Supplies & Services           ,Comms and Computing           ,DG50,Other IT Expenditure,17/01/2013,750,994.91,R,STUFF-UK.NET                  
Childrens & Education Services,Statutory & Regulatory Duties,Schools IT Support                      ,Supplies & Services           ,Expenses                      ,DH03,Hospitality,22/12/2012,751,679.29,R,PEPPERS                       
Childrens & Education Services,Asset Management,PFI Unitary Charges                     ,Third Party Payments          ,Private Contractors           ,EH02,Miscellaneous Hired Services,09/05/2012,752,"4,175.81",R,NEWSCHOOLS (MERTON) LIMITED   
Childrens & Education Services,Asset Management,PFI Unitary Charges                     ,Third Party Payments          ,Private Contractors           ,EH02,Miscellaneous Hired Services,30/06/2012,753,531.42,R,NEWSCHOOLS (MERTON) LIMITED   
Childrens & Education Services,Statutory & Regulatory Duties,Head of Special Educatn Needs           ,Supplies & Services           ,Services                      ,DF03,Consultants,20/12/2012,754,"1,175.00",R,REDACTED
Childrens & Education Services,Statutory & Regulatory Duties,Head of Special Educatn Needs           ,Supplies & Services           ,Expenses                      ,DH50,Special Projects,04/01/2013,755,"1,170.45",R,DAN GRANT ASSOCIATES LTD      
Childrens & Education Services,Statutory & Regulatory Duties,Head of Special Educatn Needs           ,Supplies & Services           ,Expenses                      ,DH50,Special Projects,04/01/2013,756,"2,880.00",R,DAN GRANT ASSOCIATES LTD      
Childrens & Education Services,Education Psychology Service,Education Psychology.                   ,Employees                     ,Direct Employee Expenses      ,AA17,Agency Staff & Casual Paymts,07/12/2012,757,"1,875.00",R,REDACTED
Childrens & Education Services,Support for SEN Pupils,Statementing-Transport                  ,Transport Related Expenditure ,Public Transport              ,CD50,Home Sch/Coll Trans(Trav Exps),04/01/2013,758,800,R,REDACTED
Childrens & Education Services,Behavioural Support,Statement Support Team                  ,Employees                     ,Direct Employee Expenses      ,AA17,Agency Staff & Casual Paymts,29/12/2012,759,"4,000.00",R,REDACTED
Childrens & Education Services,Behavioural Support,Statement Support Team                  ,Employees                     ,Direct Employee Expenses      ,AA17,Agency Staff & Casual Paymts,19/01/2013,760,"3,000.00",R,REDACTED
Childrens & Education Services,Pupil Referral Units,Expanded Pupil Referral Unit            ,Third Party Payments          ,Private Contractors           ,EH01,Miscellaneous Contrct Services,17/12/2012,761,"4,865.14",R,SW LONDON ST GEORGES NHS TRUST
Childrens & Education Services,Oth U5s Provn Not Prim or Spec,GSSG Workforce Development              ,Employees                     ,Indirect Employee Expenses    ,AB56,Internal Training Costs,21/01/2013,762,"1,000.00",R,REDACTED
Childrens & Education Services,Oth U5s Provn Not Prim or Spec,GSSG Workforce Development              ,Employees                     ,Indirect Employee Expenses    ,AB56,Internal Training Costs,23/01/2013,763,750,R,PHENOMENAL TRAINING LTD       
Childrens & Education Services,Oth U5s Provn Not Prim or Spec,GSSG Workforce Development              ,Supplies & Services           ,Services                      ,DF03,Consultants,13/12/2012,764,"2,940.00",R,REDACTED
Childrens & Education Services,Oth U5s Provn Not Prim or Spec,GSSG Workforce Development              ,Supplies & Services           ,Services                      ,DF03,Consultants,01/01/2013,765,"1,800.00",R,REDACTED
Childrens & Education Services,GENERATED ACCOUNT,Children's centres                      ,Supplies & Services           ,Grants and Subscriptions      ,DJ01,Grants,05/12/2012,766,"6,419.50",R,COMMONSIDE COMMUNITY DEV TRUST
Childrens & Education Services,GENERATED ACCOUNT,Children's centres                      ,Supplies & Services           ,Grants and Subscriptions      ,DJ01,Grants,23/01/2013,767,"6,419.50",R,COMMONSIDE COMMUNITY DEV TRUST
Childrens & Education Services,Nursery schools,Home Grown Graduate Incentive           ,Supplies & Services           ,Grants and Subscriptions      ,DJ01,Grants,03/01/2013,768,"3,000.00",R,WIMBLEDON VILLAGE MONTESSORI  
Childrens & Education Services,Nursery schools,Home Grown Graduate Incentive           ,Supplies & Services           ,Grants and Subscriptions      ,DJ01,Grants,04/01/2013,769,"3,000.00",R,DATE VALLEY SCHOOL            
Childrens & Education Services,Nursery schools,Nursery Grant payment-2 yr old          ,Supplies & Services           ,Grants and Subscriptions      ,DJ01,Grants,10/01/2013,770,626.34,R,BOW LANE PRE-SCHOOL           
Childrens & Education Services,Nursery schools,Nursery Grant payment-2 yr old          ,Supplies & Services           ,Grants and Subscriptions      ,DJ01,Grants,15/01/2013,771,972,R,ROSEHILL NURSERY              
Childrens & Education Services,Nursery schools,Nursery Grant payment-2 yr old          ,Supplies & Services           ,Grants and Subscriptions      ,DJ01,Grants,15/01/2013,772,972,R,ROSEHILL NURSERY              
Childrens & Education Services,Nursery schools,Nursery Grant payment-2 yr old          ,Supplies & Services           ,Grants and Subscriptions      ,DJ01,Grants,18/01/2013,773,"1,062.00",R,REDACTED
Childrens & Education Services,Nursery schools,Nursery Grant payment-2 yr old          ,Supplies & Services           ,Grants and Subscriptions      ,DJ01,Grants,18/01/2013,774,972,R,MMI PRE SCHOOL                
Childrens & Education Services,Nursery schools,Nursery Grant payment-2 yr old          ,Supplies & Services           ,Grants and Subscriptions      ,DJ01,Grants,18/01/2013,775,"1,062.00",R,REDACTED
Childrens & Education Services,Nursery schools,Nursery Grant payment-2 yr old          ,Supplies & Services           ,Grants and Subscriptions      ,DJ01,Grants,18/01/2013,776,972,R,FAIRLAND'S PRESCHOOL          
Childrens & Education Services,Nursery schools,Nursery Grant payment-2 yr old          ,Supplies & Services           ,Grants and Subscriptions      ,DJ01,Grants,18/01/2013,777,"1,062.00",R,MINI TREASURES NURSERY LTD    
Childrens & Education Services,Nursery schools,Nursery Grant payment-2 yr old          ,Supplies & Services           ,Grants and Subscriptions      ,DJ01,Grants,18/01/2013,778,972,R,MINI TREASURES NURSERY LTD    
Childrens & Education Services,Nursery schools,Nursery Grant payment-2 yr old          ,Supplies & Services           ,Grants and Subscriptions      ,DJ01,Grants,18/01/2013,779,972,R,MINI TREASURES NURSERY LTD    
Childrens & Education Services,Nursery schools,Nursery Grant payment-2 yr old          ,Supplies & Services           ,Grants and Subscriptions      ,DJ01,Grants,18/01/2013,780,972,R,MINI TREASURES NURSERY LTD    
Childrens & Education Services,Nursery schools,Nursery Grant payment-2 yr old          ,Supplies & Services           ,Grants and Subscriptions      ,DJ01,Grants,18/01/2013,781,972,R,REDACTED
Childrens & Education Services,Nursery schools,Nursery Grant payment-2 yr old          ,Supplies & Services           ,Grants and Subscriptions      ,DJ01,Grants,18/01/2013,782,972,R,REDACTED
Childrens & Education Services,Nursery schools,Nursery Grant payment-2 yr old          ,Supplies & Services           ,Grants and Subscriptions      ,DJ01,Grants,18/01/2013,783,972,R,MINI TREASURES NURSERY LTD    
Childrens & Education Services,Nursery schools,Nursery Grant payment-2 yr old          ,Supplies & Services           ,Grants and Subscriptions      ,DJ01,Grants,18/01/2013,784,972,R,REDACTED
Childrens & Education Services,Nursery schools,Nursery Grant payment-2 yr old          ,Supplies & Services           ,Grants and Subscriptions      ,DJ01,Grants,18/01/2013,785,"1,062.00",R,REDACTED
Childrens & Education Services,Nursery schools,Nursery Grant payment-2 yr old          ,Supplies & Services           ,Grants and Subscriptions      ,DJ01,Grants,18/01/2013,786,972,R,MINI TREASURES NURSERY LTD    
Childrens & Education Services,Nursery schools,Nursery Grant payment-2 yr old          ,Supplies & Services           ,Grants and Subscriptions      ,DJ01,Grants,18/01/2013,787,972,R,MMI PRE SCHOOL                
Childrens & Education Services,Nursery schools,Nursery Grant payment-2 yr old          ,Supplies & Services           ,Grants and Subscriptions      ,DJ01,Grants,18/01/2013,788,972,R,HASLEMERE HOUSE DAY NURSERY   
Childrens & Education Services,Nursery schools,Nursery Grant payment-2 yr old          ,Supplies & Services           ,Grants and Subscriptions      ,DJ01,Grants,18/01/2013,789,972,R,HASLEMERE HOUSE DAY NURSERY   
Childrens & Education Services,Nursery schools,Nursery Grant payment-2 yr old          ,Supplies & Services           ,Grants and Subscriptions      ,DJ01,Grants,18/01/2013,790,849.6,R,REDACTED
Childrens & Education Services,Nursery schools,Nursery Grant payment-2 yr old          ,Supplies & Services           ,Grants and Subscriptions      ,DJ01,Grants,18/01/2013,791,972,R,HASLEMERE HOUSE DAY NURSERY   
Childrens & Education Services,Nursery schools,Nursery Grant payment-2 yr old          ,Supplies & Services           ,Grants and Subscriptions      ,DJ01,Grants,18/01/2013,792,972,R,HASLEMERE HOUSE DAY NURSERY   
Childrens & Education Services,Nursery schools,Nursery Grant payment-2 yr old          ,Supplies & Services           ,Grants and Subscriptions      ,DJ01,Grants,18/01/2013,793,972,R,HASLEMERE HOUSE DAY NURSERY   
Childrens & Education Services,Nursery schools,Nursery Grant payment-2 yr old          ,Supplies & Services           ,Grants and Subscriptions      ,DJ01,Grants,21/01/2013,794,972,R,THE GRANGE DAY NURSERY        
Childrens & Education Services,Nursery schools,Nursery Grant payment-2 yr old          ,Supplies & Services           ,Grants and Subscriptions      ,DJ01,Grants,21/01/2013,795,972,R,CHERUBS @ ST THOMAS           
Childrens & Education Services,Nursery schools,Nursery Grant payment-2 yr old          ,Supplies & Services           ,Grants and Subscriptions      ,DJ01,Grants,21/01/2013,796,"1,116.00",R,CHERUBS CHILDCARE LTD         
Childrens & Education Services,Nursery schools,Nursery Grant payment-2 yr old          ,Supplies & Services           ,Grants and Subscriptions      ,DJ01,Grants,21/01/2013,797,"1,116.00",R,CHERUBS CHILDCARE LTD         
Childrens & Education Services,Nursery schools,Nursery Grant payment-2 yr old          ,Supplies & Services           ,Grants and Subscriptions      ,DJ01,Grants,21/01/2013,798,972,R,THE GRANGE DAY NURSERY        
Childrens & Education Services,Nursery schools,Nursery Grant payment-2 yr old          ,Supplies & Services           ,Grants and Subscriptions      ,DJ01,Grants,21/01/2013,799,972,R,CHERUBS @ NEWMINSTER          
Childrens & Education Services,Nursery schools,Nursery Grant payment-2 yr old          ,Supplies & Services           ,Grants and Subscriptions      ,DJ01,Grants,21/01/2013,800,972,R,COLLIERS WOOD VILLAGE DAY NUR.
Childrens & Education Services,Nursery schools,Nursery Grant payment-2 yr old          ,Supplies & Services           ,Grants and Subscriptions      ,DJ01,Grants,21/01/2013,801,648,R,HOLY CROSS PLAYGROUP          
Childrens & Education Services,Nursery schools,Nursery Grant payment-2 yr old          ,Supplies & Services           ,Grants and Subscriptions      ,DJ01,Grants,21/01/2013,802,972,R,THE GRANGE DAY NURSERY        
Childrens & Education Services,Nursery schools,Nursery Grant payment-2 yr old          ,Supplies & Services           ,Grants and Subscriptions      ,DJ01,Grants,21/01/2013,803,972,R,CHERUBS @ NEWMINSTER          
Childrens & Education Services,Nursery schools,Nursery Grant payment-2 yr old          ,Supplies & Services           ,Grants and Subscriptions      ,DJ01,Grants,21/01/2013,804,972,R,BOW LANE PRE-SCHOOL           
Childrens & Education Services,Nursery schools,Nursery Grant payment-2 yr old          ,Supplies & Services           ,Grants and Subscriptions      ,DJ01,Grants,21/01/2013,805,972,R,THE GRANGE DAY NURSERY        
Childrens & Education Services,Nursery schools,Nursery Grant payment-2 yr old          ,Supplies & Services           ,Grants and Subscriptions      ,DJ01,Grants,21/01/2013,806,972,R,BOW LANE PRE-SCHOOL           
Childrens & Education Services,Nursery schools,Nursery Grant payment-2 yr old          ,Supplies & Services           ,Grants and Subscriptions      ,DJ01,Grants,21/01/2013,807,972,R,CHERUBS @ NEWMINSTER          
Childrens & Education Services,Nursery schools,Nursery Grant payment-2 yr old          ,Supplies & Services           ,Grants and Subscriptions      ,DJ01,Grants,21/01/2013,808,972,R,CHERUBS @ ST THOMAS           
Childrens & Education Services,Nursery schools,Nursery Grant payment-2 yr old          ,Supplies & Services           ,Grants and Subscriptions      ,DJ01,Grants,21/01/2013,809,972,R,CHERUBS @ NEWMINSTER          
Childrens & Education Services,Nursery schools,Nursery Grant payment-2 yr old          ,Supplies & Services           ,Grants and Subscriptions      ,DJ01,Grants,21/01/2013,810,972,R,CHERUBS @ NEWMINSTER          
Childrens & Education Services,Nursery schools,Nursery Grant payment-2 yr old          ,Supplies & Services           ,Grants and Subscriptions      ,DJ01,Grants,21/01/2013,811,972,R,BOW LANE PRE-SCHOOL           
Childrens & Education Services,Nursery schools,Nursery Grant payment-2 yr old          ,Supplies & Services           ,Grants and Subscriptions      ,DJ01,Grants,21/01/2013,812,972,R,CHERUBS @ NEWMINSTER          
Childrens & Education Services,Nursery schools,Nursery Grant payment-2 yr old          ,Supplies & Services           ,Grants and Subscriptions      ,DJ01,Grants,21/01/2013,813,744,R,CHERUBS @ ST THOMAS           
Childrens & Education Services,Nursery schools,Nursery Grant payment-2 yr old          ,Supplies & Services           ,Grants and Subscriptions      ,DJ01,Grants,21/01/2013,814,972,R,CHERUBS @ NEWMINSTER          
Childrens & Education Services,Nursery schools,Nursery Grant payment-2 yr old          ,Supplies & Services           ,Grants and Subscriptions      ,DJ01,Grants,21/01/2013,815,972,R,BOW LANE PRE-SCHOOL           
Childrens & Education Services,Nursery schools,Nursery Grant payment-2 yr old          ,Supplies & Services           ,Grants and Subscriptions      ,DJ01,Grants,22/01/2013,816,"14,580.00",R,MERTON ABBEY PRIMARY SCHOOL   
Childrens & Education Services,Nursery schools,Nursery Grant payment-2 yr old          ,Supplies & Services           ,Grants and Subscriptions      ,DJ01,Grants,22/01/2013,817,972,R,MERTON ABBEY PRIMARY SCHOOL   
Childrens & Education Services,Nursery schools,Nursery Grant payment-2 yr old          ,Supplies & Services           ,Grants and Subscriptions      ,DJ01,Grants,22/01/2013,818,"7,776.00",R,ARK AT SHERWOOD LTD           
Childrens & Education Services,Nursery schools,Nursery Grant payment-2 yr old          ,Supplies & Services           ,Grants and Subscriptions      ,DJ01,Grants,22/01/2013,819,"18,468.00",R,ST MARKS PRIMARY SCHOOL       
Childrens & Education Services,Nursery schools,Nursery Grant payment-2 yr old          ,Supplies & Services           ,Grants and Subscriptions      ,DJ01,Grants,22/01/2013,820,"11,664.00",R,ARK AT SHERWOOD LTD           
Childrens & Education Services,Nursery schools,Nursery Grant payment-2 yr old          ,Supplies & Services           ,Grants and Subscriptions      ,DJ01,Grants,22/01/2013,821,972,R,LITTLE CATERPILLARS           
Childrens & Education Services,Nursery schools,Nursery Grant payment-2 yr old          ,Supplies & Services           ,Grants and Subscriptions      ,DJ01,Grants,22/01/2013,822,972,R,LITTLE CATERPILLARS           
Childrens & Education Services,Nursery schools,Nursery Grant payment-2 yr old          ,Supplies & Services           ,Grants and Subscriptions      ,DJ01,Grants,22/01/2013,823,"1,152.00",R,LA PETITE FLEUR PRE-SCHOOL    
Childrens & Education Services,Nursery schools,Nursery Grant payment-2 yr old          ,Supplies & Services           ,Grants and Subscriptions      ,DJ01,Grants,22/01/2013,824,972,R,LITTLE CATERPILLARS           
Childrens & Education Services,Nursery schools,Nursery Grant payment-2 yr old          ,Supplies & Services           ,Grants and Subscriptions      ,DJ01,Grants,22/01/2013,825,972,R,SACRED HEART FUN CLUB         
Childrens & Education Services,Nursery schools,Nursery Grant payment-2 yr old          ,Supplies & Services           ,Grants and Subscriptions      ,DJ01,Grants,22/01/2013,826,972,R,LITTLE CATERPILLARS           
Childrens & Education Services,Nursery schools,Nursery Grant payment-2 yr old          ,Supplies & Services           ,Grants and Subscriptions      ,DJ01,Grants,22/01/2013,827,972,R,LITTLE CATERPILLARS           
Childrens & Education Services,Nursery schools,Nursery Grant payment-2 yr old          ,Supplies & Services           ,Grants and Subscriptions      ,DJ01,Grants,22/01/2013,828,"8,748.00",R,HAPPY FACES@CRANMER           
Childrens & Education Services,Nursery schools,Nursery Grant payment-2 yr old          ,Supplies & Services           ,Grants and Subscriptions      ,DJ01,Grants,22/01/2013,829,"10,692.00",R,HAPPY FACES@CRANMER           
Childrens & Education Services,Nursery schools,Nursery Grant payment-2 yr old          ,Supplies & Services           ,Grants and Subscriptions      ,DJ01,Grants,25/01/2013,830,"18,468.00",R,IVY GARDENS CHILDREN' S CENTRE
Childrens & Education Services,Nursery schools,Nursery Grant payment-2 yr old          ,Supplies & Services           ,Grants and Subscriptions      ,DJ01,Grants,25/01/2013,831,"4,860.00",R,IVY GARDENS CHILDREN' S CENTRE
Childrens & Education Services,Nursery schools,Nursery Grant payment-2 yr old          ,Supplies & Services           ,Grants and Subscriptions      ,DJ01,Grants,28/01/2013,832,"9,720.00",R,HASLEMERE PRIMARY SCHOOL      
Childrens & Education Services,Nursery schools,Nursery Grant payment-2 yr old          ,Supplies & Services           ,Grants and Subscriptions      ,DJ01,Grants,28/01/2013,833,"1,944.00",R,HASLEMERE PRIMARY SCHOOL      
Childrens & Education Services,Nursery schools,EY-Support Childminding Fundin          ,Supplies & Services           ,Catering                      ,DB50,Refreshments,21/01/2013,834,735,R,REDACTED
Childrens & Education Services,GENERATED ACCOUNT,Lavender Children's Centre              ,Premises Related Expenditure  ,Cleaning and Domestic Supplies,BH03,Cleaning Services,05/01/2013,835,574.52,R,RE MCS CLEANING SERVICES LTD  
Childrens & Education Services,GENERATED ACCOUNT,EY Family Support Team                  ,Third Party Payments          ,Private Contractors           ,EH02,Miscellaneous Hired Services,14/01/2013,836,"10,000.00",R,MERTON PRE-SCH LEARN ALLIANCE 
Childrens & Education Services,Nursery schools,Lavender CC Non Childcare               ,Premises Related Expenditure  ,Cleaning and Domestic Supplies,BH03,Cleaning Services,05/01/2013,837,574.52,R,RE MCS CLEANING SERVICES LTD  
Childrens & Education Services,Nursery schools,E.Years-Intergenerational Cntr          ,Premises Related Expenditure  ,RepairsAlterations&MtceOfBldgs,BA01,DDM - General Building,30/11/2012,838,609.25,R,SALTASH ENTERPRISES LTD       
Childrens & Education Services,Nursery schools,E.Years-Intergenerational Cntr          ,Premises Related Expenditure  ,RepairsAlterations&MtceOfBldgs,BA03,DDM - Mechanical,10/01/2013,839,561.81,R,STORMSAVER LTD                
Childrens & Education Services,Nursery schools,E.Years-Intergenerational Cntr          ,Premises Related Expenditure  ,Energy Costs                  ,BB02,Electricity,15/01/2013,840,924.75,R,KENT COUNTY COUNCIL           
Childrens & Education Services,Nursery schools,E.Years-Intergenerational Cntr          ,Supplies & Services           ,Services                      ,DF30,Activities Programme,20/01/2013,841,"8,500.00",R,FREE PLAY                     
Childrens & Education Services,Vocational - Adult Education,MAE-Bldgs Repairs & Maintenanc          ,Premises Related Expenditure  ,RepairsAlterations&MtceOfBldgs,BA05,DDM - Electrical,20/12/2012,842,"1,296.41",R,COFELY LIMITED                
Childrens & Education Services,Vocational - Adult Education,AE-Adult Education Main                 ,Premises Related Expenditure  ,Fixtures and Fittings         ,BF01,Fixtures and Fittings,17/12/2012,843,611.7,R,CHUBB FIRE LIMITED            
Childrens & Education Services,Vocational - Adult Education,AE-Adult Education Main                 ,Premises Related Expenditure  ,Cleaning and Domestic Supplies,BH03,Cleaning Services,25/11/2012,844,"3,167.98",R,JULIUS RUTHERFOORD & CO LTD   
Childrens & Education Services,Vocational - Adult Education,AE-Adult Education Main                 ,Premises Related Expenditure  ,Cleaning and Domestic Supplies,BH03,Cleaning Services,25/11/2012,845,533.94,R,JULIUS RUTHERFOORD & CO LTD   
Childrens & Education Services,Vocational - Adult Education,AE-Adult Education Main                 ,Premises Related Expenditure  ,Cleaning and Domestic Supplies,BH03,Cleaning Services,25/12/2012,846,"2,699.35",R,JULIUS RUTHERFOORD & CO LTD   
Childrens & Education Services,Vocational - Adult Education,AE-Adult Education Main                 ,Supplies & Services           ,Equip Furniture/Materials     ,DA09,Equip-Purchases,18/12/2012,847,503.55,R,THAMESMEAD BUSINESS SER LTD   
Childrens & Education Services,Vocational - Adult Education,AE-Adult Education Main                 ,Supplies & Services           ,Services                      ,DF02,Misc Advertising/Publicity,30/11/2012,848,"1,104.00",R,NEWSQUEST (LONDON)LTD         
Childrens & Education Services,Vocational - Adult Education,AE-Adult Education Main                 ,Supplies & Services           ,Services                      ,DF07,Bought in Teaching Services,02/01/2013,849,750,R,REDACTED
Childrens & Education Services,Vocational - Adult Education,AE-Adult Education Main                 ,Supplies & Services           ,Services                      ,DF27,Examination Fees,04/12/2012,850,"1,430.00",R,ROYAL HORTICULTURAL SOCIETY   
Childrens & Education Services,Vocational - Adult Education,AE-Adult Education Main                 ,Supplies & Services           ,Services                      ,DF27,Examination Fees,11/12/2012,851,"1,724.80",R,EDEXCEL                       
Childrens & Education Services,Vocational - Adult Education,AE-Adult Education Main                 ,Supplies & Services           ,Services                      ,DF27,Examination Fees,22/11/2012,852,"2,200.00",R,CACHE                         
Childrens & Education Services,Vocational - Adult Education,AE-Adult Education Main                 ,Supplies & Services           ,Comms and Computing           ,DG02,Software Licences,19/12/2012,853,"5,916.00",R,LEARNING ASSISTANT            
Childrens & Education Services,Vocational - Adult Education,AE-Adult Education Main                 ,Supplies & Services           ,Comms and Computing           ,DG04,Postage - General,03/12/2012,854,"1,244.32",R,NEOPOST LIMITED               
Childrens & Education Services,Vocational - Adult Education,MAE- CATERING SERVICES 2011>           ,Employees                     ,Indirect Employee Expenses    ,AB02,Recruitment Adverts,24/05/2012,855,"1,572.75",R,PENNA COMMUNICATIONS (NO 2 A/C
Childrens & Education Services,Youth Centres (Residential),Pollards Hll Yth Ctre                   ,Premises Related Expenditure  ,Cleaning and Domestic Supplies,BH03,Cleaning Services,25/11/2012,856,935.65,R,JULIUS RUTHERFOORD & CO LTD   
Childrens & Education Services,Youth Centres (Residential),Detached Projects                       ,Transport Related Expenditure ,Direct Transport Costs        ,CA04,R & M of Veh - General,18/12/2012,857,"3,415.10",R,ZURICH INSURANCE COMPANY      
Childrens & Education Services,Youth Centres (Residential),Youth Generator Fund                    ,Supplies & Services           ,Grants and Subscriptions      ,DJ01,Grants,02/01/2013,858,622,R,COMMUNITIES FIRST             
Childrens & Education Services,Youth Centres (Residential),Youth Generator Fund                    ,Supplies & Services           ,Grants and Subscriptions      ,DJ01,Grants,08/01/2013,859,597.2,R,LEARN THROUGH SPORT           
Childrens & Education Services,Pupil Support,Careers Educ IAG Contracts              ,Third Party Payments          ,Private Contractors           ,EH01,Miscellaneous Contrct Services,14/12/2012,860,"17,848.00",R,LIVITY LTD                    
Childrens & Education Services,Pupil Support,Children & Yth Participation            ,Supplies & Services           ,Services                      ,DF03,Consultants,31/12/2012,861,750,R,LEVFEARN CONSULTANCY          
Childrens & Education Services,Asset Management,Premises and Contracts                  ,Supplies & Services           ,Services                      ,DF03,Consultants,29/12/2012,862,"1,150.00",R,PERMANENT FUTURES             
Childrens & Education Services,Asset Management,Premises and Contracts                  ,Supplies & Services           ,Services                      ,DF03,Consultants,29/12/2012,863,"2,300.00",R,PERMANENT FUTURES             
Childrens & Education Services,Asset Management,Revenuisation & S106 Proj               ,Premises Related Expenditure  ,RepairsAlterations&MtceOfBldgs,BA79,Security of Premises,02/01/2013,864,"10,120.30",R,SIGHT & SOUND                 
Childrens & Education Services,Asset Management,Revenuisation & S106 Proj               ,Premises Related Expenditure  ,Energy Costs                  ,BB02,Electricity,15/01/2013,865,"2,609.66",R,SOUTHERN ELECTRIC             
Childrens & Education Services,Asset Management,Centre Commissioned Servs               ,Supplies & Services           ,Grants and Subscriptions      ,DJ01,Grants,07/01/2013,866,"6,358.75",R,THE SQUAD CLUB                
Childrens & Education Services,Asset Management,Centre Commissioned Servs               ,Supplies & Services           ,Grants and Subscriptions      ,DJ01,Grants,07/01/2013,867,"6,358.75",R,THE SQUAD CLUB                
Childrens & Education Services,Asset Management,Centre Commissioned Servs               ,Supplies & Services           ,Grants and Subscriptions      ,DJ01,Grants,07/01/2013,868,"6,358.75",R,THE SQUAD CLUB                
Childrens & Education Services,Asset Management,Centre Commissioned Servs               ,Supplies & Services           ,Grants and Subscriptions      ,DJ01,Grants,02/01/2013,869,"12,125.00",R,JIGSAW4U                      
Childrens & Education Services,Asset Management,Centre Commissioned Servs               ,Supplies & Services           ,Grants and Subscriptions      ,DJ01,Grants,29/11/2012,870,"12,500.00",R,COMMONSIDE COMMUNITY DEV TRUST
Childrens & Education Services,Asset Management,Centre Commissioned Servs               ,Supplies & Services           ,Grants and Subscriptions      ,DJ01,Grants,10/01/2013,871,"4,500.00",R,CARERS SUPPORT MERTON         
Childrens & Education Services,Asset Management,Centre Commissioned Servs               ,Supplies & Services           ,Grants and Subscriptions      ,DJ01,Grants,10/01/2013,872,"23,089.75",R,CARERS SUPPORT MERTON         
Childrens & Education Services,Asset Management,Centre Commissioned Servs               ,Supplies & Services           ,Grants and Subscriptions      ,DJ01,Grants,04/01/2013,873,"7,500.00",R,MERTON VOLUNTARY SERV COUNCIL 
Childrens & Education Services,Asset Management,Centre Commissioned Servs               ,Supplies & Services           ,Grants and Subscriptions      ,DJ01,Grants,05/11/2012,874,"27,053.00",R,HOME-START MERTON             
Childrens & Education Services,Asset Management,Centre Commissioned Servs               ,Supplies & Services           ,Grants and Subscriptions      ,DJ01,Grants,07/01/2013,875,"27,053.00",R,HOME-START MERTON             
Childrens & Education Services,Facilitating School Improvemnt,SSQ                                     ,Supplies & Services           ,Services                      ,DF03,Consultants,08/01/2013,876,500,R,REDACTED
Childrens & Education Services,Facilitating School Improvemnt,SSQ                                     ,Supplies & Services           ,Grants and Subscriptions      ,DJ04,Subscriptions,21/01/2013,877,"2,841.00",R,SGA SYSTEMS LTD               
Childrens & Education Services,Statutory & Regulatory Duties,Profess Develop Cntre                   ,Premises Related Expenditure  ,Energy Costs                  ,BB03,Gas (incl. Butane),21/12/2012,878,"1,006.94",R,KENT COUNTY COUNCIL           
Childrens & Education Services,Statutory & Regulatory Duties,Profess Develop Cntre                   ,Premises Related Expenditure  ,Water Services                ,BE01,Use of Water (Metered),28/12/2012,879,809.89,R,SUTTON & EAST SURREY WATER PLC
Childrens & Education Services,Statutory & Regulatory Duties,Profess Develop Cntre                   ,Premises Related Expenditure  ,Cleaning and Domestic Supplies,BH03,Cleaning Services,25/12/2012,880,"2,645.92",R,JULIUS RUTHERFOORD & CO LTD   
Childrens & Education Services,Statutory & Regulatory Duties,Profess Develop Cntre                   ,Premises Related Expenditure  ,Cleaning and Domestic Supplies,BH09,Communal/Commercial Waste,01/01/2013,881,805.73,R,LONDON BOROUGH OF MERTON      
Childrens & Education Services,Sch Meals & Milk-Not Delegated,School Meals                            ,Premises Related Expenditure  ,RepairsAlterations&MtceOfBldgs,BA01,DDM - General Building,29/11/2012,882,570.55,R,FIRST IN SERVICE              
Childrens & Education Services,Sch Meals & Milk-Not Delegated,School Meals                            ,Premises Related Expenditure  ,RepairsAlterations&MtceOfBldgs,BA01,DDM - General Building,11/12/2012,883,736,R,DF20 LTD                      
Childrens & Education Services,Sch Meals & Milk-Not Delegated,School Meals                            ,Premises Related Expenditure  ,RepairsAlterations&MtceOfBldgs,BA01,DDM - General Building,13/12/2012,884,870,R,DF20 LTD                      
Childrens & Education Services,Sch Meals & Milk-Not Delegated,School Meals                            ,Supplies & Services           ,Equip Furniture/Materials     ,DA70,Milk and Meals,18/12/2012,885,"10,909.92",R,ISS COLLECTIONS LTD           
Childrens & Education Services,Sch Meals & Milk-Not Delegated,School Meals                            ,Supplies & Services           ,Grants and Subscriptions      ,DJ80,Free School Meals,18/12/2012,886,"204,036.00",R,ISS COLLECTIONS LTD           
Childrens & Education Services,Pupil Support,Smart-Assessment Centre                 ,Supplies & Services           ,Services                      ,DF07,Bought in Teaching Services,26/11/2012,887,600,R,DEFCON WORKSHOPS              
Childrens & Education Services,Pupil Referral Units,Hospital Tuition                        ,Third Party Payments          ,Other Local Authorities       ,EB54,Hospital Tuition,28/11/2012,888,"12,433.46",R,LONDON BOROUGH OF CAMDEN      
Childrens & Education Services,Pupil Referral Units,Hospital Tuition                        ,Third Party Payments          ,Other Local Authorities       ,EB54,Hospital Tuition,06/11/2012,889,"33,087.29",R,WANDSWORTH CORPORATION        
Childrens & Education Services,Pupil Referral Units,Alt Educn(Incl Yr 11 Project)           ,Supplies & Services           ,Services                      ,DF07,Bought in Teaching Services,07/12/2012,890,774,R,HARRISON ALLEN EDUCATION SVCES
Childrens & Education Services,Pupil Referral Units,Alt Educn(Incl Yr 11 Project)           ,Supplies & Services           ,Services                      ,DF07,Bought in Teaching Services,10/12/2012,891,688,R,HARRISON ALLEN EDUCATION SVCES
Childrens & Education Services,Pupil Referral Units,Alt Educn(Incl Yr 11 Project)           ,Supplies & Services           ,Services                      ,DF07,Bought in Teaching Services,30/11/2012,892,"2,340.00",R,SUTTON & DISTRICT TRAINING LTD
Childrens & Education Services,Facilitating School Improvemnt,Virtual Schools - Home Tutors           ,Employees                     ,Direct Employee Expenses      ,AA17,Agency Staff & Casual Paymts,30/11/2012,893,-553,R,REDACTED
Childrens & Education Services,Facilitating School Improvemnt,Virtual Schools - PEA's                 ,Supplies & Services           ,Expenses                      ,DH12,Young Peoples Expenses,19/10/2012,894,900,R,ECONOCOM                      
Childrens & Education Services,Facilitating School Improvemnt,Virtual Schools - PEA's                 ,Supplies & Services           ,Expenses                      ,DH12,Young Peoples Expenses,14/01/2013,895,"1,000.00",R,UNITAS                        
